{"text_format":"1","workbook":"xlsx","n_sheets":10,"sheets":["👩🏻‍🏫 Paramêtres","🗂 Base de données prestations","📋 Devis","🧾 Factures","💰 Livre de recettes","📊Tableau de Bord","pour vous 1","pour vous 2","pour vous 3","coulisses"],"not_rendered":{"charts":4,"images":1,"macros":1,"external_links":0,"defined_names":3,"comments":0,"pivot_tables":0},"unopened":[],"bounds":{"document_bytes":16777216,"sheet_cells":100000,"rows_first":2000,"rows_last":500,"rows_between":2000,"halvings":0,"cell_chars":16384,"cell_head_chars":4096},"cells_cut":0,"cells_raw":0,"read":"whole","date_system":"1900"}

{"sheet":"👩🏻‍🏫 Paramêtres","index":0,"n_rows":54,"n_cols":11,"rows_kept":54,"cut":false,"hidden":false,"merged":[[4,3,4,8],[9,3,9,8],[24,3,24,8],[53,1,53,8],[50,1,52,1],[50,3,50,8],[51,3,51,8],[52,3,52,8],[13,3,13,8],[37,3,37,8]]}
[null,null,null,null,null,"Bienvenue",{"$f":"$I$7&\" !\"","v":" !"},null,{"$f":"K7","v":0}]
[]
[]
[]
[null,"👩🏻‍🏫",null,"Bonjour et merci d'avoir téléchargé ce fichier ! Je m'appelle Laure, et vous ? Tapez votre nom dans la case violette et choisissez votre icône dans la liste en cliquant sur l'emoji ! Vous pouvez aussi copier-coller un emoji, à partir d'un site comme getemoji.com par exemple."]
[]
[null,null,null,null,null,null,"Bonjour ! Je m'appelle"]
[]
[null,{"$f":"$B$5","v":"👩🏻‍🏫"},null,{"$f":"\"Enchantée \"&I7&\" !\"","v":"Enchantée  !"}]
[null,{"$f":"$B$5","v":"👩🏻‍🏫"},null,"Comment s'appelle votre micro-entreprise ? "]
[]
[null,null,null,null,null,null,"Ma micro-entreprise s'appelle",null,null,null,{"$f":"$K$7","v":0}]
[]
[null,{"$f":"$B$5","v":"👩🏻‍🏫"},null,"Dites-moi maintenant les informations de facturations suivantes :"]
[]
[null,null,null,null,null,null,"Mon nom complet",null,null,null,{"$f":"$K$7","v":0}]
[null,null,null,null,null,null,"Mon adresse - ligne 1"]
[null,null,null,null,null,null,"Mon adresse - ligne 2"]
[null,null,null,null,null,null,"Mon code postal"]
[null,null,null,null,null,null,"Ma ville"]
[null,null,null,null,null,null,"Mon numéro de téléphone"]
[null,null,null,null,null,null,"Mon  e-mail"]
[null,null,null,null,null,null,"Mon numéro SIRET"]
[]
[null,{"$f":"B9","v":"👩🏻‍🏫"},null,"Parlons maintenant de vos clients. Dans ce fichier, vous pouvez saisir jusqu'à dix types de clients. Ils serviront à analyser la répartition de votre chiffre d'affaires."]
[]
[null,null,null,null,null,null,"Type 1 :",null,null,null,{"$f":"$K$7","v":0}]
[null,null,null,null,null,null,"Type 2 :"]
[null,null,null,null,null,null,"Type 3 :"]
[null,null,null,null,null,null,"Type 4 :"]
[null,null,null,null,null,null,"Type 5 :"]
[null,null,null,null,null,null,"Type 6 :"]
[null,null,null,null,null,null,"Type 7 :"]
[null,null,null,null,null,null,"Type 8 :"]
[null,null,null,null,null,null,"Type 9 :"]
[null,null,null,null,null,null,"Type 10 :"]
[]
[null,{"$f":"B5","v":"👩🏻‍🏫"},null,"Parlons maintenant de vos produits et services. Dans ce fichier, vous pouvez saisir jusqu'à dix catégories de prestations. Elles serviront à analyser la répartition de votre chiffre d'affaires."]
[]
[null,null,null,null,null,null,"Catégorie 1 :",null,null,null,{"$f":"$K$7","v":0}]
[null,null,null,null,null,null,"Catégorie 2 :"]
[null,null,null,null,null,null,"Catégorie 3 :"]
[null,null,null,null,null,null,"Catégorie 4 :"]
[null,null,null,null,null,null,"Catégorie 5 :"]
[null,null,null,null,null,null,"Catégorie 6 :"]
[null,null,null,null,null,null,"Catégorie 7 :"]
[null,null,null,null,null,null,"Catégorie 8 :"]
[null,null,null,null,null,null,"Catégorie 9 :"]
[null,null,null,null,null,null,"Catégorie 10 :"]
[]
[null,{"$f":"B5","v":"👩🏻‍🏫"},null,"Vous pouvez maintenant explorer les onglets suivants. La fiche d'instructions est là pour vous aider."]
[null,null,null,{"$f":" \"Je vous souhaite plein de succès avec\"&\" \"&I12&\" ! \"","v":"Je vous souhaite plein de succès avec  ! "}]
[null,null,null,{"$f":"\"A bientôt, \"&I7&\" !\"","v":"A bientôt,  !"}]
[null,"Ce contenu est soumis au droit d’auteur et est la propriété de Comptes & Formules. Toute représentation ou reproduction non autorisée est passible d’une action en contrefaçon. "]

{"sheet":"🗂 Base de données prestations","index":1,"n_rows":601,"n_cols":31,"rows_kept":601,"cut":false,"hidden":false,"merged":[]}
["Numéro","Nom","Prénom","Entreprise","Type de client","Date prestation/vente","Numéro de devis","Devis €","Statut","Biais mise en relation","Catégorie de prestation","Libellé","Numéro de facture","Date de facturation","Facture €","Mode de règlement","Adresse de facturation - ligne 1","Adresse de facturation - ligne 2","Code postal et ville","SIRET client","Téléphone","Mail","Date premier contact","Commentaires1","Date second contact","Commentaires2","Date troisième contact","Commentaires3","Divers","Divers2","Divers3"]
[1]
[2]
[3]
[4]
[5]
[6]
[7]
[8]
[9]
[10]
[11,null,null," ",null," ",null,null,null,null,null," ",null," "]
[12,null,null," ",null," ",null,null,null,null,null," ",null," "]
[13,null,null," ",null," ",null,null,null,null,null," ",null," "]
[14,null,null," ",null," ",null,null,null,null,null," ",null," "]
[15,null,null," ",null," ",null,null,null,null,null," ",null," "]
[16,null,null," ",null," ",null,null,null,null,null," ",null," "]
[17,null,null," ",null," ",null,null,null,null,null," ",null," "]
[18,null,null," ",null," ",null,null,null,null,null," ",null," "]
[19,null,null," ",null," ",null,null,null,null,null," ",null," "]
[20,null,null," ",null," ",null,null,null,null,null," ",null," "]
[21,null,null," ",null," ",null,null,null,null,null," ",null," "]
[22,null,null," ",null," ",null,null,null,null,null," ",null," "]
[23,null,null," ",null," ",null,null,null,null,null," ",null," "]
[24,null,null," ",null,null,null,null,null,null,null,null,null," "]
[25,null,null," ",null,null,null,null,null,null,null,null,null," "]
[26,null,null," ",null,null,null,null,null,null,null,null,null," "]
[27,null,null," ",null,null,null,null,null,null,null,null,null," "]
[28,null,null," ",null,null,null,null,null,null,null,null,null," "]
[29,null,null," ",null,null,null,null,null,null,null,null,null," "]
[30,null,null," ",null,null,null,null,null,null,null,null,null," "]
[31,null,null," ",null,null,null,null,null,null,null,null,null," "]
[32,null,null," ",null,null,null,null,null,null,null,null,null," "]
[33,null,null," ",null,null,null,null,null,null,null,null,null," "]
[34,null,null," ",null,null,null,null,null,null,null,null,null," "]
[35,null,null," ",null,null,null,null,null,null,null,null,null," "]
[36,null,null," ",null,null,null,null,null,null,null,null,null," "]
[37,null,null," ",null,null,null,null,null,null,null,null,null," "]
[38,null,null," ",null,null,null,null,null,null,null,null,null," "]
[39,null,null," ",null,null,null,null,null,null,null,null,null," "]
[40,null,null," ",null,null,null,null,null,null,null,null,null," "]
[41,null,null," ",null,null,null,null,null,null,null,null,null," "]
[42,null,null," ",null,null,null,null,null,null,null,null,null," "]
[43,null,null," ",null,null,null,null,null,null,null,null,null," "]
[44,null,null," ",null,null,null,null,null,null,null,null,null," "]
[45,null,null," ",null,null,null,null,null,null,null,null,null," "]
[46,null,null," ",null,null,null,null,null,null,null,null,null," "]
[47,null,null," ",null,null,null,null,null,null,null,null,null," "]
[48,null,null," ",null,null,null,null,null,null,null,null,null," "]
[49,null,null," ",null,null,null,null,null,null,null,null,null," "]
[50,null,null," ",null,null,null,null,null,null,null,null,null," "]
[51,null,null," ",null,null,null,null,null,null,null,null,null," "]
[52,null,null," ",null,null,null,null,null,null,null,null,null," "]
[53,null,null," ",null,null,null,null,null,null,null,null,null," "]
[54,null,null," ",null,null,null,null,null,null,null,null,null," "]
[55,null,null," ",null,null,null,null,null,null,null,null,null," "]
[56,null,null," ",null,null,null,null,null,null,null,null,null," "]
[57,null,null," ",null,null,null,null,null,null,null,null,null," "]
[58,null,null," ",null,null,null,null,null,null,null,null,null," "]
[59,null,null," ",null,null,null,null,null,null,null,null,null," "]
[60,null,null," ",null,null,null,null,null,null,null,null,null," "]
[61,null,null," ",null,null,null,null,null,null,null,null,null," "]
[62,null,null," ",null,null,null,null,null,null,null,null,null," "]
[63,null,null," ",null,null,null,null,null,null,null,null,null," "]
[64,null,null," ",null,null,null,null,null,null,null,null,null," "]
[65,null,null," ",null,null,null,null,null,null,null,null,null," "]
[66,null,null," ",null,null,null,null,null,null,null,null,null," "]
[67,null,null," ",null,null,null,null,null,null,null,null,null," "]
[68,null,null," ",null,null,null,null,null,null,null,null,null," "]
[69,null,null," ",null,null,null,null,null,null,null,null,null," "]
[70,null,null," ",null,null,null,null,null,null,null,null,null," "]
[71,null,null," ",null,null,null,null,null,null,null,null,null," "]
[72,null,null," ",null,null,null,null,null,null,null,null,null," "]
[73,null,null," ",null,null,null,null,null,null,null,null,null," "]
[74,null,null," ",null,null,null,null,null,null,null,null,null," "]
[75,null,null," ",null,null,null,null,null,null,null,null,null," "]
[76,null,null," ",null,null,null,null,null,null,null,null,null," "]
[77,null,null," ",null,null,null,null,null,null,null,null,null," "]
[78,null,null," ",null,null,null,null,null,null,null,null,null," "]
[79,null,null," ",null,null,null,null,null,null,null,null,null," "]
[80,null,null," ",null,null,null,null,null,null,null,null,null," "]
[81,null,null," ",null,null,null,null,null,null,null,null,null," "]
[82,null,null," ",null,null,null,null,null,null,null,null,null," "]
[83,null,null," ",null,null,null,null,null,null,null,null,null," "]
[84,null,null," ",null,null,null,null,null,null,null,null,null," "]
[85,null,null," ",null,null,null,null,null,null,null,null,null," "]
[86,null,null," ",null,null,null,null,null,null,null,null,null," "]
[87,null,null," ",null,null,null,null,null,null,null,null,null," "]
[88,null,null," ",null,null,null,null,null,null,null,null,null," "]
[89,null,null," ",null,null,null,null,null,null,null,null,null," "]
[90,null,null," ",null,null,null,null,null,null,null,null,null," "]
[91,null,null," ",null,null,null,null,null,null,null,null,null," "]
[92,null,null," ",null,null,null,null,null,null,null,null,null," "]
[93,null,null," ",null,null,null,null,null,null,null,null,null," "]
[94,null,null," ",null,null,null,null,null,null,null,null,null," "]
[95,null,null," ",null,null,null,null,null,null,null,null,null," "]
[96,null,null," ",null,null,null,null,null,null,null,null,null," "]
[97,null,null," ",null,null,null,null,null,null,null,null,null," "]
[98,null,null," ",null,null,null,null,null,null,null,null,null," "]
[99,null,null," ",null,null,null,null,null,null,null,null,null," "]
[100,null,null," ",null,null,null,null,null,null,null,null,null," "]
[101,null,null," ",null,null,null,null,null,null,null,null,null," "]
[102,null,null," ",null,null,null,null,null,null,null,null,null," "]
[103,null,null," ",null,null,null,null,null,null,null,null,null," "]
[104,null,null," ",null,null,null,null,null,null,null,null,null," "]
[105,null,null," ",null,null,null,null,null,null,null,null,null," "]
[106,null,null," ",null,null,null,null,null,null,null,null,null," "]
[107,null,null," ",null,null,null,null,null,null,null,null,null," "]
[108,null,null," ",null,null,null,null,null,null,null,null,null," "]
[109,null,null," ",null,null,null,null,null,null,null,null,null," "]
[110,null,null," ",null,null,null,null,null,null,null,null,null," "]
[111,null,null," ",null,null,null,null,null,null,null,null,null," "]
[112,null,null," ",null,null,null,null,null,null,null,null,null," "]
[113,null,null," ",null,null,null,null,null,null,null,null,null," "]
[114,null,null," ",null,null,null,null,null,null,null,null,null," "]
[115,null,null," ",null,null,null,null,null,null,null,null,null," "]
[116,null,null," ",null,null,null,null,null,null,null,null,null," "]
[117,null,null,null,null,null,null,null,null,null,null,null,null," "]
[118,null,null,null,null,null,null,null,null,null,null,null,null," "]
[119,null,null,null,null,null,null,null,null,null,null,null,null," "]
[120,null,null,null,null,null,null,null,null,null,null,null,null," "]
[121,null,null,null,null,null,null,null,null,null,null,null,null," "]
[122,null,null,null,null,null,null,null,null,null,null,null,null," "]
[123,null,null,null,null,null,null,null,null,null,null,null,null," "]
[124,null,null,null,null,null,null,null,null,null,null,null,null," "]
[125,null,null,null,null,null,null,null,null,null,null,null,null," "]
[126,null,null,null,null,null,null,null,null,null,null,null,null," "]
[127,null,null,null,null,null,null,null,null,null,null,null,null," "]
[128,null,null,null,null,null,null,null,null,null,null,null,null," "]
[129,null,null,null,null,null,null,null,null,null,null,null,null," "]
[130,null,null,null,null,null,null,null,null,null,null,null,null," "]
[131,null,null,null,null,null,null,null,null,null,null,null,null," "]
[132,null,null,null,null,null,null,null,null,null,null,null,null," "]
[133,null,null,null,null,null,null,null,null,null,null,null,null," "]
[134,null,null,null,null,null,null,null,null,null,null,null,null," "]
[135,null,null,null,null,null,null,null,null,null,null,null,null," "]
[136,null,null,null,null,null,null,null,null,null,null,null,null," "]
[137,null,null,null,null,null,null,null,null,null,null,null,null," "]
[138,null,null,null,null,null,null,null,null,null,null,null,null," "]
[139]
[140]
[141]
[142]
[143]
[144]
[145]
[146]
[147]
[148]
[149]
[150]
[151]
[152]
[153]
[154]
[155]
[156]
[157]
[158]
[159]
[160]
[161]
[162]
[163]
[164]
[165]
[166]
[167]
[168]
[169]
[170]
[171]
[172]
[173]
[174]
[175]
[176]
[177]
[178]
[179]
[180]
[181]
[182]
[183]
[184]
[185]
[186]
[187]
[188]
[189]
[190]
[191]
[192]
[193]
[194]
[195]
[196]
[197]
[198]
[199]
[200]
[201]
[202]
[203]
[204]
[205]
[206]
[207]
[208]
[209]
[210]
[211]
[212]
[213]
[214]
[215]
[216]
[217]
[218]
[219]
[220]
[221]
[222]
[223]
[224]
[225]
[226]
[227]
[228]
[229]
[230]
[231]
[232]
[233]
[234]
[235]
[236]
[237]
[238]
[239]
[240]
[241]
[242]
[243]
[244]
[245]
[246]
[247]
[248]
[249]
[250]
[251]
[252]
[253]
[254]
[255]
[256]
[257]
[258]
[259]
[260]
[261]
[262]
[263]
[264]
[265]
[266]
[267]
[268]
[269]
[270]
[271]
[272]
[273]
[274]
[275]
[276]
[277]
[278]
[279]
[280]
[281]
[282]
[283]
[284]
[285]
[286]
[287]
[288]
[289]
[290]
[291]
[292]
[293]
[294]
[295]
[296]
[297]
[298]
[299]
[300]
[301]
[302]
[303]
[304]
[305]
[306]
[307]
[308]
[309]
[310]
[311]
[312]
[313]
[314]
[315]
[316]
[317]
[318]
[319]
[320]
[321]
[322]
[323]
[324]
[325]
[326]
[327]
[328]
[329]
[330]
[331]
[332]
[333]
[334]
[335]
[336]
[337]
[338]
[339]
[340]
[341]
[342]
[343]
[344]
[345]
[346]
[347]
[348]
[349]
[350]
[351]
[352]
[353]
[354]
[355]
[356]
[357]
[358]
[359]
[360]
[361]
[362]
[363]
[364]
[365]
[366]
[367]
[368]
[369]
[370]
[371]
[372]
[373]
[374]
[375]
[376]
[377]
[378]
[379]
[380]
[381]
[382]
[383]
[384]
[385]
[386]
[387]
[388]
[389]
[390]
[391]
[392]
[393]
[394]
[395]
[396]
[397]
[398]
[399]
[400]
[401]
[402]
[403]
[404]
[405]
[406]
[407]
[408]
[409]
[410]
[411]
[412]
[413]
[414]
[415]
[416]
[417]
[418]
[419]
[420]
[421]
[422]
[423]
[424]
[425]
[426]
[427]
[428]
[429]
[430]
[431]
[432]
[433]
[434]
[435]
[436]
[437]
[438]
[439]
[440]
[441]
[442]
[443]
[444]
[445]
[446]
[447]
[448]
[449]
[450]
[451]
[452]
[453]
[454]
[455]
[456]
[457]
[458]
[459]
[460]
[461]
[462]
[463]
[464]
[465]
[466]
[467]
[468]
[469]
[470]
[471]
[472]
[473]
[474]
[475]
[476]
[477]
[478]
[479]
[480]
[481]
[482]
[483]
[484]
[485]
[486]
[487]
[488]
[489]
[490]
[491]
[492]
[493]
[494]
[495]
[496]
[497]
[498]
[499]
[500]
[501]
[502]
[503]
[504]
[505]
[506]
[507]
[508]
[509]
[510]
[511]
[512]
[513]
[514]
[515]
[516]
[517]
[518]
[519]
[520]
[521]
[522]
[523]
[524]
[525]
[526]
[527]
[528]
[529]
[530]
[531]
[532]
[533]
[534]
[535]
[536]
[537]
[538]
[539]
[540]
[541]
[542]
[543]
[544]
[545]
[546]
[547]
[548]
[549]
[550]
[551]
[552]
[553]
[554]
[555]
[556]
[557]
[558]
[559]
[560]
[561]
[562]
[563]
[564]
[565]
[566]
[567]
[568]
[569]
[570]
[571]
[572]
[573]
[574]
[575]
[576]
[577]
[578]
[579]
[580]
[581]
[582]
[583]
[584]
[585]
[586]
[587]
[588]
[589]
[590]
[591]
[592]
[593]
[594]
[595]
[596]
[597]
[598]
[599]
[600]

{"sheet":"📋 Devis","index":2,"n_rows":32,"n_cols":12,"rows_kept":32,"cut":false,"hidden":false,"merged":[[15,8,16,8],[17,2,17,5],[18,2,18,5],[19,2,19,5],[1,6,2,7],[1,8,2,8],[6,1,6,3],[15,1,16,1],[15,2,16,5],[15,6,16,6],[15,7,16,7],[20,2,20,5],[23,6,23,8],[31,1,31,8],[39,1,39,8],[40,1,40,8],[32,1,32,8],[22,1,23,5]]}
[]
[null,{"$f":"'👩🏻‍🏫 Paramêtres'!I16","v":0},null,null,null,null,"DEVIS N° ",null,{"$f":"VLOOKUP(M18,'🗂 Base de données prestations'!A:V,7,FALSE)","v":{"$error":"#N/A"}}]
[null,{"$f":"'👩🏻‍🏫 Paramêtres'!I12","v":0}]
[null,{"$f":"'👩🏻‍🏫 Paramêtres'!I17","v":0}]
[null,{"$f":"'👩🏻‍🏫 Paramêtres'!I18","v":0}]
[null,{"$f":"'👩🏻‍🏫 Paramêtres'!I19&\" \"&'👩🏻‍🏫 Paramêtres'!I20","v":" "},null,null,null,null,{"$f":"IF(VLOOKUP(M18,'🗂 Base de données prestations'!A:V,4,FALSE)=0,\"\",VLOOKUP(M18,'🗂 Base de données prestations'!A:V,4,FALSE))","v":{"$error":"#N/A"}}]
[null,{"$f":"'👩🏻‍🏫 Paramêtres'!I22","v":0},null,null,null,null,{"$f":"VLOOKUP(M18,'🗂 Base de données prestations'!A:U,2,FALSE)&\" \"&VLOOKUP('📋 Devis'!M18,'🗂 Base de données prestations'!A:V,3,FALSE)","v":{"$error":"#N/A"}}]
[null,null,null,null,null,null,{"$f":"VLOOKUP(M18,'🗂 Base de données prestations'!A:U,17,FALSE)","v":{"$error":"#N/A"}}]
[null,null,null,null,null,null,{"$f":"IF(VLOOKUP(M18,'🗂 Base de données prestations'!A:U,18,FALSE)=0,\"\",VLOOKUP(M18,'🗂 Base de données prestations'!A:U,18,FALSE))","v":{"$error":"#N/A"}}]
[null,{"$f":"'👩🏻‍🏫 Paramêtres'!I21","v":0},null,null,null,null,{"$f":"IF(VLOOKUP(M18,'🗂 Base de données prestations'!A:U,19,FALSE)=0,\"\",VLOOKUP(M18,'🗂 Base de données prestations'!A:U,19,FALSE))","v":{"$error":"#N/A"}}]
[null,{"$f":"\"SIRET - \"&'👩🏻‍🏫 Paramêtres'!I23","v":"SIRET - "},null,null,null,null,{"$f":"IF(VLOOKUP(M18,'🗂 Base de données prestations'!A:V,22,FALSE)=0,\"\",VLOOKUP(M18,'🗂 Base de données prestations'!A:V,22,FALSE))","v":{"$error":"#N/A"}}]
[]
[null,null,null,null,null,null,{"$f":"\"A \"&'👩🏻‍🏫 Paramêtres'!I20&\", le\"","v":"A , le"},null,{"$f":"TODAY()","v":"2023-07-21"}]
[]
[]
[null,"Date","Libellé",null,null,null,"Qté","Prix unitaire","Total"]
[]
[null,{"$f":"IFERROR(VLOOKUP($M18,'🗂 Base de données prestations'!A:U,6,FALSE),\"\")","v":""},{"$f":"IFERROR(VLOOKUP($M18,'🗂 Base de données prestations'!A:U,12,FALSE),\"\")","v":""},null,null,null,1,{"$f":"IFERROR(VLOOKUP('📋 Devis'!$M18,'🗂 Base de données prestations'!A:U,8,FALSE),\"\")","v":""},{"$f":"G18*H18","v":{"$error":"#VALUE!"}},null,null,"Numéro BdD"]
[null,{"$f":"IFERROR(VLOOKUP($M19,'🗂 Base de données prestations'!A:U,6,FALSE),\"\")","v":""},{"$f":"IFERROR(VLOOKUP($M19,'🗂 Base de données prestations'!A:U,12,FALSE),\"\")","v":""},null,null,null,1,{"$f":"IFERROR(VLOOKUP('📋 Devis'!$M19,'🗂 Base de données prestations'!A:U,8,FALSE),\"\")","v":""},{"$f":"IFERROR(G19*H19,\"\")","v":""},null,null,"Numéro BdD"]
[null,{"$f":"IFERROR(VLOOKUP($M20,'🗂 Base de données prestations'!A:U,6,FALSE),\"\")","v":""},{"$f":"IFERROR(VLOOKUP($M20,'🗂 Base de données prestations'!A:U,12,FALSE),\"\")","v":""},null,null,null,1,{"$f":"IFERROR(VLOOKUP('📋 Devis'!$M20,'🗂 Base de données prestations'!A:U,8,FALSE),\"\")","v":""},{"$f":"IFERROR(G20*H20,\"\")","v":""},null,null,"Numéro BdD"]
[null,{"$f":"IFERROR(VLOOKUP($M21,'🗂 Base de données prestations'!A:U,6,FALSE),\"\")","v":""},{"$f":"IFERROR(VLOOKUP($M21,'🗂 Base de données prestations'!A:U,12,FALSE),\"\")","v":""},null,null,null,1,{"$f":"IFERROR(VLOOKUP('📋 Devis'!$M21,'🗂 Base de données prestations'!A:U,8,FALSE),\"\")","v":""},"",null,null,"Numéro BdD"]
[null,null,null,null,null,null,null,"TOTAL",{"$f":"SUM(I18:I21)","v":{"$error":"#VALUE!"}}]
[null,null,null,null,null,null,null,"DT ACOMPTE"]
[null,null,null,null,null,null,"TVA non applicable, article 293B du code général des impôts"]
[null,"Devis valable jusqu'au"]
[]
[null,"Signature client avec la mention \"Bon pour accord\"",null,null,null,null,"Signature vendeur"]
[]
[]
[]
[]
[null,"Dispensé d'immatriculation au registre de commerce et des sociétés (RCS) et au répertoire des métiers (RM)"]

{"sheet":"🧾 Factures","index":3,"n_rows":35,"n_cols":12,"rows_kept":35,"cut":false,"hidden":false,"merged":[[1,8,2,8],[15,8,16,8],[17,2,17,5],[18,2,18,5],[19,2,19,5],[20,2,20,5],[1,6,2,7],[15,1,16,1],[15,2,16,5],[15,6,16,6],[15,7,16,7],[6,1,6,3],[25,1,25,2],[25,6,25,8],[42,1,42,8],[43,1,43,8],[34,1,35,8]]}
[]
[null,{"$f":"'👩🏻‍🏫 Paramêtres'!I16","v":0},null,null,null,null,"FACTURE N° ",null,{"$f":"VLOOKUP(M18,'🗂 Base de données prestations'!A:V,13,FALSE)","v":{"$error":"#N/A"}}]
[null,{"$f":"'👩🏻‍🏫 Paramêtres'!I12","v":0}]
[null,{"$f":"'👩🏻‍🏫 Paramêtres'!I17","v":0}]
[null,{"$f":"'👩🏻‍🏫 Paramêtres'!I18","v":0}]
[null,{"$f":"'👩🏻‍🏫 Paramêtres'!I19&\" \"&'👩🏻‍🏫 Paramêtres'!I20","v":" "},null,null,null,null,{"$f":"IF(VLOOKUP(M18,'🗂 Base de données prestations'!A:V,4,FALSE)=0,\"\",VLOOKUP(M18,'🗂 Base de données prestations'!A:V,4,FALSE))","v":{"$error":"#N/A"}}]
[null,{"$f":"'👩🏻‍🏫 Paramêtres'!I22","v":0},null,null,null,null,{"$f":"VLOOKUP(M18,'🗂 Base de données prestations'!A:V,2,FALSE)&\" \"&VLOOKUP(M18,'🗂 Base de données prestations'!A:V,3,FALSE)","v":{"$error":"#N/A"}}]
[null,null,null,null,null,null,{"$f":"VLOOKUP(M18,'🗂 Base de données prestations'!A:U,17,FALSE)","v":{"$error":"#N/A"}}]
[null,null,null,null,null,null,{"$f":"IF(VLOOKUP(M18,'🗂 Base de données prestations'!A:U,18,FALSE)=0,\"\",VLOOKUP(M18,'🗂 Base de données prestations'!A:U,18,FALSE))","v":{"$error":"#N/A"}}]
[null,{"$f":"'👩🏻‍🏫 Paramêtres'!I21","v":0},null,null,null,null,{"$f":"IF(VLOOKUP(M18,'🗂 Base de données prestations'!A:U,19,FALSE)=0,\"\",VLOOKUP(M18,'🗂 Base de données prestations'!A:U,19,FALSE))","v":{"$error":"#N/A"}}]
[null,{"$f":"\"SIRET - \"&'👩🏻‍🏫 Paramêtres'!I23","v":"SIRET - "},null,null,null,null,{"$f":"IF(VLOOKUP(M18,'🗂 Base de données prestations'!A:V,22,FALSE)=0,\"\",VLOOKUP(M18,'🗂 Base de données prestations'!A:V,22,FALSE))","v":{"$error":"#N/A"}}]
[]
[]
[null,null,null,null,null,null,{"$f":"\"A \"&'👩🏻‍🏫 Paramêtres'!I20&\", le\"","v":"A , le"},null,{"$f":"VLOOKUP(M18,'🗂 Base de données prestations'!A:U,14,FALSE)","v":{"$error":"#N/A"}}]
[]
[null,"Date","Libellé",null,null,null,"Qté","Prix unitaire","Total"]
[]
[null,{"$f":"IFERROR(VLOOKUP($M18,'🗂 Base de données prestations'!A:U,6,FALSE),\"\")","v":""},{"$f":"IFERROR(VLOOKUP($M18,'🗂 Base de données prestations'!A:U,12,FALSE),\"\")","v":""},null,null,null,1,{"$f":"IFERROR(VLOOKUP(M18,'🗂 Base de données prestations'!A:U,15,FALSE),\"\")","v":""},{"$f":"IFERROR(G18*H18,\"\")","v":""},null,null,"Numéro BdD"]
[null,{"$f":"IFERROR(VLOOKUP($M19,'🗂 Base de données prestations'!A:U,6,FALSE),\"\")","v":""},{"$f":"IFERROR(VLOOKUP($M19,'🗂 Base de données prestations'!A:U,12,FALSE),\"\")","v":""},null,null,null,1,{"$f":"IFERROR(VLOOKUP(M19,'🗂 Base de données prestations'!A:U,15,FALSE),\"\")","v":""},{"$f":"IFERROR(G19*H19,\"\")","v":""},null,null,"Numéro BdD"]
[null,{"$f":"IFERROR(VLOOKUP($M20,'🗂 Base de données prestations'!A:U,6,FALSE),\"\")","v":""},{"$f":"IFERROR(VLOOKUP($M20,'🗂 Base de données prestations'!A:U,12,FALSE),\"\")","v":""},null,null,null,1,{"$f":"IFERROR(VLOOKUP(M20,'🗂 Base de données prestations'!A:U,15,FALSE),\"\")","v":""},"",null,null,"Numéro BdD"]
[null,{"$f":"IFERROR(VLOOKUP($M21,'🗂 Base de données prestations'!A:U,6,FALSE),\"\")","v":""},{"$f":"IFERROR(VLOOKUP($M21,'🗂 Base de données prestations'!A:U,12,FALSE),\"\")","v":""},null,null,null,1,{"$f":"IFERROR(VLOOKUP(M21,'🗂 Base de données prestations'!A:U,15,FALSE),\"\")","v":""},"",null,null,"Numéro BdD"]
[null,null,null,null,null,null,null,"TOTAL HT",{"$f":"SUM(I18:I21)","v":0}]
[null,null,null,null,null,null,null,"ACOMPTE"]
[null,null,null,null,null,null,null,"REMISE"]
[null,null,null,null,null,null,null,"NET A PAYER",{"$f":"I22-I23-I24","v":0}]
[null,null,null,null,null,null,"TVA non applicable, article 293B du code général des impôts"]
[]
[null,"Conditions de règlement :",null,"Paiement par virement sous 30 jours"]
[null,"Echéance de paiement :",null,{"$f":"I14+30","v":{"$error":"#N/A"}}]
[null,"IBAN :"]
[]
[null,"> Taux de pénalités de retard : 11% et indemnité forfaitaire de 40€HT pour frais de recouvrement"]
[null,"> Pas d'escompte pour paiement anticipé"]
[]
[null,"Dispensé d'immatriculation au registre de commerce et des sociétés (RCS) et au répertoire des métiers (RM)"]

{"sheet":"💰 Livre de recettes","index":4,"n_rows":200,"n_cols":8,"rows_kept":200,"cut":false,"hidden":false,"merged":[[1,0,1,4]]}
[null,{"$f":"'👩🏻‍🏫 Paramêtres'!K7","v":0},{"$f":"\"Livre de recettes de \"&'👩🏻‍🏫 Paramêtres'!I12","v":"Livre de recettes de "}]
[{"$f":"IF(F2-coulisses!B7=0,\"\",\"Attention le total du livre de recettes est différent du total -encaissé- dans la BdD\")","v":""},null,null,null,null,{"$f":"SUM(recettesnov[Montant])","v":0}]
[]
["N° BdD","Date d'encaissement","Mode de paiement","N°","Entreprise et Libellé","Montant",null,"Mois"]
[null,null,{"$f":"IFERROR(VLOOKUP(A5,'🗂 Base de données prestations'!A:V,16,FALSE),\"\")","v":""},{"$f":"IFERROR(VLOOKUP(A5,'🗂 Base de données prestations'!A:V,13,FALSE),\"\")","v":""},{"$f":"IFERROR(VLOOKUP($A5,'🗂 Base de données prestations'!$A:$V,2,FALSE)&\"  \"&VLOOKUP(A5,'🗂 Base de données prestations'!A:V,3,FALSE)&\" - \"&VLOOKUP(A5,'🗂 Base de données prestations'!A:V,4,FALSE)&\" - \"&VLOOKUP(A5,'🗂 Base de données prestations'!A:V,12,FALSE),\"\")","v":""},{"$f":"IFERROR(VLOOKUP($A5,'🗂 Base de données prestations'!$A:$V,15,FALSE),\" \")","v":" "},null,{"$f":"MONTH(recettesnov[[#This Row],[Date d''encaissement]])","v":1}]
[null,null,{"$f":"IFERROR(VLOOKUP(A6,'🗂 Base de données prestations'!A:V,16,FALSE),\"\")","v":""},{"$f":"IFERROR(VLOOKUP(A6,'🗂 Base de données prestations'!A:V,13,FALSE),\"\")","v":""},{"$f":"IFERROR(VLOOKUP($A6,'🗂 Base de données prestations'!$A:$V,2,FALSE)&\"  \"&VLOOKUP(A6,'🗂 Base de données prestations'!A:V,3,FALSE)&\" - \"&VLOOKUP(A6,'🗂 Base de données prestations'!A:V,4,FALSE)&\" - \"&VLOOKUP(A6,'🗂 Base de données prestations'!A:V,12,FALSE),\"\")","v":""},{"$f":"IFERROR(VLOOKUP($A6,'🗂 Base de données prestations'!$A:$V,15,FALSE),\" \")","v":" "},null,{"$f":"MONTH(recettesnov[[#This Row],[Date d''encaissement]])","v":1}]
[null,null,{"$f":"IFERROR(VLOOKUP(A7,'🗂 Base de données prestations'!A:V,16,FALSE),\"\")","v":""},{"$f":"IFERROR(VLOOKUP(A7,'🗂 Base de données prestations'!A:V,13,FALSE),\"\")","v":""},{"$f":"IFERROR(VLOOKUP($A7,'🗂 Base de données prestations'!$A:$V,2,FALSE)&\"  \"&VLOOKUP(A7,'🗂 Base de données prestations'!A:V,3,FALSE)&\" - \"&VLOOKUP(A7,'🗂 Base de données prestations'!A:V,4,FALSE)&\" - \"&VLOOKUP(A7,'🗂 Base de données prestations'!A:V,12,FALSE),\"\")","v":""},{"$f":"IFERROR(VLOOKUP($A7,'🗂 Base de données prestations'!$A:$V,15,FALSE),\" \")","v":" "},null,{"$f":"MONTH(recettesnov[[#This Row],[Date d''encaissement]])","v":1}]
[null,null,{"$f":"IFERROR(VLOOKUP(A8,'🗂 Base de données prestations'!A:V,16,FALSE),\"\")","v":""},{"$f":"IFERROR(VLOOKUP(A8,'🗂 Base de données prestations'!A:V,13,FALSE),\"\")","v":""},{"$f":"IFERROR(VLOOKUP($A8,'🗂 Base de données prestations'!$A:$V,2,FALSE)&\"  \"&VLOOKUP(A8,'🗂 Base de données prestations'!A:V,3,FALSE)&\" - \"&VLOOKUP(A8,'🗂 Base de données prestations'!A:V,4,FALSE)&\" - \"&VLOOKUP(A8,'🗂 Base de données prestations'!A:V,12,FALSE),\"\")","v":""},{"$f":"IFERROR(VLOOKUP($A8,'🗂 Base de données prestations'!$A:$V,15,FALSE),\" \")","v":" "},null,{"$f":"MONTH(recettesnov[[#This Row],[Date d''encaissement]])","v":1}]
[null,null,{"$f":"IFERROR(VLOOKUP(A9,'🗂 Base de données prestations'!A:V,16,FALSE),\"\")","v":""},{"$f":"IFERROR(VLOOKUP(A9,'🗂 Base de données prestations'!A:V,13,FALSE),\"\")","v":""},{"$f":"IFERROR(VLOOKUP($A9,'🗂 Base de données prestations'!$A:$V,2,FALSE)&\"  \"&VLOOKUP(A9,'🗂 Base de données prestations'!A:V,3,FALSE)&\" - \"&VLOOKUP(A9,'🗂 Base de données prestations'!A:V,4,FALSE)&\" - \"&VLOOKUP(A9,'🗂 Base de données prestations'!A:V,12,FALSE),\"\")","v":""},{"$f":"IFERROR(VLOOKUP($A9,'🗂 Base de données prestations'!$A:$V,15,FALSE),\" \")","v":" "},null,{"$f":"MONTH(recettesnov[[#This Row],[Date d''encaissement]])","v":1}]
[null,null,{"$f":"IFERROR(VLOOKUP(A10,'🗂 Base de données prestations'!A:V,16,FALSE),\"\")","v":""},{"$f":"IFERROR(VLOOKUP(A10,'🗂 Base de données prestations'!A:V,13,FALSE),\"\")","v":""},{"$f":"IFERROR(VLOOKUP($A10,'🗂 Base de données prestations'!$A:$V,2,FALSE)&\"  \"&VLOOKUP(A10,'🗂 Base de données prestations'!A:V,3,FALSE)&\" - \"&VLOOKUP(A10,'🗂 Base de données prestations'!A:V,4,FALSE)&\" - \"&VLOOKUP(A10,'🗂 Base de données prestations'!A:V,12,FALSE),\"\")","v":""},{"$f":"IFERROR(VLOOKUP($A10,'🗂 Base de données prestations'!$A:$V,15,FALSE),\" \")","v":" "},null,{"$f":"MONTH(recettesnov[[#This Row],[Date d''encaissement]])","v":1}]
[null,null,{"$f":"IFERROR(VLOOKUP(A11,'🗂 Base de données prestations'!A:V,16,FALSE),\"\")","v":""},{"$f":"IFERROR(VLOOKUP(A11,'🗂 Base de données prestations'!A:V,13,FALSE),\"\")","v":""},{"$f":"IFERROR(VLOOKUP($A11,'🗂 Base de données prestations'!$A:$V,2,FALSE)&\"  \"&VLOOKUP(A11,'🗂 Base de données prestations'!A:V,3,FALSE)&\" - \"&VLOOKUP(A11,'🗂 Base de données prestations'!A:V,4,FALSE)&\" - \"&VLOOKUP(A11,'🗂 Base de données prestations'!A:V,12,FALSE),\"\")","v":""},{"$f":"IFERROR(VLOOKUP($A11,'🗂 Base de données prestations'!$A:$V,15,FALSE),\" \")","v":" "},null,{"$f":"MONTH(recettesnov[[#This Row],[Date d''encaissement]])","v":1}]
[null,null,{"$f":"IFERROR(VLOOKUP(A12,'🗂 Base de données prestations'!A:V,16,FALSE),\"\")","v":""},{"$f":"IFERROR(VLOOKUP(A12,'🗂 Base de données prestations'!A:V,13,FALSE),\"\")","v":""},{"$f":"IFERROR(VLOOKUP($A12,'🗂 Base de données prestations'!$A:$V,2,FALSE)&\"  \"&VLOOKUP(A12,'🗂 Base de données prestations'!A:V,3,FALSE)&\" - \"&VLOOKUP(A12,'🗂 Base de données prestations'!A:V,4,FALSE)&\" - \"&VLOOKUP(A12,'🗂 Base de données prestations'!A:V,12,FALSE),\"\")","v":""},{"$f":"IFERROR(VLOOKUP($A12,'🗂 Base de données prestations'!$A:$V,15,FALSE),\" \")","v":" "},null,{"$f":"MONTH(recettesnov[[#This Row],[Date d''encaissement]])","v":1}]
[null,null,{"$f":"IFERROR(VLOOKUP(A13,'🗂 Base de données prestations'!A:V,16,FALSE),\"\")","v":""},{"$f":"IFERROR(VLOOKUP(A13,'🗂 Base de données prestations'!A:V,13,FALSE),\"\")","v":""},{"$f":"IFERROR(VLOOKUP($A13,'🗂 Base de données prestations'!$A:$V,2,FALSE)&\"  \"&VLOOKUP(A13,'🗂 Base de données prestations'!A:V,3,FALSE)&\" - \"&VLOOKUP(A13,'🗂 Base de données prestations'!A:V,4,FALSE)&\" - \"&VLOOKUP(A13,'🗂 Base de données prestations'!A:V,12,FALSE),\"\")","v":""},{"$f":"IFERROR(VLOOKUP($A13,'🗂 Base de données prestations'!$A:$V,15,FALSE),\" \")","v":" "},null,{"$f":"MONTH(recettesnov[[#This Row],[Date d''encaissement]])","v":1}]
[null,null,{"$f":"IFERROR(VLOOKUP(A14,'🗂 Base de données prestations'!A:V,16,FALSE),\"\")","v":""},{"$f":"IFERROR(VLOOKUP(A14,'🗂 Base de données prestations'!A:V,13,FALSE),\"\")","v":""},{"$f":"IFERROR(VLOOKUP($A14,'🗂 Base de données prestations'!$A:$V,2,FALSE)&\"  \"&VLOOKUP(A14,'🗂 Base de données prestations'!A:V,3,FALSE)&\" - \"&VLOOKUP(A14,'🗂 Base de données prestations'!A:V,4,FALSE)&\" - \"&VLOOKUP(A14,'🗂 Base de données prestations'!A:V,12,FALSE),\"\")","v":""},{"$f":"IFERROR(VLOOKUP($A14,'🗂 Base de données prestations'!$A:$V,15,FALSE),\" \")","v":" "},null,{"$f":"MONTH(recettesnov[[#This Row],[Date d''encaissement]])","v":1}]
[null,null,{"$f":"IFERROR(VLOOKUP(A15,'🗂 Base de données prestations'!A:V,16,FALSE),\"\")","v":""},{"$f":"IFERROR(VLOOKUP(A15,'🗂 Base de données prestations'!A:V,13,FALSE),\"\")","v":""},{"$f":"IFERROR(VLOOKUP($A15,'🗂 Base de données prestations'!$A:$V,2,FALSE)&\"  \"&VLOOKUP(A15,'🗂 Base de données prestations'!A:V,3,FALSE)&\" - \"&VLOOKUP(A15,'🗂 Base de données prestations'!A:V,4,FALSE)&\" - \"&VLOOKUP(A15,'🗂 Base de données prestations'!A:V,12,FALSE),\"\")","v":""},{"$f":"IFERROR(VLOOKUP($A15,'🗂 Base de données prestations'!$A:$V,15,FALSE),\" \")","v":" "},null,{"$f":"MONTH(recettesnov[[#This Row],[Date d''encaissement]])","v":1}]
[null,null,{"$f":"IFERROR(VLOOKUP(A16,'🗂 Base de données prestations'!A:V,16,FALSE),\"\")","v":""},{"$f":"IFERROR(VLOOKUP(A16,'🗂 Base de données prestations'!A:V,13,FALSE),\"\")","v":""},{"$f":"IFERROR(VLOOKUP($A16,'🗂 Base de données prestations'!$A:$V,2,FALSE)&\"  \"&VLOOKUP(A16,'🗂 Base de données prestations'!A:V,3,FALSE)&\" - \"&VLOOKUP(A16,'🗂 Base de données prestations'!A:V,4,FALSE)&\" - \"&VLOOKUP(A16,'🗂 Base de données prestations'!A:V,12,FALSE),\"\")","v":""},{"$f":"IFERROR(VLOOKUP($A16,'🗂 Base de données prestations'!$A:$V,15,FALSE),\" \")","v":" "},null,{"$f":"MONTH(recettesnov[[#This Row],[Date d''encaissement]])","v":1}]
[null,null,{"$f":"IFERROR(VLOOKUP(A17,'🗂 Base de données prestations'!A:V,16,FALSE),\"\")","v":""},{"$f":"IFERROR(VLOOKUP(A17,'🗂 Base de données prestations'!A:V,13,FALSE),\"\")","v":""},{"$f":"IFERROR(VLOOKUP($A17,'🗂 Base de données prestations'!$A:$V,2,FALSE)&\"  \"&VLOOKUP(A17,'🗂 Base de données prestations'!A:V,3,FALSE)&\" - \"&VLOOKUP(A17,'🗂 Base de données prestations'!A:V,4,FALSE)&\" - \"&VLOOKUP(A17,'🗂 Base de données prestations'!A:V,12,FALSE),\"\")","v":""},{"$f":"IFERROR(VLOOKUP($A17,'🗂 Base de données prestations'!$A:$V,15,FALSE),\" \")","v":" "},null,{"$f":"MONTH(recettesnov[[#This Row],[Date d''encaissement]])","v":1}]
[null,null,{"$f":"IFERROR(VLOOKUP(A18,'🗂 Base de données prestations'!A:V,16,FALSE),\"\")","v":""},{"$f":"IFERROR(VLOOKUP(A18,'🗂 Base de données prestations'!A:V,13,FALSE),\"\")","v":""},{"$f":"IFERROR(VLOOKUP($A18,'🗂 Base de données prestations'!$A:$V,2,FALSE)&\"  \"&VLOOKUP(A18,'🗂 Base de données prestations'!A:V,3,FALSE)&\" - \"&VLOOKUP(A18,'🗂 Base de données prestations'!A:V,4,FALSE)&\" - \"&VLOOKUP(A18,'🗂 Base de données prestations'!A:V,12,FALSE),\"\")","v":""},{"$f":"IFERROR(VLOOKUP($A18,'🗂 Base de données prestations'!$A:$V,15,FALSE),\" \")","v":" "},null,{"$f":"MONTH(recettesnov[[#This Row],[Date d''encaissement]])","v":1}]
[null,null,{"$f":"IFERROR(VLOOKUP(A19,'🗂 Base de données prestations'!A:V,16,FALSE),\"\")","v":""},{"$f":"IFERROR(VLOOKUP(A19,'🗂 Base de données prestations'!A:V,13,FALSE),\"\")","v":""},{"$f":"IFERROR(VLOOKUP($A19,'🗂 Base de données prestations'!$A:$V,2,FALSE)&\"  \"&VLOOKUP(A19,'🗂 Base de données prestations'!A:V,3,FALSE)&\" - \"&VLOOKUP(A19,'🗂 Base de données prestations'!A:V,4,FALSE)&\" - \"&VLOOKUP(A19,'🗂 Base de données prestations'!A:V,12,FALSE),\"\")","v":""},{"$f":"IFERROR(VLOOKUP($A19,'🗂 Base de données prestations'!$A:$V,15,FALSE),\" \")","v":" "},null,{"$f":"MONTH(recettesnov[[#This Row],[Date d''encaissement]])","v":1}]
[null,null,{"$f":"IFERROR(VLOOKUP(A20,'🗂 Base de données prestations'!A:V,16,FALSE),\"\")","v":""},{"$f":"IFERROR(VLOOKUP(A20,'🗂 Base de données prestations'!A:V,13,FALSE),\"\")","v":""},{"$f":"IFERROR(VLOOKUP($A20,'🗂 Base de données prestations'!$A:$V,2,FALSE)&\"  \"&VLOOKUP(A20,'🗂 Base de données prestations'!A:V,3,FALSE)&\" - \"&VLOOKUP(A20,'🗂 Base de données prestations'!A:V,4,FALSE)&\" - \"&VLOOKUP(A20,'🗂 Base de données prestations'!A:V,12,FALSE),\"\")","v":""},{"$f":"IFERROR(VLOOKUP($A20,'🗂 Base de données prestations'!$A:$V,15,FALSE),\" \")","v":" "},null,{"$f":"MONTH(recettesnov[[#This Row],[Date d''encaissement]])","v":1}]
[null,null,{"$f":"IFERROR(VLOOKUP(A21,'🗂 Base de données prestations'!A:V,16,FALSE),\"\")","v":""},{"$f":"IFERROR(VLOOKUP(A21,'🗂 Base de données prestations'!A:V,13,FALSE),\"\")","v":""},{"$f":"IFERROR(VLOOKUP($A21,'🗂 Base de données prestations'!$A:$V,2,FALSE)&\"  \"&VLOOKUP(A21,'🗂 Base de données prestations'!A:V,3,FALSE)&\" - \"&VLOOKUP(A21,'🗂 Base de données prestations'!A:V,4,FALSE)&\" - \"&VLOOKUP(A21,'🗂 Base de données prestations'!A:V,12,FALSE),\"\")","v":""},{"$f":"IFERROR(VLOOKUP($A21,'🗂 Base de données prestations'!$A:$V,15,FALSE),\" \")","v":" "},null,{"$f":"MONTH(recettesnov[[#This Row],[Date d''encaissement]])","v":1}]
[null,null,{"$f":"IFERROR(VLOOKUP(A22,'🗂 Base de données prestations'!A:V,16,FALSE),\"\")","v":""},{"$f":"IFERROR(VLOOKUP(A22,'🗂 Base de données prestations'!A:V,13,FALSE),\"\")","v":""},{"$f":"IFERROR(VLOOKUP($A22,'🗂 Base de données prestations'!$A:$V,2,FALSE)&\"  \"&VLOOKUP(A22,'🗂 Base de données prestations'!A:V,3,FALSE)&\" - \"&VLOOKUP(A22,'🗂 Base de données prestations'!A:V,4,FALSE)&\" - \"&VLOOKUP(A22,'🗂 Base de données prestations'!A:V,12,FALSE),\"\")","v":""},{"$f":"IFERROR(VLOOKUP($A22,'🗂 Base de données prestations'!$A:$V,15,FALSE),\" \")","v":" "},null,{"$f":"MONTH(recettesnov[[#This Row],[Date d''encaissement]])","v":1}]
[null,null,{"$f":"IFERROR(VLOOKUP(A23,'🗂 Base de données prestations'!A:V,16,FALSE),\"\")","v":""},{"$f":"IFERROR(VLOOKUP(A23,'🗂 Base de données prestations'!A:V,13,FALSE),\"\")","v":""},{"$f":"IFERROR(VLOOKUP($A23,'🗂 Base de données prestations'!$A:$V,2,FALSE)&\"  \"&VLOOKUP(A23,'🗂 Base de données prestations'!A:V,3,FALSE)&\" - \"&VLOOKUP(A23,'🗂 Base de données prestations'!A:V,4,FALSE)&\" - \"&VLOOKUP(A23,'🗂 Base de données prestations'!A:V,12,FALSE),\"\")","v":""},{"$f":"IFERROR(VLOOKUP($A23,'🗂 Base de données prestations'!$A:$V,15,FALSE),\" \")","v":" "},null,{"$f":"MONTH(recettesnov[[#This Row],[Date d''encaissement]])","v":1}]
[null,null,{"$f":"IFERROR(VLOOKUP(A24,'🗂 Base de données prestations'!A:V,16,FALSE),\"\")","v":""},{"$f":"IFERROR(VLOOKUP(A24,'🗂 Base de données prestations'!A:V,13,FALSE),\"\")","v":""},{"$f":"IFERROR(VLOOKUP($A24,'🗂 Base de données prestations'!$A:$V,2,FALSE)&\"  \"&VLOOKUP(A24,'🗂 Base de données prestations'!A:V,3,FALSE)&\" - \"&VLOOKUP(A24,'🗂 Base de données prestations'!A:V,4,FALSE)&\" - \"&VLOOKUP(A24,'🗂 Base de données prestations'!A:V,12,FALSE),\"\")","v":""},{"$f":"IFERROR(VLOOKUP($A24,'🗂 Base de données prestations'!$A:$V,15,FALSE),\" \")","v":" "},null,{"$f":"MONTH(recettesnov[[#This Row],[Date d''encaissement]])","v":1}]
[null,null,{"$f":"IFERROR(VLOOKUP(A25,'🗂 Base de données prestations'!A:V,16,FALSE),\"\")","v":""},{"$f":"IFERROR(VLOOKUP(A25,'🗂 Base de données prestations'!A:V,13,FALSE),\"\")","v":""},{"$f":"IFERROR(VLOOKUP($A25,'🗂 Base de données prestations'!$A:$V,2,FALSE)&\"  \"&VLOOKUP(A25,'🗂 Base de données prestations'!A:V,3,FALSE)&\" - \"&VLOOKUP(A25,'🗂 Base de données prestations'!A:V,4,FALSE)&\" - \"&VLOOKUP(A25,'🗂 Base de données prestations'!A:V,12,FALSE),\"\")","v":""},{"$f":"IFERROR(VLOOKUP($A25,'🗂 Base de données prestations'!$A:$V,15,FALSE),\" \")","v":" "},null,{"$f":"MONTH(recettesnov[[#This Row],[Date d''encaissement]])","v":1}]
[null,null,{"$f":"IFERROR(VLOOKUP(A26,'🗂 Base de données prestations'!A:V,16,FALSE),\"\")","v":""},{"$f":"IFERROR(VLOOKUP(A26,'🗂 Base de données prestations'!A:V,13,FALSE),\"\")","v":""},{"$f":"IFERROR(VLOOKUP($A26,'🗂 Base de données prestations'!$A:$V,2,FALSE)&\"  \"&VLOOKUP(A26,'🗂 Base de données prestations'!A:V,3,FALSE)&\" - \"&VLOOKUP(A26,'🗂 Base de données prestations'!A:V,4,FALSE)&\" - \"&VLOOKUP(A26,'🗂 Base de données prestations'!A:V,12,FALSE),\"\")","v":""},{"$f":"IFERROR(VLOOKUP($A26,'🗂 Base de données prestations'!$A:$V,15,FALSE),\" \")","v":" "},null,{"$f":"MONTH(recettesnov[[#This Row],[Date d''encaissement]])","v":1}]
[null,null,{"$f":"IFERROR(VLOOKUP(A27,'🗂 Base de données prestations'!A:V,16,FALSE),\"\")","v":""},{"$f":"IFERROR(VLOOKUP(A27,'🗂 Base de données prestations'!A:V,13,FALSE),\"\")","v":""},{"$f":"IFERROR(VLOOKUP($A27,'🗂 Base de données prestations'!$A:$V,2,FALSE)&\"  \"&VLOOKUP(A27,'🗂 Base de données prestations'!A:V,3,FALSE)&\" - \"&VLOOKUP(A27,'🗂 Base de données prestations'!A:V,4,FALSE)&\" - \"&VLOOKUP(A27,'🗂 Base de données prestations'!A:V,12,FALSE),\"\")","v":""},{"$f":"IFERROR(VLOOKUP($A27,'🗂 Base de données prestations'!$A:$V,15,FALSE),\" \")","v":" "},null,{"$f":"MONTH(recettesnov[[#This Row],[Date d''encaissement]])","v":1}]
[null,null,{"$f":"IFERROR(VLOOKUP(A28,'🗂 Base de données prestations'!A:V,16,FALSE),\"\")","v":""},{"$f":"IFERROR(VLOOKUP(A28,'🗂 Base de données prestations'!A:V,13,FALSE),\"\")","v":""},{"$f":"IFERROR(VLOOKUP($A28,'🗂 Base de données prestations'!$A:$V,2,FALSE)&\"  \"&VLOOKUP(A28,'🗂 Base de données prestations'!A:V,3,FALSE)&\" - \"&VLOOKUP(A28,'🗂 Base de données prestations'!A:V,4,FALSE)&\" - \"&VLOOKUP(A28,'🗂 Base de données prestations'!A:V,12,FALSE),\"\")","v":""},{"$f":"IFERROR(VLOOKUP($A28,'🗂 Base de données prestations'!$A:$V,15,FALSE),\" \")","v":" "},null,{"$f":"MONTH(recettesnov[[#This Row],[Date d''encaissement]])","v":1}]
[null,null,{"$f":"IFERROR(VLOOKUP(A29,'🗂 Base de données prestations'!A:V,16,FALSE),\"\")","v":""},{"$f":"IFERROR(VLOOKUP(A29,'🗂 Base de données prestations'!A:V,13,FALSE),\"\")","v":""},{"$f":"IFERROR(VLOOKUP($A29,'🗂 Base de données prestations'!$A:$V,2,FALSE)&\"  \"&VLOOKUP(A29,'🗂 Base de données prestations'!A:V,3,FALSE)&\" - \"&VLOOKUP(A29,'🗂 Base de données prestations'!A:V,4,FALSE)&\" - \"&VLOOKUP(A29,'🗂 Base de données prestations'!A:V,12,FALSE),\"\")","v":""},{"$f":"IFERROR(VLOOKUP($A29,'🗂 Base de données prestations'!$A:$V,15,FALSE),\" \")","v":" "},null,{"$f":"MONTH(recettesnov[[#This Row],[Date d''encaissement]])","v":1}]
[null,null,{"$f":"IFERROR(VLOOKUP(A30,'🗂 Base de données prestations'!A:V,16,FALSE),\"\")","v":""},{"$f":"IFERROR(VLOOKUP(A30,'🗂 Base de données prestations'!A:V,13,FALSE),\"\")","v":""},{"$f":"IFERROR(VLOOKUP($A30,'🗂 Base de données prestations'!$A:$V,2,FALSE)&\"  \"&VLOOKUP(A30,'🗂 Base de données prestations'!A:V,3,FALSE)&\" - \"&VLOOKUP(A30,'🗂 Base de données prestations'!A:V,4,FALSE)&\" - \"&VLOOKUP(A30,'🗂 Base de données prestations'!A:V,12,FALSE),\"\")","v":""},{"$f":"IFERROR(VLOOKUP($A30,'🗂 Base de données prestations'!$A:$V,15,FALSE),\" \")","v":" "},null,{"$f":"MONTH(recettesnov[[#This Row],[Date d''encaissement]])","v":1}]
[null,null,{"$f":"IFERROR(VLOOKUP(A31,'🗂 Base de données prestations'!A:V,16,FALSE),\"\")","v":""},{"$f":"IFERROR(VLOOKUP(A31,'🗂 Base de données prestations'!A:V,13,FALSE),\"\")","v":""},{"$f":"IFERROR(VLOOKUP($A31,'🗂 Base de données prestations'!$A:$V,2,FALSE)&\"  \"&VLOOKUP(A31,'🗂 Base de données prestations'!A:V,3,FALSE)&\" - \"&VLOOKUP(A31,'🗂 Base de données prestations'!A:V,4,FALSE)&\" - \"&VLOOKUP(A31,'🗂 Base de données prestations'!A:V,12,FALSE),\"\")","v":""},{"$f":"IFERROR(VLOOKUP($A31,'🗂 Base de données prestations'!$A:$V,15,FALSE),\" \")","v":" "},null,{"$f":"MONTH(recettesnov[[#This Row],[Date d''encaissement]])","v":1}]
[null,null,{"$f":"IFERROR(VLOOKUP(A32,'🗂 Base de données prestations'!A:V,16,FALSE),\"\")","v":""},{"$f":"IFERROR(VLOOKUP(A32,'🗂 Base de données prestations'!A:V,13,FALSE),\"\")","v":""},{"$f":"IFERROR(VLOOKUP($A32,'🗂 Base de données prestations'!$A:$V,2,FALSE)&\"  \"&VLOOKUP(A32,'🗂 Base de données prestations'!A:V,3,FALSE)&\" - \"&VLOOKUP(A32,'🗂 Base de données prestations'!A:V,4,FALSE)&\" - \"&VLOOKUP(A32,'🗂 Base de données prestations'!A:V,12,FALSE),\"\")","v":""},{"$f":"IFERROR(VLOOKUP($A32,'🗂 Base de données prestations'!$A:$V,15,FALSE),\" \")","v":" "},null,{"$f":"MONTH(recettesnov[[#This Row],[Date d''encaissement]])","v":1}]
[null,null,{"$f":"IFERROR(VLOOKUP(A33,'🗂 Base de données prestations'!A:V,16,FALSE),\"\")","v":""},{"$f":"IFERROR(VLOOKUP(A33,'🗂 Base de données prestations'!A:V,13,FALSE),\"\")","v":""},{"$f":"IFERROR(VLOOKUP($A33,'🗂 Base de données prestations'!$A:$V,2,FALSE)&\"  \"&VLOOKUP(A33,'🗂 Base de données prestations'!A:V,3,FALSE)&\" - \"&VLOOKUP(A33,'🗂 Base de données prestations'!A:V,4,FALSE)&\" - \"&VLOOKUP(A33,'🗂 Base de données prestations'!A:V,12,FALSE),\"\")","v":""},{"$f":"IFERROR(VLOOKUP($A33,'🗂 Base de données prestations'!$A:$V,15,FALSE),\" \")","v":" "},null,{"$f":"MONTH(recettesnov[[#This Row],[Date d''encaissement]])","v":1}]
[null,null,{"$f":"IFERROR(VLOOKUP(A34,'🗂 Base de données prestations'!A:V,16,FALSE),\"\")","v":""},{"$f":"IFERROR(VLOOKUP(A34,'🗂 Base de données prestations'!A:V,13,FALSE),\"\")","v":""},{"$f":"IFERROR(VLOOKUP($A34,'🗂 Base de données prestations'!$A:$V,2,FALSE)&\"  \"&VLOOKUP(A34,'🗂 Base de données prestations'!A:V,3,FALSE)&\" - \"&VLOOKUP(A34,'🗂 Base de données prestations'!A:V,4,FALSE)&\" - \"&VLOOKUP(A34,'🗂 Base de données prestations'!A:V,12,FALSE),\"\")","v":""},{"$f":"IFERROR(VLOOKUP($A34,'🗂 Base de données prestations'!$A:$V,15,FALSE),\" \")","v":" "},null,{"$f":"MONTH(recettesnov[[#This Row],[Date d''encaissement]])","v":1}]
[null,null,{"$f":"IFERROR(VLOOKUP(A35,'🗂 Base de données prestations'!A:V,16,FALSE),\"\")","v":""},{"$f":"IFERROR(VLOOKUP(A35,'🗂 Base de données prestations'!A:V,13,FALSE),\"\")","v":""},{"$f":"IFERROR(VLOOKUP($A35,'🗂 Base de données prestations'!$A:$V,2,FALSE)&\"  \"&VLOOKUP(A35,'🗂 Base de données prestations'!A:V,3,FALSE)&\" - \"&VLOOKUP(A35,'🗂 Base de données prestations'!A:V,4,FALSE)&\" - \"&VLOOKUP(A35,'🗂 Base de données prestations'!A:V,12,FALSE),\"\")","v":""},{"$f":"IFERROR(VLOOKUP($A35,'🗂 Base de données prestations'!$A:$V,15,FALSE),\" \")","v":" "},null,{"$f":"MONTH(recettesnov[[#This Row],[Date d''encaissement]])","v":1}]
[null,null,{"$f":"IFERROR(VLOOKUP(A36,'🗂 Base de données prestations'!A:V,16,FALSE),\"\")","v":""},{"$f":"IFERROR(VLOOKUP(A36,'🗂 Base de données prestations'!A:V,13,FALSE),\"\")","v":""},{"$f":"IFERROR(VLOOKUP($A36,'🗂 Base de données prestations'!$A:$V,2,FALSE)&\"  \"&VLOOKUP(A36,'🗂 Base de données prestations'!A:V,3,FALSE)&\" - \"&VLOOKUP(A36,'🗂 Base de données prestations'!A:V,4,FALSE)&\" - \"&VLOOKUP(A36,'🗂 Base de données prestations'!A:V,12,FALSE),\"\")","v":""},{"$f":"IFERROR(VLOOKUP($A36,'🗂 Base de données prestations'!$A:$V,15,FALSE),\" \")","v":" "},null,{"$f":"MONTH(recettesnov[[#This Row],[Date d''encaissement]])","v":1}]
[null,null,{"$f":"IFERROR(VLOOKUP(A37,'🗂 Base de données prestations'!A:V,16,FALSE),\"\")","v":""},{"$f":"IFERROR(VLOOKUP(A37,'🗂 Base de données prestations'!A:V,13,FALSE),\"\")","v":""},{"$f":"IFERROR(VLOOKUP($A37,'🗂 Base de données prestations'!$A:$V,2,FALSE)&\"  \"&VLOOKUP(A37,'🗂 Base de données prestations'!A:V,3,FALSE)&\" - \"&VLOOKUP(A37,'🗂 Base de données prestations'!A:V,4,FALSE)&\" - \"&VLOOKUP(A37,'🗂 Base de données prestations'!A:V,12,FALSE),\"\")","v":""},{"$f":"IFERROR(VLOOKUP($A37,'🗂 Base de données prestations'!$A:$V,15,FALSE),\" \")","v":" "},null,{"$f":"MONTH(recettesnov[[#This Row],[Date d''encaissement]])","v":1}]
[null,null,{"$f":"IFERROR(VLOOKUP(A38,'🗂 Base de données prestations'!A:V,16,FALSE),\"\")","v":""},{"$f":"IFERROR(VLOOKUP(A38,'🗂 Base de données prestations'!A:V,13,FALSE),\"\")","v":""},{"$f":"IFERROR(VLOOKUP($A38,'🗂 Base de données prestations'!$A:$V,2,FALSE)&\"  \"&VLOOKUP(A38,'🗂 Base de données prestations'!A:V,3,FALSE)&\" - \"&VLOOKUP(A38,'🗂 Base de données prestations'!A:V,4,FALSE)&\" - \"&VLOOKUP(A38,'🗂 Base de données prestations'!A:V,12,FALSE),\"\")","v":""},{"$f":"IFERROR(VLOOKUP($A38,'🗂 Base de données prestations'!$A:$V,15,FALSE),\" \")","v":" "},null,{"$f":"MONTH(recettesnov[[#This Row],[Date d''encaissement]])","v":1}]
[null,null,{"$f":"IFERROR(VLOOKUP(A39,'🗂 Base de données prestations'!A:V,16,FALSE),\"\")","v":""},{"$f":"IFERROR(VLOOKUP(A39,'🗂 Base de données prestations'!A:V,13,FALSE),\"\")","v":""},{"$f":"IFERROR(VLOOKUP($A39,'🗂 Base de données prestations'!$A:$V,2,FALSE)&\"  \"&VLOOKUP(A39,'🗂 Base de données prestations'!A:V,3,FALSE)&\" - \"&VLOOKUP(A39,'🗂 Base de données prestations'!A:V,4,FALSE)&\" - \"&VLOOKUP(A39,'🗂 Base de données prestations'!A:V,12,FALSE),\"\")","v":""},{"$f":"IFERROR(VLOOKUP($A39,'🗂 Base de données prestations'!$A:$V,15,FALSE),\" \")","v":" "},null,{"$f":"MONTH(recettesnov[[#This Row],[Date d''encaissement]])","v":1}]
[null,null,{"$f":"IFERROR(VLOOKUP(A40,'🗂 Base de données prestations'!A:V,16,FALSE),\"\")","v":""},{"$f":"IFERROR(VLOOKUP(A40,'🗂 Base de données prestations'!A:V,13,FALSE),\"\")","v":""},{"$f":"IFERROR(VLOOKUP($A40,'🗂 Base de données prestations'!$A:$V,2,FALSE)&\"  \"&VLOOKUP(A40,'🗂 Base de données prestations'!A:V,3,FALSE)&\" - \"&VLOOKUP(A40,'🗂 Base de données prestations'!A:V,4,FALSE)&\" - \"&VLOOKUP(A40,'🗂 Base de données prestations'!A:V,12,FALSE),\"\")","v":""},{"$f":"IFERROR(VLOOKUP($A40,'🗂 Base de données prestations'!$A:$V,15,FALSE),\" \")","v":" "},null,{"$f":"MONTH(recettesnov[[#This Row],[Date d''encaissement]])","v":1}]
[null,null,{"$f":"IFERROR(VLOOKUP(A41,'🗂 Base de données prestations'!A:V,16,FALSE),\"\")","v":""},{"$f":"IFERROR(VLOOKUP(A41,'🗂 Base de données prestations'!A:V,13,FALSE),\"\")","v":""},{"$f":"IFERROR(VLOOKUP($A41,'🗂 Base de données prestations'!$A:$V,2,FALSE)&\"  \"&VLOOKUP(A41,'🗂 Base de données prestations'!A:V,3,FALSE)&\" - \"&VLOOKUP(A41,'🗂 Base de données prestations'!A:V,4,FALSE)&\" - \"&VLOOKUP(A41,'🗂 Base de données prestations'!A:V,12,FALSE),\"\")","v":""},{"$f":"IFERROR(VLOOKUP($A41,'🗂 Base de données prestations'!$A:$V,15,FALSE),\" \")","v":" "},null,{"$f":"MONTH(recettesnov[[#This Row],[Date d''encaissement]])","v":1}]
[null,null,{"$f":"IFERROR(VLOOKUP(A42,'🗂 Base de données prestations'!A:V,16,FALSE),\"\")","v":""},{"$f":"IFERROR(VLOOKUP(A42,'🗂 Base de données prestations'!A:V,13,FALSE),\"\")","v":""},{"$f":"IFERROR(VLOOKUP($A42,'🗂 Base de données prestations'!$A:$V,2,FALSE)&\"  \"&VLOOKUP(A42,'🗂 Base de données prestations'!A:V,3,FALSE)&\" - \"&VLOOKUP(A42,'🗂 Base de données prestations'!A:V,4,FALSE)&\" - \"&VLOOKUP(A42,'🗂 Base de données prestations'!A:V,12,FALSE),\"\")","v":""},{"$f":"IFERROR(VLOOKUP($A42,'🗂 Base de données prestations'!$A:$V,15,FALSE),\" \")","v":" "},null,{"$f":"MONTH(recettesnov[[#This Row],[Date d''encaissement]])","v":1}]
[null,null,{"$f":"IFERROR(VLOOKUP(A43,'🗂 Base de données prestations'!A:V,16,FALSE),\"\")","v":""},{"$f":"IFERROR(VLOOKUP(A43,'🗂 Base de données prestations'!A:V,13,FALSE),\"\")","v":""},{"$f":"IFERROR(VLOOKUP($A43,'🗂 Base de données prestations'!$A:$V,2,FALSE)&\"  \"&VLOOKUP(A43,'🗂 Base de données prestations'!A:V,3,FALSE)&\" - \"&VLOOKUP(A43,'🗂 Base de données prestations'!A:V,4,FALSE)&\" - \"&VLOOKUP(A43,'🗂 Base de données prestations'!A:V,12,FALSE),\"\")","v":""},{"$f":"IFERROR(VLOOKUP($A43,'🗂 Base de données prestations'!$A:$V,15,FALSE),\" \")","v":" "},null,{"$f":"MONTH(recettesnov[[#This Row],[Date d''encaissement]])","v":1}]
[null,null,{"$f":"IFERROR(VLOOKUP(A44,'🗂 Base de données prestations'!A:V,16,FALSE),\"\")","v":""},{"$f":"IFERROR(VLOOKUP(A44,'🗂 Base de données prestations'!A:V,13,FALSE),\"\")","v":""},{"$f":"IFERROR(VLOOKUP($A44,'🗂 Base de données prestations'!$A:$V,2,FALSE)&\"  \"&VLOOKUP(A44,'🗂 Base de données prestations'!A:V,3,FALSE)&\" - \"&VLOOKUP(A44,'🗂 Base de données prestations'!A:V,4,FALSE)&\" - \"&VLOOKUP(A44,'🗂 Base de données prestations'!A:V,12,FALSE),\"\")","v":""},{"$f":"IFERROR(VLOOKUP($A44,'🗂 Base de données prestations'!$A:$V,15,FALSE),\" \")","v":" "},null,{"$f":"MONTH(recettesnov[[#This Row],[Date d''encaissement]])","v":1}]
[null,null,{"$f":"IFERROR(VLOOKUP(A45,'🗂 Base de données prestations'!A:V,16,FALSE),\"\")","v":""},{"$f":"IFERROR(VLOOKUP(A45,'🗂 Base de données prestations'!A:V,13,FALSE),\"\")","v":""},{"$f":"IFERROR(VLOOKUP($A45,'🗂 Base de données prestations'!$A:$V,2,FALSE)&\"  \"&VLOOKUP(A45,'🗂 Base de données prestations'!A:V,3,FALSE)&\" - \"&VLOOKUP(A45,'🗂 Base de données prestations'!A:V,4,FALSE)&\" - \"&VLOOKUP(A45,'🗂 Base de données prestations'!A:V,12,FALSE),\"\")","v":""},{"$f":"IFERROR(VLOOKUP($A45,'🗂 Base de données prestations'!$A:$V,15,FALSE),\" \")","v":" "},null,{"$f":"MONTH(recettesnov[[#This Row],[Date d''encaissement]])","v":1}]
[null,null,{"$f":"IFERROR(VLOOKUP(A46,'🗂 Base de données prestations'!A:V,16,FALSE),\"\")","v":""},{"$f":"IFERROR(VLOOKUP(A46,'🗂 Base de données prestations'!A:V,13,FALSE),\"\")","v":""},{"$f":"IFERROR(VLOOKUP($A46,'🗂 Base de données prestations'!$A:$V,2,FALSE)&\"  \"&VLOOKUP(A46,'🗂 Base de données prestations'!A:V,3,FALSE)&\" - \"&VLOOKUP(A46,'🗂 Base de données prestations'!A:V,4,FALSE)&\" - \"&VLOOKUP(A46,'🗂 Base de données prestations'!A:V,12,FALSE),\"\")","v":""},{"$f":"IFERROR(VLOOKUP($A46,'🗂 Base de données prestations'!$A:$V,15,FALSE),\" \")","v":" "},null,{"$f":"MONTH(recettesnov[[#This Row],[Date d''encaissement]])","v":1}]
[null,null,{"$f":"IFERROR(VLOOKUP(A47,'🗂 Base de données prestations'!A:V,16,FALSE),\"\")","v":""},{"$f":"IFERROR(VLOOKUP(A47,'🗂 Base de données prestations'!A:V,13,FALSE),\"\")","v":""},{"$f":"IFERROR(VLOOKUP($A47,'🗂 Base de données prestations'!$A:$V,2,FALSE)&\"  \"&VLOOKUP(A47,'🗂 Base de données prestations'!A:V,3,FALSE)&\" - \"&VLOOKUP(A47,'🗂 Base de données prestations'!A:V,4,FALSE)&\" - \"&VLOOKUP(A47,'🗂 Base de données prestations'!A:V,12,FALSE),\"\")","v":""},{"$f":"IFERROR(VLOOKUP($A47,'🗂 Base de données prestations'!$A:$V,15,FALSE),\" \")","v":" "},null,{"$f":"MONTH(recettesnov[[#This Row],[Date d''encaissement]])","v":1}]
[null,null,{"$f":"IFERROR(VLOOKUP(A48,'🗂 Base de données prestations'!A:V,16,FALSE),\"\")","v":""},{"$f":"IFERROR(VLOOKUP(A48,'🗂 Base de données prestations'!A:V,13,FALSE),\"\")","v":""},{"$f":"IFERROR(VLOOKUP($A48,'🗂 Base de données prestations'!$A:$V,2,FALSE)&\"  \"&VLOOKUP(A48,'🗂 Base de données prestations'!A:V,3,FALSE)&\" - \"&VLOOKUP(A48,'🗂 Base de données prestations'!A:V,4,FALSE)&\" - \"&VLOOKUP(A48,'🗂 Base de données prestations'!A:V,12,FALSE),\"\")","v":""},{"$f":"IFERROR(VLOOKUP($A48,'🗂 Base de données prestations'!$A:$V,15,FALSE),\" \")","v":" "},null,{"$f":"MONTH(recettesnov[[#This Row],[Date d''encaissement]])","v":1}]
[null,null,{"$f":"IFERROR(VLOOKUP(A49,'🗂 Base de données prestations'!A:V,16,FALSE),\"\")","v":""},{"$f":"IFERROR(VLOOKUP(A49,'🗂 Base de données prestations'!A:V,13,FALSE),\"\")","v":""},{"$f":"IFERROR(VLOOKUP($A49,'🗂 Base de données prestations'!$A:$V,2,FALSE)&\"  \"&VLOOKUP(A49,'🗂 Base de données prestations'!A:V,3,FALSE)&\" - \"&VLOOKUP(A49,'🗂 Base de données prestations'!A:V,4,FALSE)&\" - \"&VLOOKUP(A49,'🗂 Base de données prestations'!A:V,12,FALSE),\"\")","v":""},{"$f":"IFERROR(VLOOKUP($A49,'🗂 Base de données prestations'!$A:$V,15,FALSE),\" \")","v":" "},null,{"$f":"MONTH(recettesnov[[#This Row],[Date d''encaissement]])","v":1}]
[null,null,{"$f":"IFERROR(VLOOKUP(A50,'🗂 Base de données prestations'!A:V,16,FALSE),\"\")","v":""},{"$f":"IFERROR(VLOOKUP(A50,'🗂 Base de données prestations'!A:V,13,FALSE),\"\")","v":""},{"$f":"IFERROR(VLOOKUP($A50,'🗂 Base de données prestations'!$A:$V,2,FALSE)&\"  \"&VLOOKUP(A50,'🗂 Base de données prestations'!A:V,3,FALSE)&\" - \"&VLOOKUP(A50,'🗂 Base de données prestations'!A:V,4,FALSE)&\" - \"&VLOOKUP(A50,'🗂 Base de données prestations'!A:V,12,FALSE),\"\")","v":""},{"$f":"IFERROR(VLOOKUP($A50,'🗂 Base de données prestations'!$A:$V,15,FALSE),\" \")","v":" "},null,{"$f":"MONTH(recettesnov[[#This Row],[Date d''encaissement]])","v":1}]
[null,null,{"$f":"IFERROR(VLOOKUP(A51,'🗂 Base de données prestations'!A:V,16,FALSE),\"\")","v":""},{"$f":"IFERROR(VLOOKUP(A51,'🗂 Base de données prestations'!A:V,13,FALSE),\"\")","v":""},{"$f":"IFERROR(VLOOKUP($A51,'🗂 Base de données prestations'!$A:$V,2,FALSE)&\"  \"&VLOOKUP(A51,'🗂 Base de données prestations'!A:V,3,FALSE)&\" - \"&VLOOKUP(A51,'🗂 Base de données prestations'!A:V,4,FALSE)&\" - \"&VLOOKUP(A51,'🗂 Base de données prestations'!A:V,12,FALSE),\"\")","v":""},{"$f":"IFERROR(VLOOKUP($A51,'🗂 Base de données prestations'!$A:$V,15,FALSE),\" \")","v":" "},null,{"$f":"MONTH(recettesnov[[#This Row],[Date d''encaissement]])","v":1}]
[null,null,{"$f":"IFERROR(VLOOKUP(A52,'🗂 Base de données prestations'!A:V,16,FALSE),\"\")","v":""},{"$f":"IFERROR(VLOOKUP(A52,'🗂 Base de données prestations'!A:V,13,FALSE),\"\")","v":""},{"$f":"IFERROR(VLOOKUP($A52,'🗂 Base de données prestations'!$A:$V,2,FALSE)&\"  \"&VLOOKUP(A52,'🗂 Base de données prestations'!A:V,3,FALSE)&\" - \"&VLOOKUP(A52,'🗂 Base de données prestations'!A:V,4,FALSE)&\" - \"&VLOOKUP(A52,'🗂 Base de données prestations'!A:V,12,FALSE),\"\")","v":""},{"$f":"IFERROR(VLOOKUP($A52,'🗂 Base de données prestations'!$A:$V,15,FALSE),\" \")","v":" "},null,{"$f":"MONTH(recettesnov[[#This Row],[Date d''encaissement]])","v":1}]
[null,null,{"$f":"IFERROR(VLOOKUP(A53,'🗂 Base de données prestations'!A:V,16,FALSE),\"\")","v":""},{"$f":"IFERROR(VLOOKUP(A53,'🗂 Base de données prestations'!A:V,13,FALSE),\"\")","v":""},{"$f":"IFERROR(VLOOKUP($A53,'🗂 Base de données prestations'!$A:$V,2,FALSE)&\"  \"&VLOOKUP(A53,'🗂 Base de données prestations'!A:V,3,FALSE)&\" - \"&VLOOKUP(A53,'🗂 Base de données prestations'!A:V,4,FALSE)&\" - \"&VLOOKUP(A53,'🗂 Base de données prestations'!A:V,12,FALSE),\"\")","v":""},{"$f":"IFERROR(VLOOKUP($A53,'🗂 Base de données prestations'!$A:$V,15,FALSE),\" \")","v":" "},null,{"$f":"MONTH(recettesnov[[#This Row],[Date d''encaissement]])","v":1}]
[null,null,{"$f":"IFERROR(VLOOKUP(A54,'🗂 Base de données prestations'!A:V,16,FALSE),\"\")","v":""},{"$f":"IFERROR(VLOOKUP(A54,'🗂 Base de données prestations'!A:V,13,FALSE),\"\")","v":""},{"$f":"IFERROR(VLOOKUP($A54,'🗂 Base de données prestations'!$A:$V,2,FALSE)&\"  \"&VLOOKUP(A54,'🗂 Base de données prestations'!A:V,3,FALSE)&\" - \"&VLOOKUP(A54,'🗂 Base de données prestations'!A:V,4,FALSE)&\" - \"&VLOOKUP(A54,'🗂 Base de données prestations'!A:V,12,FALSE),\"\")","v":""},{"$f":"IFERROR(VLOOKUP($A54,'🗂 Base de données prestations'!$A:$V,15,FALSE),\" \")","v":" "},null,{"$f":"MONTH(recettesnov[[#This Row],[Date d''encaissement]])","v":1}]
[null,null,{"$f":"IFERROR(VLOOKUP(A55,'🗂 Base de données prestations'!A:V,16,FALSE),\"\")","v":""},{"$f":"IFERROR(VLOOKUP(A55,'🗂 Base de données prestations'!A:V,13,FALSE),\"\")","v":""},{"$f":"IFERROR(VLOOKUP($A55,'🗂 Base de données prestations'!$A:$V,2,FALSE)&\"  \"&VLOOKUP(A55,'🗂 Base de données prestations'!A:V,3,FALSE)&\" - \"&VLOOKUP(A55,'🗂 Base de données prestations'!A:V,4,FALSE)&\" - \"&VLOOKUP(A55,'🗂 Base de données prestations'!A:V,12,FALSE),\"\")","v":""},{"$f":"IFERROR(VLOOKUP($A55,'🗂 Base de données prestations'!$A:$V,15,FALSE),\" \")","v":" "},null,{"$f":"MONTH(recettesnov[[#This Row],[Date d''encaissement]])","v":1}]
[null,null,{"$f":"IFERROR(VLOOKUP(A56,'🗂 Base de données prestations'!A:V,16,FALSE),\"\")","v":""},{"$f":"IFERROR(VLOOKUP(A56,'🗂 Base de données prestations'!A:V,13,FALSE),\"\")","v":""},{"$f":"IFERROR(VLOOKUP($A56,'🗂 Base de données prestations'!$A:$V,2,FALSE)&\"  \"&VLOOKUP(A56,'🗂 Base de données prestations'!A:V,3,FALSE)&\" - \"&VLOOKUP(A56,'🗂 Base de données prestations'!A:V,4,FALSE)&\" - \"&VLOOKUP(A56,'🗂 Base de données prestations'!A:V,12,FALSE),\"\")","v":""},{"$f":"IFERROR(VLOOKUP($A56,'🗂 Base de données prestations'!$A:$V,15,FALSE),\" \")","v":" "},null,{"$f":"MONTH(recettesnov[[#This Row],[Date d''encaissement]])","v":1}]
[null,null,{"$f":"IFERROR(VLOOKUP(A57,'🗂 Base de données prestations'!A:V,16,FALSE),\"\")","v":""},{"$f":"IFERROR(VLOOKUP(A57,'🗂 Base de données prestations'!A:V,13,FALSE),\"\")","v":""},{"$f":"IFERROR(VLOOKUP($A57,'🗂 Base de données prestations'!$A:$V,2,FALSE)&\"  \"&VLOOKUP(A57,'🗂 Base de données prestations'!A:V,3,FALSE)&\" - \"&VLOOKUP(A57,'🗂 Base de données prestations'!A:V,4,FALSE)&\" - \"&VLOOKUP(A57,'🗂 Base de données prestations'!A:V,12,FALSE),\"\")","v":""},{"$f":"IFERROR(VLOOKUP($A57,'🗂 Base de données prestations'!$A:$V,15,FALSE),\" \")","v":" "},null,{"$f":"MONTH(recettesnov[[#This Row],[Date d''encaissement]])","v":1}]
[null,null,{"$f":"IFERROR(VLOOKUP(A58,'🗂 Base de données prestations'!A:V,16,FALSE),\"\")","v":""},{"$f":"IFERROR(VLOOKUP(A58,'🗂 Base de données prestations'!A:V,13,FALSE),\"\")","v":""},{"$f":"IFERROR(VLOOKUP($A58,'🗂 Base de données prestations'!$A:$V,2,FALSE)&\"  \"&VLOOKUP(A58,'🗂 Base de données prestations'!A:V,3,FALSE)&\" - \"&VLOOKUP(A58,'🗂 Base de données prestations'!A:V,4,FALSE)&\" - \"&VLOOKUP(A58,'🗂 Base de données prestations'!A:V,12,FALSE),\"\")","v":""},{"$f":"IFERROR(VLOOKUP($A58,'🗂 Base de données prestations'!$A:$V,15,FALSE),\" \")","v":" "},null,{"$f":"MONTH(recettesnov[[#This Row],[Date d''encaissement]])","v":1}]
[null,null,{"$f":"IFERROR(VLOOKUP(A59,'🗂 Base de données prestations'!A:V,16,FALSE),\"\")","v":""},{"$f":"IFERROR(VLOOKUP(A59,'🗂 Base de données prestations'!A:V,13,FALSE),\"\")","v":""},{"$f":"IFERROR(VLOOKUP($A59,'🗂 Base de données prestations'!$A:$V,2,FALSE)&\"  \"&VLOOKUP(A59,'🗂 Base de données prestations'!A:V,3,FALSE)&\" - \"&VLOOKUP(A59,'🗂 Base de données prestations'!A:V,4,FALSE)&\" - \"&VLOOKUP(A59,'🗂 Base de données prestations'!A:V,12,FALSE),\"\")","v":""},{"$f":"IFERROR(VLOOKUP($A59,'🗂 Base de données prestations'!$A:$V,15,FALSE),\" \")","v":" "},null,{"$f":"MONTH(recettesnov[[#This Row],[Date d''encaissement]])","v":1}]
[null,null,{"$f":"IFERROR(VLOOKUP(A60,'🗂 Base de données prestations'!A:V,16,FALSE),\"\")","v":""},{"$f":"IFERROR(VLOOKUP(A60,'🗂 Base de données prestations'!A:V,13,FALSE),\"\")","v":""},{"$f":"IFERROR(VLOOKUP($A60,'🗂 Base de données prestations'!$A:$V,2,FALSE)&\"  \"&VLOOKUP(A60,'🗂 Base de données prestations'!A:V,3,FALSE)&\" - \"&VLOOKUP(A60,'🗂 Base de données prestations'!A:V,4,FALSE)&\" - \"&VLOOKUP(A60,'🗂 Base de données prestations'!A:V,12,FALSE),\"\")","v":""},{"$f":"IFERROR(VLOOKUP($A60,'🗂 Base de données prestations'!$A:$V,15,FALSE),\" \")","v":" "},null,{"$f":"MONTH(recettesnov[[#This Row],[Date d''encaissement]])","v":1}]
[null,null,{"$f":"IFERROR(VLOOKUP(A61,'🗂 Base de données prestations'!A:V,16,FALSE),\"\")","v":""},{"$f":"IFERROR(VLOOKUP(A61,'🗂 Base de données prestations'!A:V,13,FALSE),\"\")","v":""},{"$f":"IFERROR(VLOOKUP($A61,'🗂 Base de données prestations'!$A:$V,2,FALSE)&\"  \"&VLOOKUP(A61,'🗂 Base de données prestations'!A:V,3,FALSE)&\" - \"&VLOOKUP(A61,'🗂 Base de données prestations'!A:V,4,FALSE)&\" - \"&VLOOKUP(A61,'🗂 Base de données prestations'!A:V,12,FALSE),\"\")","v":""},{"$f":"IFERROR(VLOOKUP($A61,'🗂 Base de données prestations'!$A:$V,15,FALSE),\" \")","v":" "},null,{"$f":"MONTH(recettesnov[[#This Row],[Date d''encaissement]])","v":1}]
[null,null,{"$f":"IFERROR(VLOOKUP(A62,'🗂 Base de données prestations'!A:V,16,FALSE),\"\")","v":""},{"$f":"IFERROR(VLOOKUP(A62,'🗂 Base de données prestations'!A:V,13,FALSE),\"\")","v":""},{"$f":"IFERROR(VLOOKUP($A62,'🗂 Base de données prestations'!$A:$V,2,FALSE)&\"  \"&VLOOKUP(A62,'🗂 Base de données prestations'!A:V,3,FALSE)&\" - \"&VLOOKUP(A62,'🗂 Base de données prestations'!A:V,4,FALSE)&\" - \"&VLOOKUP(A62,'🗂 Base de données prestations'!A:V,12,FALSE),\"\")","v":""},{"$f":"IFERROR(VLOOKUP($A62,'🗂 Base de données prestations'!$A:$V,15,FALSE),\" \")","v":" "},null,{"$f":"MONTH(recettesnov[[#This Row],[Date d''encaissement]])","v":1}]
[null,null,{"$f":"IFERROR(VLOOKUP(A63,'🗂 Base de données prestations'!A:V,16,FALSE),\"\")","v":""},{"$f":"IFERROR(VLOOKUP(A63,'🗂 Base de données prestations'!A:V,13,FALSE),\"\")","v":""},{"$f":"IFERROR(VLOOKUP($A63,'🗂 Base de données prestations'!$A:$V,2,FALSE)&\"  \"&VLOOKUP(A63,'🗂 Base de données prestations'!A:V,3,FALSE)&\" - \"&VLOOKUP(A63,'🗂 Base de données prestations'!A:V,4,FALSE)&\" - \"&VLOOKUP(A63,'🗂 Base de données prestations'!A:V,12,FALSE),\"\")","v":""},{"$f":"IFERROR(VLOOKUP($A63,'🗂 Base de données prestations'!$A:$V,15,FALSE),\" \")","v":" "},null,{"$f":"MONTH(recettesnov[[#This Row],[Date d''encaissement]])","v":1}]
[null,null,{"$f":"IFERROR(VLOOKUP(A64,'🗂 Base de données prestations'!A:V,16,FALSE),\"\")","v":""},{"$f":"IFERROR(VLOOKUP(A64,'🗂 Base de données prestations'!A:V,13,FALSE),\"\")","v":""},{"$f":"IFERROR(VLOOKUP($A64,'🗂 Base de données prestations'!$A:$V,2,FALSE)&\"  \"&VLOOKUP(A64,'🗂 Base de données prestations'!A:V,3,FALSE)&\" - \"&VLOOKUP(A64,'🗂 Base de données prestations'!A:V,4,FALSE)&\" - \"&VLOOKUP(A64,'🗂 Base de données prestations'!A:V,12,FALSE),\"\")","v":""},{"$f":"IFERROR(VLOOKUP($A64,'🗂 Base de données prestations'!$A:$V,15,FALSE),\" \")","v":" "},null,{"$f":"MONTH(recettesnov[[#This Row],[Date d''encaissement]])","v":1}]
[null,null,{"$f":"IFERROR(VLOOKUP(A65,'🗂 Base de données prestations'!A:V,16,FALSE),\"\")","v":""},{"$f":"IFERROR(VLOOKUP(A65,'🗂 Base de données prestations'!A:V,13,FALSE),\"\")","v":""},{"$f":"IFERROR(VLOOKUP($A65,'🗂 Base de données prestations'!$A:$V,2,FALSE)&\"  \"&VLOOKUP(A65,'🗂 Base de données prestations'!A:V,3,FALSE)&\" - \"&VLOOKUP(A65,'🗂 Base de données prestations'!A:V,4,FALSE)&\" - \"&VLOOKUP(A65,'🗂 Base de données prestations'!A:V,12,FALSE),\"\")","v":""},{"$f":"IFERROR(VLOOKUP($A65,'🗂 Base de données prestations'!$A:$V,15,FALSE),\" \")","v":" "},null,{"$f":"MONTH(recettesnov[[#This Row],[Date d''encaissement]])","v":1}]
[null,null,{"$f":"IFERROR(VLOOKUP(A66,'🗂 Base de données prestations'!A:V,16,FALSE),\"\")","v":""},{"$f":"IFERROR(VLOOKUP(A66,'🗂 Base de données prestations'!A:V,13,FALSE),\"\")","v":""},{"$f":"IFERROR(VLOOKUP($A66,'🗂 Base de données prestations'!$A:$V,2,FALSE)&\"  \"&VLOOKUP(A66,'🗂 Base de données prestations'!A:V,3,FALSE)&\" - \"&VLOOKUP(A66,'🗂 Base de données prestations'!A:V,4,FALSE)&\" - \"&VLOOKUP(A66,'🗂 Base de données prestations'!A:V,12,FALSE),\"\")","v":""},{"$f":"IFERROR(VLOOKUP($A66,'🗂 Base de données prestations'!$A:$V,15,FALSE),\" \")","v":" "},null,{"$f":"MONTH(recettesnov[[#This Row],[Date d''encaissement]])","v":1}]
[null,null,{"$f":"IFERROR(VLOOKUP(A67,'🗂 Base de données prestations'!A:V,16,FALSE),\"\")","v":""},{"$f":"IFERROR(VLOOKUP(A67,'🗂 Base de données prestations'!A:V,13,FALSE),\"\")","v":""},{"$f":"IFERROR(VLOOKUP($A67,'🗂 Base de données prestations'!$A:$V,2,FALSE)&\"  \"&VLOOKUP(A67,'🗂 Base de données prestations'!A:V,3,FALSE)&\" - \"&VLOOKUP(A67,'🗂 Base de données prestations'!A:V,4,FALSE)&\" - \"&VLOOKUP(A67,'🗂 Base de données prestations'!A:V,12,FALSE),\"\")","v":""},{"$f":"IFERROR(VLOOKUP($A67,'🗂 Base de données prestations'!$A:$V,15,FALSE),\" \")","v":" "},null,{"$f":"MONTH(recettesnov[[#This Row],[Date d''encaissement]])","v":1}]
[null,null,{"$f":"IFERROR(VLOOKUP(A68,'🗂 Base de données prestations'!A:V,16,FALSE),\"\")","v":""},{"$f":"IFERROR(VLOOKUP(A68,'🗂 Base de données prestations'!A:V,13,FALSE),\"\")","v":""},{"$f":"IFERROR(VLOOKUP($A68,'🗂 Base de données prestations'!$A:$V,2,FALSE)&\"  \"&VLOOKUP(A68,'🗂 Base de données prestations'!A:V,3,FALSE)&\" - \"&VLOOKUP(A68,'🗂 Base de données prestations'!A:V,4,FALSE)&\" - \"&VLOOKUP(A68,'🗂 Base de données prestations'!A:V,12,FALSE),\"\")","v":""},{"$f":"IFERROR(VLOOKUP($A68,'🗂 Base de données prestations'!$A:$V,15,FALSE),\" \")","v":" "},null,{"$f":"MONTH(recettesnov[[#This Row],[Date d''encaissement]])","v":1}]
[null,null,{"$f":"IFERROR(VLOOKUP(A69,'🗂 Base de données prestations'!A:V,16,FALSE),\"\")","v":""},{"$f":"IFERROR(VLOOKUP(A69,'🗂 Base de données prestations'!A:V,13,FALSE),\"\")","v":""},{"$f":"IFERROR(VLOOKUP($A69,'🗂 Base de données prestations'!$A:$V,2,FALSE)&\"  \"&VLOOKUP(A69,'🗂 Base de données prestations'!A:V,3,FALSE)&\" - \"&VLOOKUP(A69,'🗂 Base de données prestations'!A:V,4,FALSE)&\" - \"&VLOOKUP(A69,'🗂 Base de données prestations'!A:V,12,FALSE),\"\")","v":""},{"$f":"IFERROR(VLOOKUP($A69,'🗂 Base de données prestations'!$A:$V,15,FALSE),\" \")","v":" "},null,{"$f":"MONTH(recettesnov[[#This Row],[Date d''encaissement]])","v":1}]
[null,null,{"$f":"IFERROR(VLOOKUP(A70,'🗂 Base de données prestations'!A:V,16,FALSE),\"\")","v":""},{"$f":"IFERROR(VLOOKUP(A70,'🗂 Base de données prestations'!A:V,13,FALSE),\"\")","v":""},{"$f":"IFERROR(VLOOKUP($A70,'🗂 Base de données prestations'!$A:$V,2,FALSE)&\"  \"&VLOOKUP(A70,'🗂 Base de données prestations'!A:V,3,FALSE)&\" - \"&VLOOKUP(A70,'🗂 Base de données prestations'!A:V,4,FALSE)&\" - \"&VLOOKUP(A70,'🗂 Base de données prestations'!A:V,12,FALSE),\"\")","v":""},{"$f":"IFERROR(VLOOKUP($A70,'🗂 Base de données prestations'!$A:$V,15,FALSE),\" \")","v":" "},null,{"$f":"MONTH(recettesnov[[#This Row],[Date d''encaissement]])","v":1}]
[null,null,{"$f":"IFERROR(VLOOKUP(A71,'🗂 Base de données prestations'!A:V,16,FALSE),\"\")","v":""},{"$f":"IFERROR(VLOOKUP(A71,'🗂 Base de données prestations'!A:V,13,FALSE),\"\")","v":""},{"$f":"IFERROR(VLOOKUP($A71,'🗂 Base de données prestations'!$A:$V,2,FALSE)&\"  \"&VLOOKUP(A71,'🗂 Base de données prestations'!A:V,3,FALSE)&\" - \"&VLOOKUP(A71,'🗂 Base de données prestations'!A:V,4,FALSE)&\" - \"&VLOOKUP(A71,'🗂 Base de données prestations'!A:V,12,FALSE),\"\")","v":""},{"$f":"IFERROR(VLOOKUP($A71,'🗂 Base de données prestations'!$A:$V,15,FALSE),\" \")","v":" "},null,{"$f":"MONTH(recettesnov[[#This Row],[Date d''encaissement]])","v":1}]
[null,null,{"$f":"IFERROR(VLOOKUP(A72,'🗂 Base de données prestations'!A:V,16,FALSE),\"\")","v":""},{"$f":"IFERROR(VLOOKUP(A72,'🗂 Base de données prestations'!A:V,13,FALSE),\"\")","v":""},{"$f":"IFERROR(VLOOKUP($A72,'🗂 Base de données prestations'!$A:$V,2,FALSE)&\"  \"&VLOOKUP(A72,'🗂 Base de données prestations'!A:V,3,FALSE)&\" - \"&VLOOKUP(A72,'🗂 Base de données prestations'!A:V,4,FALSE)&\" - \"&VLOOKUP(A72,'🗂 Base de données prestations'!A:V,12,FALSE),\"\")","v":""},{"$f":"IFERROR(VLOOKUP($A72,'🗂 Base de données prestations'!$A:$V,15,FALSE),\" \")","v":" "},null,{"$f":"MONTH(recettesnov[[#This Row],[Date d''encaissement]])","v":1}]
[null,null,{"$f":"IFERROR(VLOOKUP(A73,'🗂 Base de données prestations'!A:V,16,FALSE),\"\")","v":""},{"$f":"IFERROR(VLOOKUP(A73,'🗂 Base de données prestations'!A:V,13,FALSE),\"\")","v":""},{"$f":"IFERROR(VLOOKUP($A73,'🗂 Base de données prestations'!$A:$V,2,FALSE)&\"  \"&VLOOKUP(A73,'🗂 Base de données prestations'!A:V,3,FALSE)&\" - \"&VLOOKUP(A73,'🗂 Base de données prestations'!A:V,4,FALSE)&\" - \"&VLOOKUP(A73,'🗂 Base de données prestations'!A:V,12,FALSE),\"\")","v":""},{"$f":"IFERROR(VLOOKUP($A73,'🗂 Base de données prestations'!$A:$V,15,FALSE),\" \")","v":" "},null,{"$f":"MONTH(recettesnov[[#This Row],[Date d''encaissement]])","v":1}]
[null,null,{"$f":"IFERROR(VLOOKUP(A74,'🗂 Base de données prestations'!A:V,16,FALSE),\"\")","v":""},{"$f":"IFERROR(VLOOKUP(A74,'🗂 Base de données prestations'!A:V,13,FALSE),\"\")","v":""},{"$f":"IFERROR(VLOOKUP($A74,'🗂 Base de données prestations'!$A:$V,2,FALSE)&\"  \"&VLOOKUP(A74,'🗂 Base de données prestations'!A:V,3,FALSE)&\" - \"&VLOOKUP(A74,'🗂 Base de données prestations'!A:V,4,FALSE)&\" - \"&VLOOKUP(A74,'🗂 Base de données prestations'!A:V,12,FALSE),\"\")","v":""},{"$f":"IFERROR(VLOOKUP($A74,'🗂 Base de données prestations'!$A:$V,15,FALSE),\" \")","v":" "},null,{"$f":"MONTH(recettesnov[[#This Row],[Date d''encaissement]])","v":1}]
[null,null,{"$f":"IFERROR(VLOOKUP(A75,'🗂 Base de données prestations'!A:V,16,FALSE),\"\")","v":""},{"$f":"IFERROR(VLOOKUP(A75,'🗂 Base de données prestations'!A:V,13,FALSE),\"\")","v":""},{"$f":"IFERROR(VLOOKUP($A75,'🗂 Base de données prestations'!$A:$V,2,FALSE)&\"  \"&VLOOKUP(A75,'🗂 Base de données prestations'!A:V,3,FALSE)&\" - \"&VLOOKUP(A75,'🗂 Base de données prestations'!A:V,4,FALSE)&\" - \"&VLOOKUP(A75,'🗂 Base de données prestations'!A:V,12,FALSE),\"\")","v":""},{"$f":"IFERROR(VLOOKUP($A75,'🗂 Base de données prestations'!$A:$V,15,FALSE),\" \")","v":" "},null,{"$f":"MONTH(recettesnov[[#This Row],[Date d''encaissement]])","v":1}]
[null,null,{"$f":"IFERROR(VLOOKUP(A76,'🗂 Base de données prestations'!A:V,16,FALSE),\"\")","v":""},{"$f":"IFERROR(VLOOKUP(A76,'🗂 Base de données prestations'!A:V,13,FALSE),\"\")","v":""},{"$f":"IFERROR(VLOOKUP($A76,'🗂 Base de données prestations'!$A:$V,2,FALSE)&\"  \"&VLOOKUP(A76,'🗂 Base de données prestations'!A:V,3,FALSE)&\" - \"&VLOOKUP(A76,'🗂 Base de données prestations'!A:V,4,FALSE)&\" - \"&VLOOKUP(A76,'🗂 Base de données prestations'!A:V,12,FALSE),\"\")","v":""},{"$f":"IFERROR(VLOOKUP($A76,'🗂 Base de données prestations'!$A:$V,15,FALSE),\" \")","v":" "},null,{"$f":"MONTH(recettesnov[[#This Row],[Date d''encaissement]])","v":1}]
[null,null,{"$f":"IFERROR(VLOOKUP(A77,'🗂 Base de données prestations'!A:V,16,FALSE),\"\")","v":""},{"$f":"IFERROR(VLOOKUP(A77,'🗂 Base de données prestations'!A:V,13,FALSE),\"\")","v":""},{"$f":"IFERROR(VLOOKUP($A77,'🗂 Base de données prestations'!$A:$V,2,FALSE)&\"  \"&VLOOKUP(A77,'🗂 Base de données prestations'!A:V,3,FALSE)&\" - \"&VLOOKUP(A77,'🗂 Base de données prestations'!A:V,4,FALSE)&\" - \"&VLOOKUP(A77,'🗂 Base de données prestations'!A:V,12,FALSE),\"\")","v":""},{"$f":"IFERROR(VLOOKUP($A77,'🗂 Base de données prestations'!$A:$V,15,FALSE),\" \")","v":" "},null,{"$f":"MONTH(recettesnov[[#This Row],[Date d''encaissement]])","v":1}]
[null,null,{"$f":"IFERROR(VLOOKUP(A78,'🗂 Base de données prestations'!A:V,16,FALSE),\"\")","v":""},{"$f":"IFERROR(VLOOKUP(A78,'🗂 Base de données prestations'!A:V,13,FALSE),\"\")","v":""},{"$f":"IFERROR(VLOOKUP($A78,'🗂 Base de données prestations'!$A:$V,2,FALSE)&\"  \"&VLOOKUP(A78,'🗂 Base de données prestations'!A:V,3,FALSE)&\" - \"&VLOOKUP(A78,'🗂 Base de données prestations'!A:V,4,FALSE)&\" - \"&VLOOKUP(A78,'🗂 Base de données prestations'!A:V,12,FALSE),\"\")","v":""},{"$f":"IFERROR(VLOOKUP($A78,'🗂 Base de données prestations'!$A:$V,15,FALSE),\" \")","v":" "},null,{"$f":"MONTH(recettesnov[[#This Row],[Date d''encaissement]])","v":1}]
[null,null,{"$f":"IFERROR(VLOOKUP(A79,'🗂 Base de données prestations'!A:V,16,FALSE),\"\")","v":""},{"$f":"IFERROR(VLOOKUP(A79,'🗂 Base de données prestations'!A:V,13,FALSE),\"\")","v":""},{"$f":"IFERROR(VLOOKUP($A79,'🗂 Base de données prestations'!$A:$V,2,FALSE)&\"  \"&VLOOKUP(A79,'🗂 Base de données prestations'!A:V,3,FALSE)&\" - \"&VLOOKUP(A79,'🗂 Base de données prestations'!A:V,4,FALSE)&\" - \"&VLOOKUP(A79,'🗂 Base de données prestations'!A:V,12,FALSE),\"\")","v":""},{"$f":"IFERROR(VLOOKUP($A79,'🗂 Base de données prestations'!$A:$V,15,FALSE),\" \")","v":" "},null,{"$f":"MONTH(recettesnov[[#This Row],[Date d''encaissement]])","v":1}]
[null,null,{"$f":"IFERROR(VLOOKUP(A80,'🗂 Base de données prestations'!A:V,16,FALSE),\"\")","v":""},{"$f":"IFERROR(VLOOKUP(A80,'🗂 Base de données prestations'!A:V,13,FALSE),\"\")","v":""},{"$f":"IFERROR(VLOOKUP($A80,'🗂 Base de données prestations'!$A:$V,2,FALSE)&\"  \"&VLOOKUP(A80,'🗂 Base de données prestations'!A:V,3,FALSE)&\" - \"&VLOOKUP(A80,'🗂 Base de données prestations'!A:V,4,FALSE)&\" - \"&VLOOKUP(A80,'🗂 Base de données prestations'!A:V,12,FALSE),\"\")","v":""},{"$f":"IFERROR(VLOOKUP($A80,'🗂 Base de données prestations'!$A:$V,15,FALSE),\" \")","v":" "},null,{"$f":"MONTH(recettesnov[[#This Row],[Date d''encaissement]])","v":1}]
[null,null,{"$f":"IFERROR(VLOOKUP(A81,'🗂 Base de données prestations'!A:V,16,FALSE),\"\")","v":""},{"$f":"IFERROR(VLOOKUP(A81,'🗂 Base de données prestations'!A:V,13,FALSE),\"\")","v":""},{"$f":"IFERROR(VLOOKUP($A81,'🗂 Base de données prestations'!$A:$V,2,FALSE)&\"  \"&VLOOKUP(A81,'🗂 Base de données prestations'!A:V,3,FALSE)&\" - \"&VLOOKUP(A81,'🗂 Base de données prestations'!A:V,4,FALSE)&\" - \"&VLOOKUP(A81,'🗂 Base de données prestations'!A:V,12,FALSE),\"\")","v":""},{"$f":"IFERROR(VLOOKUP($A81,'🗂 Base de données prestations'!$A:$V,15,FALSE),\" \")","v":" "},null,{"$f":"MONTH(recettesnov[[#This Row],[Date d''encaissement]])","v":1}]
[null,null,{"$f":"IFERROR(VLOOKUP(A82,'🗂 Base de données prestations'!A:V,16,FALSE),\"\")","v":""},{"$f":"IFERROR(VLOOKUP(A82,'🗂 Base de données prestations'!A:V,13,FALSE),\"\")","v":""},{"$f":"IFERROR(VLOOKUP($A82,'🗂 Base de données prestations'!$A:$V,2,FALSE)&\"  \"&VLOOKUP(A82,'🗂 Base de données prestations'!A:V,3,FALSE)&\" - \"&VLOOKUP(A82,'🗂 Base de données prestations'!A:V,4,FALSE)&\" - \"&VLOOKUP(A82,'🗂 Base de données prestations'!A:V,12,FALSE),\"\")","v":""},{"$f":"IFERROR(VLOOKUP($A82,'🗂 Base de données prestations'!$A:$V,15,FALSE),\" \")","v":" "},null,{"$f":"MONTH(recettesnov[[#This Row],[Date d''encaissement]])","v":1}]
[null,null,{"$f":"IFERROR(VLOOKUP(A83,'🗂 Base de données prestations'!A:V,16,FALSE),\"\")","v":""},{"$f":"IFERROR(VLOOKUP(A83,'🗂 Base de données prestations'!A:V,13,FALSE),\"\")","v":""},{"$f":"IFERROR(VLOOKUP($A83,'🗂 Base de données prestations'!$A:$V,2,FALSE)&\"  \"&VLOOKUP(A83,'🗂 Base de données prestations'!A:V,3,FALSE)&\" - \"&VLOOKUP(A83,'🗂 Base de données prestations'!A:V,4,FALSE)&\" - \"&VLOOKUP(A83,'🗂 Base de données prestations'!A:V,12,FALSE),\"\")","v":""},{"$f":"IFERROR(VLOOKUP($A83,'🗂 Base de données prestations'!$A:$V,15,FALSE),\" \")","v":" "},null,{"$f":"MONTH(recettesnov[[#This Row],[Date d''encaissement]])","v":1}]
[null,null,{"$f":"IFERROR(VLOOKUP(A84,'🗂 Base de données prestations'!A:V,16,FALSE),\"\")","v":""},{"$f":"IFERROR(VLOOKUP(A84,'🗂 Base de données prestations'!A:V,13,FALSE),\"\")","v":""},{"$f":"IFERROR(VLOOKUP($A84,'🗂 Base de données prestations'!$A:$V,2,FALSE)&\"  \"&VLOOKUP(A84,'🗂 Base de données prestations'!A:V,3,FALSE)&\" - \"&VLOOKUP(A84,'🗂 Base de données prestations'!A:V,4,FALSE)&\" - \"&VLOOKUP(A84,'🗂 Base de données prestations'!A:V,12,FALSE),\"\")","v":""},{"$f":"IFERROR(VLOOKUP($A84,'🗂 Base de données prestations'!$A:$V,15,FALSE),\" \")","v":" "},null,{"$f":"MONTH(recettesnov[[#This Row],[Date d''encaissement]])","v":1}]
[null,null,{"$f":"IFERROR(VLOOKUP(A85,'🗂 Base de données prestations'!A:V,16,FALSE),\"\")","v":""},{"$f":"IFERROR(VLOOKUP(A85,'🗂 Base de données prestations'!A:V,13,FALSE),\"\")","v":""},{"$f":"IFERROR(VLOOKUP($A85,'🗂 Base de données prestations'!$A:$V,2,FALSE)&\"  \"&VLOOKUP(A85,'🗂 Base de données prestations'!A:V,3,FALSE)&\" - \"&VLOOKUP(A85,'🗂 Base de données prestations'!A:V,4,FALSE)&\" - \"&VLOOKUP(A85,'🗂 Base de données prestations'!A:V,12,FALSE),\"\")","v":""},{"$f":"IFERROR(VLOOKUP($A85,'🗂 Base de données prestations'!$A:$V,15,FALSE),\" \")","v":" "},null,{"$f":"MONTH(recettesnov[[#This Row],[Date d''encaissement]])","v":1}]
[null,null,{"$f":"IFERROR(VLOOKUP(A86,'🗂 Base de données prestations'!A:V,16,FALSE),\"\")","v":""},{"$f":"IFERROR(VLOOKUP(A86,'🗂 Base de données prestations'!A:V,13,FALSE),\"\")","v":""},{"$f":"IFERROR(VLOOKUP($A86,'🗂 Base de données prestations'!$A:$V,2,FALSE)&\"  \"&VLOOKUP(A86,'🗂 Base de données prestations'!A:V,3,FALSE)&\" - \"&VLOOKUP(A86,'🗂 Base de données prestations'!A:V,4,FALSE)&\" - \"&VLOOKUP(A86,'🗂 Base de données prestations'!A:V,12,FALSE),\"\")","v":""},{"$f":"IFERROR(VLOOKUP($A86,'🗂 Base de données prestations'!$A:$V,15,FALSE),\" \")","v":" "},null,{"$f":"MONTH(recettesnov[[#This Row],[Date d''encaissement]])","v":1}]
[null,null,{"$f":"IFERROR(VLOOKUP(A87,'🗂 Base de données prestations'!A:V,16,FALSE),\"\")","v":""},{"$f":"IFERROR(VLOOKUP(A87,'🗂 Base de données prestations'!A:V,13,FALSE),\"\")","v":""},{"$f":"IFERROR(VLOOKUP($A87,'🗂 Base de données prestations'!$A:$V,2,FALSE)&\"  \"&VLOOKUP(A87,'🗂 Base de données prestations'!A:V,3,FALSE)&\" - \"&VLOOKUP(A87,'🗂 Base de données prestations'!A:V,4,FALSE)&\" - \"&VLOOKUP(A87,'🗂 Base de données prestations'!A:V,12,FALSE),\"\")","v":""},{"$f":"IFERROR(VLOOKUP($A87,'🗂 Base de données prestations'!$A:$V,15,FALSE),\" \")","v":" "},null,{"$f":"MONTH(recettesnov[[#This Row],[Date d''encaissement]])","v":1}]
[null,null,{"$f":"IFERROR(VLOOKUP(A88,'🗂 Base de données prestations'!A:V,16,FALSE),\"\")","v":""},{"$f":"IFERROR(VLOOKUP(A88,'🗂 Base de données prestations'!A:V,13,FALSE),\"\")","v":""},{"$f":"IFERROR(VLOOKUP($A88,'🗂 Base de données prestations'!$A:$V,2,FALSE)&\"  \"&VLOOKUP(A88,'🗂 Base de données prestations'!A:V,3,FALSE)&\" - \"&VLOOKUP(A88,'🗂 Base de données prestations'!A:V,4,FALSE)&\" - \"&VLOOKUP(A88,'🗂 Base de données prestations'!A:V,12,FALSE),\"\")","v":""},{"$f":"IFERROR(VLOOKUP($A88,'🗂 Base de données prestations'!$A:$V,15,FALSE),\" \")","v":" "},null,{"$f":"MONTH(recettesnov[[#This Row],[Date d''encaissement]])","v":1}]
[null,null,{"$f":"IFERROR(VLOOKUP(A89,'🗂 Base de données prestations'!A:V,16,FALSE),\"\")","v":""},{"$f":"IFERROR(VLOOKUP(A89,'🗂 Base de données prestations'!A:V,13,FALSE),\"\")","v":""},{"$f":"IFERROR(VLOOKUP($A89,'🗂 Base de données prestations'!$A:$V,2,FALSE)&\"  \"&VLOOKUP(A89,'🗂 Base de données prestations'!A:V,3,FALSE)&\" - \"&VLOOKUP(A89,'🗂 Base de données prestations'!A:V,4,FALSE)&\" - \"&VLOOKUP(A89,'🗂 Base de données prestations'!A:V,12,FALSE),\"\")","v":""},{"$f":"IFERROR(VLOOKUP($A89,'🗂 Base de données prestations'!$A:$V,15,FALSE),\" \")","v":" "},null,{"$f":"MONTH(recettesnov[[#This Row],[Date d''encaissement]])","v":1}]
[null,null,{"$f":"IFERROR(VLOOKUP(A90,'🗂 Base de données prestations'!A:V,16,FALSE),\"\")","v":""},{"$f":"IFERROR(VLOOKUP(A90,'🗂 Base de données prestations'!A:V,13,FALSE),\"\")","v":""},{"$f":"IFERROR(VLOOKUP($A90,'🗂 Base de données prestations'!$A:$V,2,FALSE)&\"  \"&VLOOKUP(A90,'🗂 Base de données prestations'!A:V,3,FALSE)&\" - \"&VLOOKUP(A90,'🗂 Base de données prestations'!A:V,4,FALSE)&\" - \"&VLOOKUP(A90,'🗂 Base de données prestations'!A:V,12,FALSE),\"\")","v":""},{"$f":"IFERROR(VLOOKUP($A90,'🗂 Base de données prestations'!$A:$V,15,FALSE),\" \")","v":" "},null,{"$f":"MONTH(recettesnov[[#This Row],[Date d''encaissement]])","v":1}]
[null,null,{"$f":"IFERROR(VLOOKUP(A91,'🗂 Base de données prestations'!A:V,16,FALSE),\"\")","v":""},{"$f":"IFERROR(VLOOKUP(A91,'🗂 Base de données prestations'!A:V,13,FALSE),\"\")","v":""},{"$f":"IFERROR(VLOOKUP($A91,'🗂 Base de données prestations'!$A:$V,2,FALSE)&\"  \"&VLOOKUP(A91,'🗂 Base de données prestations'!A:V,3,FALSE)&\" - \"&VLOOKUP(A91,'🗂 Base de données prestations'!A:V,4,FALSE)&\" - \"&VLOOKUP(A91,'🗂 Base de données prestations'!A:V,12,FALSE),\"\")","v":""},{"$f":"IFERROR(VLOOKUP($A91,'🗂 Base de données prestations'!$A:$V,15,FALSE),\" \")","v":" "},null,{"$f":"MONTH(recettesnov[[#This Row],[Date d''encaissement]])","v":1}]
[null,null,{"$f":"IFERROR(VLOOKUP(A92,'🗂 Base de données prestations'!A:V,16,FALSE),\"\")","v":""},{"$f":"IFERROR(VLOOKUP(A92,'🗂 Base de données prestations'!A:V,13,FALSE),\"\")","v":""},{"$f":"IFERROR(VLOOKUP($A92,'🗂 Base de données prestations'!$A:$V,2,FALSE)&\"  \"&VLOOKUP(A92,'🗂 Base de données prestations'!A:V,3,FALSE)&\" - \"&VLOOKUP(A92,'🗂 Base de données prestations'!A:V,4,FALSE)&\" - \"&VLOOKUP(A92,'🗂 Base de données prestations'!A:V,12,FALSE),\"\")","v":""},{"$f":"IFERROR(VLOOKUP($A92,'🗂 Base de données prestations'!$A:$V,15,FALSE),\" \")","v":" "},null,{"$f":"MONTH(recettesnov[[#This Row],[Date d''encaissement]])","v":1}]
[null,null,{"$f":"IFERROR(VLOOKUP(A93,'🗂 Base de données prestations'!A:V,16,FALSE),\"\")","v":""},{"$f":"IFERROR(VLOOKUP(A93,'🗂 Base de données prestations'!A:V,13,FALSE),\"\")","v":""},{"$f":"IFERROR(VLOOKUP($A93,'🗂 Base de données prestations'!$A:$V,2,FALSE)&\"  \"&VLOOKUP(A93,'🗂 Base de données prestations'!A:V,3,FALSE)&\" - \"&VLOOKUP(A93,'🗂 Base de données prestations'!A:V,4,FALSE)&\" - \"&VLOOKUP(A93,'🗂 Base de données prestations'!A:V,12,FALSE),\"\")","v":""},{"$f":"IFERROR(VLOOKUP($A93,'🗂 Base de données prestations'!$A:$V,15,FALSE),\" \")","v":" "},null,{"$f":"MONTH(recettesnov[[#This Row],[Date d''encaissement]])","v":1}]
[null,null,{"$f":"IFERROR(VLOOKUP(A94,'🗂 Base de données prestations'!A:V,16,FALSE),\"\")","v":""},{"$f":"IFERROR(VLOOKUP(A94,'🗂 Base de données prestations'!A:V,13,FALSE),\"\")","v":""},{"$f":"IFERROR(VLOOKUP($A94,'🗂 Base de données prestations'!$A:$V,2,FALSE)&\"  \"&VLOOKUP(A94,'🗂 Base de données prestations'!A:V,3,FALSE)&\" - \"&VLOOKUP(A94,'🗂 Base de données prestations'!A:V,4,FALSE)&\" - \"&VLOOKUP(A94,'🗂 Base de données prestations'!A:V,12,FALSE),\"\")","v":""},{"$f":"IFERROR(VLOOKUP($A94,'🗂 Base de données prestations'!$A:$V,15,FALSE),\" \")","v":" "},null,{"$f":"MONTH(recettesnov[[#This Row],[Date d''encaissement]])","v":1}]
[null,null,{"$f":"IFERROR(VLOOKUP(A95,'🗂 Base de données prestations'!A:V,16,FALSE),\"\")","v":""},{"$f":"IFERROR(VLOOKUP(A95,'🗂 Base de données prestations'!A:V,13,FALSE),\"\")","v":""},{"$f":"IFERROR(VLOOKUP($A95,'🗂 Base de données prestations'!$A:$V,2,FALSE)&\"  \"&VLOOKUP(A95,'🗂 Base de données prestations'!A:V,3,FALSE)&\" - \"&VLOOKUP(A95,'🗂 Base de données prestations'!A:V,4,FALSE)&\" - \"&VLOOKUP(A95,'🗂 Base de données prestations'!A:V,12,FALSE),\"\")","v":""},{"$f":"IFERROR(VLOOKUP($A95,'🗂 Base de données prestations'!$A:$V,15,FALSE),\" \")","v":" "},null,{"$f":"MONTH(recettesnov[[#This Row],[Date d''encaissement]])","v":1}]
[null,null,{"$f":"IFERROR(VLOOKUP(A96,'🗂 Base de données prestations'!A:V,16,FALSE),\"\")","v":""},{"$f":"IFERROR(VLOOKUP(A96,'🗂 Base de données prestations'!A:V,13,FALSE),\"\")","v":""},{"$f":"IFERROR(VLOOKUP($A96,'🗂 Base de données prestations'!$A:$V,2,FALSE)&\"  \"&VLOOKUP(A96,'🗂 Base de données prestations'!A:V,3,FALSE)&\" - \"&VLOOKUP(A96,'🗂 Base de données prestations'!A:V,4,FALSE)&\" - \"&VLOOKUP(A96,'🗂 Base de données prestations'!A:V,12,FALSE),\"\")","v":""},{"$f":"IFERROR(VLOOKUP($A96,'🗂 Base de données prestations'!$A:$V,15,FALSE),\" \")","v":" "},null,{"$f":"MONTH(recettesnov[[#This Row],[Date d''encaissement]])","v":1}]
[null,null,{"$f":"IFERROR(VLOOKUP(A97,'🗂 Base de données prestations'!A:V,16,FALSE),\"\")","v":""},{"$f":"IFERROR(VLOOKUP(A97,'🗂 Base de données prestations'!A:V,13,FALSE),\"\")","v":""},{"$f":"IFERROR(VLOOKUP($A97,'🗂 Base de données prestations'!$A:$V,2,FALSE)&\"  \"&VLOOKUP(A97,'🗂 Base de données prestations'!A:V,3,FALSE)&\" - \"&VLOOKUP(A97,'🗂 Base de données prestations'!A:V,4,FALSE)&\" - \"&VLOOKUP(A97,'🗂 Base de données prestations'!A:V,12,FALSE),\"\")","v":""},{"$f":"IFERROR(VLOOKUP($A97,'🗂 Base de données prestations'!$A:$V,15,FALSE),\" \")","v":" "},null,{"$f":"MONTH(recettesnov[[#This Row],[Date d''encaissement]])","v":1}]
[null,null,{"$f":"IFERROR(VLOOKUP(A98,'🗂 Base de données prestations'!A:V,16,FALSE),\"\")","v":""},{"$f":"IFERROR(VLOOKUP(A98,'🗂 Base de données prestations'!A:V,13,FALSE),\"\")","v":""},{"$f":"IFERROR(VLOOKUP($A98,'🗂 Base de données prestations'!$A:$V,2,FALSE)&\"  \"&VLOOKUP(A98,'🗂 Base de données prestations'!A:V,3,FALSE)&\" - \"&VLOOKUP(A98,'🗂 Base de données prestations'!A:V,4,FALSE)&\" - \"&VLOOKUP(A98,'🗂 Base de données prestations'!A:V,12,FALSE),\"\")","v":""},{"$f":"IFERROR(VLOOKUP($A98,'🗂 Base de données prestations'!$A:$V,15,FALSE),\" \")","v":" "},null,{"$f":"MONTH(recettesnov[[#This Row],[Date d''encaissement]])","v":1}]
[null,null,{"$f":"IFERROR(VLOOKUP(A99,'🗂 Base de données prestations'!A:V,16,FALSE),\"\")","v":""},{"$f":"IFERROR(VLOOKUP(A99,'🗂 Base de données prestations'!A:V,13,FALSE),\"\")","v":""},{"$f":"IFERROR(VLOOKUP($A99,'🗂 Base de données prestations'!$A:$V,2,FALSE)&\"  \"&VLOOKUP(A99,'🗂 Base de données prestations'!A:V,3,FALSE)&\" - \"&VLOOKUP(A99,'🗂 Base de données prestations'!A:V,4,FALSE)&\" - \"&VLOOKUP(A99,'🗂 Base de données prestations'!A:V,12,FALSE),\"\")","v":""},{"$f":"IFERROR(VLOOKUP($A99,'🗂 Base de données prestations'!$A:$V,15,FALSE),\" \")","v":" "},null,{"$f":"MONTH(recettesnov[[#This Row],[Date d''encaissement]])","v":1}]
[null,null,{"$f":"IFERROR(VLOOKUP(A100,'🗂 Base de données prestations'!A:V,16,FALSE),\"\")","v":""},{"$f":"IFERROR(VLOOKUP(A100,'🗂 Base de données prestations'!A:V,13,FALSE),\"\")","v":""},{"$f":"IFERROR(VLOOKUP($A100,'🗂 Base de données prestations'!$A:$V,2,FALSE)&\"  \"&VLOOKUP(A100,'🗂 Base de données prestations'!A:V,3,FALSE)&\" - \"&VLOOKUP(A100,'🗂 Base de données prestations'!A:V,4,FALSE)&\" - \"&VLOOKUP(A100,'🗂 Base de données prestations'!A:V,12,FALSE),\"\")","v":""},{"$f":"IFERROR(VLOOKUP($A100,'🗂 Base de données prestations'!$A:$V,15,FALSE),\" \")","v":" "},null,{"$f":"MONTH(recettesnov[[#This Row],[Date d''encaissement]])","v":1}]
[null,null,{"$f":"IFERROR(VLOOKUP(A101,'🗂 Base de données prestations'!A:V,16,FALSE),\"\")","v":""},{"$f":"IFERROR(VLOOKUP(A101,'🗂 Base de données prestations'!A:V,13,FALSE),\"\")","v":""},{"$f":"IFERROR(VLOOKUP($A101,'🗂 Base de données prestations'!$A:$V,2,FALSE)&\"  \"&VLOOKUP(A101,'🗂 Base de données prestations'!A:V,3,FALSE)&\" - \"&VLOOKUP(A101,'🗂 Base de données prestations'!A:V,4,FALSE)&\" - \"&VLOOKUP(A101,'🗂 Base de données prestations'!A:V,12,FALSE),\"\")","v":""},{"$f":"IFERROR(VLOOKUP($A101,'🗂 Base de données prestations'!$A:$V,15,FALSE),\" \")","v":" "},null,{"$f":"MONTH(recettesnov[[#This Row],[Date d''encaissement]])","v":1}]
[null,null,{"$f":"IFERROR(VLOOKUP(A102,'🗂 Base de données prestations'!A:V,16,FALSE),\"\")","v":""},{"$f":"IFERROR(VLOOKUP(A102,'🗂 Base de données prestations'!A:V,13,FALSE),\"\")","v":""},{"$f":"IFERROR(VLOOKUP($A102,'🗂 Base de données prestations'!$A:$V,2,FALSE)&\"  \"&VLOOKUP(A102,'🗂 Base de données prestations'!A:V,3,FALSE)&\" - \"&VLOOKUP(A102,'🗂 Base de données prestations'!A:V,4,FALSE)&\" - \"&VLOOKUP(A102,'🗂 Base de données prestations'!A:V,12,FALSE),\"\")","v":""},{"$f":"IFERROR(VLOOKUP($A102,'🗂 Base de données prestations'!$A:$V,15,FALSE),\" \")","v":" "},null,{"$f":"MONTH(recettesnov[[#This Row],[Date d''encaissement]])","v":1}]
[null,null,{"$f":"IFERROR(VLOOKUP(A103,'🗂 Base de données prestations'!A:V,16,FALSE),\"\")","v":""},{"$f":"IFERROR(VLOOKUP(A103,'🗂 Base de données prestations'!A:V,13,FALSE),\"\")","v":""},{"$f":"IFERROR(VLOOKUP($A103,'🗂 Base de données prestations'!$A:$V,2,FALSE)&\"  \"&VLOOKUP(A103,'🗂 Base de données prestations'!A:V,3,FALSE)&\" - \"&VLOOKUP(A103,'🗂 Base de données prestations'!A:V,4,FALSE)&\" - \"&VLOOKUP(A103,'🗂 Base de données prestations'!A:V,12,FALSE),\"\")","v":""},{"$f":"IFERROR(VLOOKUP($A103,'🗂 Base de données prestations'!$A:$V,15,FALSE),\" \")","v":" "},null,{"$f":"MONTH(recettesnov[[#This Row],[Date d''encaissement]])","v":1}]
[null,null,{"$f":"IFERROR(VLOOKUP(A104,'🗂 Base de données prestations'!A:V,16,FALSE),\"\")","v":""},{"$f":"IFERROR(VLOOKUP(A104,'🗂 Base de données prestations'!A:V,13,FALSE),\"\")","v":""},{"$f":"IFERROR(VLOOKUP($A104,'🗂 Base de données prestations'!$A:$V,2,FALSE)&\"  \"&VLOOKUP(A104,'🗂 Base de données prestations'!A:V,3,FALSE)&\" - \"&VLOOKUP(A104,'🗂 Base de données prestations'!A:V,4,FALSE)&\" - \"&VLOOKUP(A104,'🗂 Base de données prestations'!A:V,12,FALSE),\"\")","v":""},{"$f":"IFERROR(VLOOKUP($A104,'🗂 Base de données prestations'!$A:$V,15,FALSE),\" \")","v":" "},null,{"$f":"MONTH(recettesnov[[#This Row],[Date d''encaissement]])","v":1}]
[null,null,{"$f":"IFERROR(VLOOKUP(A105,'🗂 Base de données prestations'!A:V,16,FALSE),\"\")","v":""},{"$f":"IFERROR(VLOOKUP(A105,'🗂 Base de données prestations'!A:V,13,FALSE),\"\")","v":""},{"$f":"IFERROR(VLOOKUP($A105,'🗂 Base de données prestations'!$A:$V,2,FALSE)&\"  \"&VLOOKUP(A105,'🗂 Base de données prestations'!A:V,3,FALSE)&\" - \"&VLOOKUP(A105,'🗂 Base de données prestations'!A:V,4,FALSE)&\" - \"&VLOOKUP(A105,'🗂 Base de données prestations'!A:V,12,FALSE),\"\")","v":""},{"$f":"IFERROR(VLOOKUP($A105,'🗂 Base de données prestations'!$A:$V,15,FALSE),\" \")","v":" "},null,{"$f":"MONTH(recettesnov[[#This Row],[Date d''encaissement]])","v":1}]
[null,null,{"$f":"IFERROR(VLOOKUP(A106,'🗂 Base de données prestations'!A:V,16,FALSE),\"\")","v":""},{"$f":"IFERROR(VLOOKUP(A106,'🗂 Base de données prestations'!A:V,13,FALSE),\"\")","v":""},{"$f":"IFERROR(VLOOKUP($A106,'🗂 Base de données prestations'!$A:$V,2,FALSE)&\"  \"&VLOOKUP(A106,'🗂 Base de données prestations'!A:V,3,FALSE)&\" - \"&VLOOKUP(A106,'🗂 Base de données prestations'!A:V,4,FALSE)&\" - \"&VLOOKUP(A106,'🗂 Base de données prestations'!A:V,12,FALSE),\"\")","v":""},{"$f":"IFERROR(VLOOKUP($A106,'🗂 Base de données prestations'!$A:$V,15,FALSE),\" \")","v":" "},null,{"$f":"MONTH(recettesnov[[#This Row],[Date d''encaissement]])","v":1}]
[null,null,{"$f":"IFERROR(VLOOKUP(A107,'🗂 Base de données prestations'!A:V,16,FALSE),\"\")","v":""},{"$f":"IFERROR(VLOOKUP(A107,'🗂 Base de données prestations'!A:V,13,FALSE),\"\")","v":""},{"$f":"IFERROR(VLOOKUP($A107,'🗂 Base de données prestations'!$A:$V,2,FALSE)&\"  \"&VLOOKUP(A107,'🗂 Base de données prestations'!A:V,3,FALSE)&\" - \"&VLOOKUP(A107,'🗂 Base de données prestations'!A:V,4,FALSE)&\" - \"&VLOOKUP(A107,'🗂 Base de données prestations'!A:V,12,FALSE),\"\")","v":""},{"$f":"IFERROR(VLOOKUP($A107,'🗂 Base de données prestations'!$A:$V,15,FALSE),\" \")","v":" "},null,{"$f":"MONTH(recettesnov[[#This Row],[Date d''encaissement]])","v":1}]
[null,null,{"$f":"IFERROR(VLOOKUP(A108,'🗂 Base de données prestations'!A:V,16,FALSE),\"\")","v":""},{"$f":"IFERROR(VLOOKUP(A108,'🗂 Base de données prestations'!A:V,13,FALSE),\"\")","v":""},{"$f":"IFERROR(VLOOKUP($A108,'🗂 Base de données prestations'!$A:$V,2,FALSE)&\"  \"&VLOOKUP(A108,'🗂 Base de données prestations'!A:V,3,FALSE)&\" - \"&VLOOKUP(A108,'🗂 Base de données prestations'!A:V,4,FALSE)&\" - \"&VLOOKUP(A108,'🗂 Base de données prestations'!A:V,12,FALSE),\"\")","v":""},{"$f":"IFERROR(VLOOKUP($A108,'🗂 Base de données prestations'!$A:$V,15,FALSE),\" \")","v":" "},null,{"$f":"MONTH(recettesnov[[#This Row],[Date d''encaissement]])","v":1}]
[null,null,{"$f":"IFERROR(VLOOKUP(A109,'🗂 Base de données prestations'!A:V,16,FALSE),\"\")","v":""},{"$f":"IFERROR(VLOOKUP(A109,'🗂 Base de données prestations'!A:V,13,FALSE),\"\")","v":""},{"$f":"IFERROR(VLOOKUP($A109,'🗂 Base de données prestations'!$A:$V,2,FALSE)&\"  \"&VLOOKUP(A109,'🗂 Base de données prestations'!A:V,3,FALSE)&\" - \"&VLOOKUP(A109,'🗂 Base de données prestations'!A:V,4,FALSE)&\" - \"&VLOOKUP(A109,'🗂 Base de données prestations'!A:V,12,FALSE),\"\")","v":""},{"$f":"IFERROR(VLOOKUP($A109,'🗂 Base de données prestations'!$A:$V,15,FALSE),\" \")","v":" "},null,{"$f":"MONTH(recettesnov[[#This Row],[Date d''encaissement]])","v":1}]
[null,null,{"$f":"IFERROR(VLOOKUP(A110,'🗂 Base de données prestations'!A:V,16,FALSE),\"\")","v":""},{"$f":"IFERROR(VLOOKUP(A110,'🗂 Base de données prestations'!A:V,13,FALSE),\"\")","v":""},{"$f":"IFERROR(VLOOKUP($A110,'🗂 Base de données prestations'!$A:$V,2,FALSE)&\"  \"&VLOOKUP(A110,'🗂 Base de données prestations'!A:V,3,FALSE)&\" - \"&VLOOKUP(A110,'🗂 Base de données prestations'!A:V,4,FALSE)&\" - \"&VLOOKUP(A110,'🗂 Base de données prestations'!A:V,12,FALSE),\"\")","v":""},{"$f":"IFERROR(VLOOKUP($A110,'🗂 Base de données prestations'!$A:$V,15,FALSE),\" \")","v":" "},null,{"$f":"MONTH(recettesnov[[#This Row],[Date d''encaissement]])","v":1}]
[null,null,{"$f":"IFERROR(VLOOKUP(A111,'🗂 Base de données prestations'!A:V,16,FALSE),\"\")","v":""},{"$f":"IFERROR(VLOOKUP(A111,'🗂 Base de données prestations'!A:V,13,FALSE),\"\")","v":""},{"$f":"IFERROR(VLOOKUP($A111,'🗂 Base de données prestations'!$A:$V,2,FALSE)&\"  \"&VLOOKUP(A111,'🗂 Base de données prestations'!A:V,3,FALSE)&\" - \"&VLOOKUP(A111,'🗂 Base de données prestations'!A:V,4,FALSE)&\" - \"&VLOOKUP(A111,'🗂 Base de données prestations'!A:V,12,FALSE),\"\")","v":""},{"$f":"IFERROR(VLOOKUP($A111,'🗂 Base de données prestations'!$A:$V,15,FALSE),\" \")","v":" "},null,{"$f":"MONTH(recettesnov[[#This Row],[Date d''encaissement]])","v":1}]
[null,null,{"$f":"IFERROR(VLOOKUP(A112,'🗂 Base de données prestations'!A:V,16,FALSE),\"\")","v":""},{"$f":"IFERROR(VLOOKUP(A112,'🗂 Base de données prestations'!A:V,13,FALSE),\"\")","v":""},{"$f":"IFERROR(VLOOKUP($A112,'🗂 Base de données prestations'!$A:$V,2,FALSE)&\"  \"&VLOOKUP(A112,'🗂 Base de données prestations'!A:V,3,FALSE)&\" - \"&VLOOKUP(A112,'🗂 Base de données prestations'!A:V,4,FALSE)&\" - \"&VLOOKUP(A112,'🗂 Base de données prestations'!A:V,12,FALSE),\"\")","v":""},{"$f":"IFERROR(VLOOKUP($A112,'🗂 Base de données prestations'!$A:$V,15,FALSE),\" \")","v":" "},null,{"$f":"MONTH(recettesnov[[#This Row],[Date d''encaissement]])","v":1}]
[null,null,{"$f":"IFERROR(VLOOKUP(A113,'🗂 Base de données prestations'!A:V,16,FALSE),\"\")","v":""},{"$f":"IFERROR(VLOOKUP(A113,'🗂 Base de données prestations'!A:V,13,FALSE),\"\")","v":""},{"$f":"IFERROR(VLOOKUP($A113,'🗂 Base de données prestations'!$A:$V,2,FALSE)&\"  \"&VLOOKUP(A113,'🗂 Base de données prestations'!A:V,3,FALSE)&\" - \"&VLOOKUP(A113,'🗂 Base de données prestations'!A:V,4,FALSE)&\" - \"&VLOOKUP(A113,'🗂 Base de données prestations'!A:V,12,FALSE),\"\")","v":""},{"$f":"IFERROR(VLOOKUP($A113,'🗂 Base de données prestations'!$A:$V,15,FALSE),\" \")","v":" "},null,{"$f":"MONTH(recettesnov[[#This Row],[Date d''encaissement]])","v":1}]
[null,null,{"$f":"IFERROR(VLOOKUP(A114,'🗂 Base de données prestations'!A:V,16,FALSE),\"\")","v":""},{"$f":"IFERROR(VLOOKUP(A114,'🗂 Base de données prestations'!A:V,13,FALSE),\"\")","v":""},{"$f":"IFERROR(VLOOKUP($A114,'🗂 Base de données prestations'!$A:$V,2,FALSE)&\"  \"&VLOOKUP(A114,'🗂 Base de données prestations'!A:V,3,FALSE)&\" - \"&VLOOKUP(A114,'🗂 Base de données prestations'!A:V,4,FALSE)&\" - \"&VLOOKUP(A114,'🗂 Base de données prestations'!A:V,12,FALSE),\"\")","v":""},{"$f":"IFERROR(VLOOKUP($A114,'🗂 Base de données prestations'!$A:$V,15,FALSE),\" \")","v":" "},null,{"$f":"MONTH(recettesnov[[#This Row],[Date d''encaissement]])","v":1}]
[null,null,{"$f":"IFERROR(VLOOKUP(A115,'🗂 Base de données prestations'!A:V,16,FALSE),\"\")","v":""},{"$f":"IFERROR(VLOOKUP(A115,'🗂 Base de données prestations'!A:V,13,FALSE),\"\")","v":""},{"$f":"IFERROR(VLOOKUP($A115,'🗂 Base de données prestations'!$A:$V,2,FALSE)&\"  \"&VLOOKUP(A115,'🗂 Base de données prestations'!A:V,3,FALSE)&\" - \"&VLOOKUP(A115,'🗂 Base de données prestations'!A:V,4,FALSE)&\" - \"&VLOOKUP(A115,'🗂 Base de données prestations'!A:V,12,FALSE),\"\")","v":""},{"$f":"IFERROR(VLOOKUP($A115,'🗂 Base de données prestations'!$A:$V,15,FALSE),\" \")","v":" "},null,{"$f":"MONTH(recettesnov[[#This Row],[Date d''encaissement]])","v":1}]
[null,null,{"$f":"IFERROR(VLOOKUP(A116,'🗂 Base de données prestations'!A:V,16,FALSE),\"\")","v":""},{"$f":"IFERROR(VLOOKUP(A116,'🗂 Base de données prestations'!A:V,13,FALSE),\"\")","v":""},{"$f":"IFERROR(VLOOKUP($A116,'🗂 Base de données prestations'!$A:$V,2,FALSE)&\"  \"&VLOOKUP(A116,'🗂 Base de données prestations'!A:V,3,FALSE)&\" - \"&VLOOKUP(A116,'🗂 Base de données prestations'!A:V,4,FALSE)&\" - \"&VLOOKUP(A116,'🗂 Base de données prestations'!A:V,12,FALSE),\"\")","v":""},{"$f":"IFERROR(VLOOKUP($A116,'🗂 Base de données prestations'!$A:$V,15,FALSE),\" \")","v":" "},null,{"$f":"MONTH(recettesnov[[#This Row],[Date d''encaissement]])","v":1}]
[null,null,{"$f":"IFERROR(VLOOKUP(A117,'🗂 Base de données prestations'!A:V,16,FALSE),\"\")","v":""},{"$f":"IFERROR(VLOOKUP(A117,'🗂 Base de données prestations'!A:V,13,FALSE),\"\")","v":""},{"$f":"IFERROR(VLOOKUP($A117,'🗂 Base de données prestations'!$A:$V,2,FALSE)&\"  \"&VLOOKUP(A117,'🗂 Base de données prestations'!A:V,3,FALSE)&\" - \"&VLOOKUP(A117,'🗂 Base de données prestations'!A:V,4,FALSE)&\" - \"&VLOOKUP(A117,'🗂 Base de données prestations'!A:V,12,FALSE),\"\")","v":""},{"$f":"IFERROR(VLOOKUP($A117,'🗂 Base de données prestations'!$A:$V,15,FALSE),\" \")","v":" "},null,{"$f":"MONTH(recettesnov[[#This Row],[Date d''encaissement]])","v":1}]
[null,null,{"$f":"IFERROR(VLOOKUP(A118,'🗂 Base de données prestations'!A:V,16,FALSE),\"\")","v":""},{"$f":"IFERROR(VLOOKUP(A118,'🗂 Base de données prestations'!A:V,13,FALSE),\"\")","v":""},{"$f":"IFERROR(VLOOKUP($A118,'🗂 Base de données prestations'!$A:$V,2,FALSE)&\"  \"&VLOOKUP(A118,'🗂 Base de données prestations'!A:V,3,FALSE)&\" - \"&VLOOKUP(A118,'🗂 Base de données prestations'!A:V,4,FALSE)&\" - \"&VLOOKUP(A118,'🗂 Base de données prestations'!A:V,12,FALSE),\"\")","v":""},{"$f":"IFERROR(VLOOKUP($A118,'🗂 Base de données prestations'!$A:$V,15,FALSE),\" \")","v":" "},null,{"$f":"MONTH(recettesnov[[#This Row],[Date d''encaissement]])","v":1}]
[null,null,{"$f":"IFERROR(VLOOKUP(A119,'🗂 Base de données prestations'!A:V,16,FALSE),\"\")","v":""},{"$f":"IFERROR(VLOOKUP(A119,'🗂 Base de données prestations'!A:V,13,FALSE),\"\")","v":""},{"$f":"IFERROR(VLOOKUP($A119,'🗂 Base de données prestations'!$A:$V,2,FALSE)&\"  \"&VLOOKUP(A119,'🗂 Base de données prestations'!A:V,3,FALSE)&\" - \"&VLOOKUP(A119,'🗂 Base de données prestations'!A:V,4,FALSE)&\" - \"&VLOOKUP(A119,'🗂 Base de données prestations'!A:V,12,FALSE),\"\")","v":""},{"$f":"IFERROR(VLOOKUP($A119,'🗂 Base de données prestations'!$A:$V,15,FALSE),\" \")","v":" "},null,{"$f":"MONTH(recettesnov[[#This Row],[Date d''encaissement]])","v":1}]
[null,null,{"$f":"IFERROR(VLOOKUP(A120,'🗂 Base de données prestations'!A:V,16,FALSE),\"\")","v":""},{"$f":"IFERROR(VLOOKUP(A120,'🗂 Base de données prestations'!A:V,13,FALSE),\"\")","v":""},{"$f":"IFERROR(VLOOKUP($A120,'🗂 Base de données prestations'!$A:$V,2,FALSE)&\"  \"&VLOOKUP(A120,'🗂 Base de données prestations'!A:V,3,FALSE)&\" - \"&VLOOKUP(A120,'🗂 Base de données prestations'!A:V,4,FALSE)&\" - \"&VLOOKUP(A120,'🗂 Base de données prestations'!A:V,12,FALSE),\"\")","v":""},{"$f":"IFERROR(VLOOKUP($A120,'🗂 Base de données prestations'!$A:$V,15,FALSE),\" \")","v":" "},null,{"$f":"MONTH(recettesnov[[#This Row],[Date d''encaissement]])","v":1}]
[null,null,{"$f":"IFERROR(VLOOKUP(A121,'🗂 Base de données prestations'!A:V,16,FALSE),\"\")","v":""},{"$f":"IFERROR(VLOOKUP(A121,'🗂 Base de données prestations'!A:V,13,FALSE),\"\")","v":""},{"$f":"IFERROR(VLOOKUP($A121,'🗂 Base de données prestations'!$A:$V,2,FALSE)&\"  \"&VLOOKUP(A121,'🗂 Base de données prestations'!A:V,3,FALSE)&\" - \"&VLOOKUP(A121,'🗂 Base de données prestations'!A:V,4,FALSE)&\" - \"&VLOOKUP(A121,'🗂 Base de données prestations'!A:V,12,FALSE),\"\")","v":""},{"$f":"IFERROR(VLOOKUP($A121,'🗂 Base de données prestations'!$A:$V,15,FALSE),\" \")","v":" "},null,{"$f":"MONTH(recettesnov[[#This Row],[Date d''encaissement]])","v":1}]
[null,null,{"$f":"IFERROR(VLOOKUP(A122,'🗂 Base de données prestations'!A:V,16,FALSE),\"\")","v":""},{"$f":"IFERROR(VLOOKUP(A122,'🗂 Base de données prestations'!A:V,13,FALSE),\"\")","v":""},{"$f":"IFERROR(VLOOKUP($A122,'🗂 Base de données prestations'!$A:$V,2,FALSE)&\"  \"&VLOOKUP(A122,'🗂 Base de données prestations'!A:V,3,FALSE)&\" - \"&VLOOKUP(A122,'🗂 Base de données prestations'!A:V,4,FALSE)&\" - \"&VLOOKUP(A122,'🗂 Base de données prestations'!A:V,12,FALSE),\"\")","v":""},{"$f":"IFERROR(VLOOKUP($A122,'🗂 Base de données prestations'!$A:$V,15,FALSE),\" \")","v":" "},null,{"$f":"MONTH(recettesnov[[#This Row],[Date d''encaissement]])","v":1}]
[null,null,{"$f":"IFERROR(VLOOKUP(A123,'🗂 Base de données prestations'!A:V,16,FALSE),\"\")","v":""},{"$f":"IFERROR(VLOOKUP(A123,'🗂 Base de données prestations'!A:V,13,FALSE),\"\")","v":""},{"$f":"IFERROR(VLOOKUP($A123,'🗂 Base de données prestations'!$A:$V,2,FALSE)&\"  \"&VLOOKUP(A123,'🗂 Base de données prestations'!A:V,3,FALSE)&\" - \"&VLOOKUP(A123,'🗂 Base de données prestations'!A:V,4,FALSE)&\" - \"&VLOOKUP(A123,'🗂 Base de données prestations'!A:V,12,FALSE),\"\")","v":""},{"$f":"IFERROR(VLOOKUP($A123,'🗂 Base de données prestations'!$A:$V,15,FALSE),\" \")","v":" "},null,{"$f":"MONTH(recettesnov[[#This Row],[Date d''encaissement]])","v":1}]
[null,null,{"$f":"IFERROR(VLOOKUP(A124,'🗂 Base de données prestations'!A:V,16,FALSE),\"\")","v":""},{"$f":"IFERROR(VLOOKUP(A124,'🗂 Base de données prestations'!A:V,13,FALSE),\"\")","v":""},{"$f":"IFERROR(VLOOKUP($A124,'🗂 Base de données prestations'!$A:$V,2,FALSE)&\"  \"&VLOOKUP(A124,'🗂 Base de données prestations'!A:V,3,FALSE)&\" - \"&VLOOKUP(A124,'🗂 Base de données prestations'!A:V,4,FALSE)&\" - \"&VLOOKUP(A124,'🗂 Base de données prestations'!A:V,12,FALSE),\"\")","v":""},{"$f":"IFERROR(VLOOKUP($A124,'🗂 Base de données prestations'!$A:$V,15,FALSE),\" \")","v":" "},null,{"$f":"MONTH(recettesnov[[#This Row],[Date d''encaissement]])","v":1}]
[null,null,{"$f":"IFERROR(VLOOKUP(A125,'🗂 Base de données prestations'!A:V,16,FALSE),\"\")","v":""},{"$f":"IFERROR(VLOOKUP(A125,'🗂 Base de données prestations'!A:V,13,FALSE),\"\")","v":""},{"$f":"IFERROR(VLOOKUP($A125,'🗂 Base de données prestations'!$A:$V,2,FALSE)&\"  \"&VLOOKUP(A125,'🗂 Base de données prestations'!A:V,3,FALSE)&\" - \"&VLOOKUP(A125,'🗂 Base de données prestations'!A:V,4,FALSE)&\" - \"&VLOOKUP(A125,'🗂 Base de données prestations'!A:V,12,FALSE),\"\")","v":""},{"$f":"IFERROR(VLOOKUP($A125,'🗂 Base de données prestations'!$A:$V,15,FALSE),\" \")","v":" "},null,{"$f":"MONTH(recettesnov[[#This Row],[Date d''encaissement]])","v":1}]
[null,null,{"$f":"IFERROR(VLOOKUP(A126,'🗂 Base de données prestations'!A:V,16,FALSE),\"\")","v":""},{"$f":"IFERROR(VLOOKUP(A126,'🗂 Base de données prestations'!A:V,13,FALSE),\"\")","v":""},{"$f":"IFERROR(VLOOKUP($A126,'🗂 Base de données prestations'!$A:$V,2,FALSE)&\"  \"&VLOOKUP(A126,'🗂 Base de données prestations'!A:V,3,FALSE)&\" - \"&VLOOKUP(A126,'🗂 Base de données prestations'!A:V,4,FALSE)&\" - \"&VLOOKUP(A126,'🗂 Base de données prestations'!A:V,12,FALSE),\"\")","v":""},{"$f":"IFERROR(VLOOKUP($A126,'🗂 Base de données prestations'!$A:$V,15,FALSE),\" \")","v":" "},null,{"$f":"MONTH(recettesnov[[#This Row],[Date d''encaissement]])","v":1}]
[null,null,{"$f":"IFERROR(VLOOKUP(A127,'🗂 Base de données prestations'!A:V,16,FALSE),\"\")","v":""},{"$f":"IFERROR(VLOOKUP(A127,'🗂 Base de données prestations'!A:V,13,FALSE),\"\")","v":""},{"$f":"IFERROR(VLOOKUP($A127,'🗂 Base de données prestations'!$A:$V,2,FALSE)&\"  \"&VLOOKUP(A127,'🗂 Base de données prestations'!A:V,3,FALSE)&\" - \"&VLOOKUP(A127,'🗂 Base de données prestations'!A:V,4,FALSE)&\" - \"&VLOOKUP(A127,'🗂 Base de données prestations'!A:V,12,FALSE),\"\")","v":""},{"$f":"IFERROR(VLOOKUP($A127,'🗂 Base de données prestations'!$A:$V,15,FALSE),\" \")","v":" "},null,{"$f":"MONTH(recettesnov[[#This Row],[Date d''encaissement]])","v":1}]
[null,null,{"$f":"IFERROR(VLOOKUP(A128,'🗂 Base de données prestations'!A:V,16,FALSE),\"\")","v":""},{"$f":"IFERROR(VLOOKUP(A128,'🗂 Base de données prestations'!A:V,13,FALSE),\"\")","v":""},{"$f":"IFERROR(VLOOKUP($A128,'🗂 Base de données prestations'!$A:$V,2,FALSE)&\"  \"&VLOOKUP(A128,'🗂 Base de données prestations'!A:V,3,FALSE)&\" - \"&VLOOKUP(A128,'🗂 Base de données prestations'!A:V,4,FALSE)&\" - \"&VLOOKUP(A128,'🗂 Base de données prestations'!A:V,12,FALSE),\"\")","v":""},{"$f":"IFERROR(VLOOKUP($A128,'🗂 Base de données prestations'!$A:$V,15,FALSE),\" \")","v":" "},null,{"$f":"MONTH(recettesnov[[#This Row],[Date d''encaissement]])","v":1}]
[null,null,{"$f":"IFERROR(VLOOKUP(A129,'🗂 Base de données prestations'!A:V,16,FALSE),\"\")","v":""},{"$f":"IFERROR(VLOOKUP(A129,'🗂 Base de données prestations'!A:V,13,FALSE),\"\")","v":""},{"$f":"IFERROR(VLOOKUP($A129,'🗂 Base de données prestations'!$A:$V,2,FALSE)&\"  \"&VLOOKUP(A129,'🗂 Base de données prestations'!A:V,3,FALSE)&\" - \"&VLOOKUP(A129,'🗂 Base de données prestations'!A:V,4,FALSE)&\" - \"&VLOOKUP(A129,'🗂 Base de données prestations'!A:V,12,FALSE),\"\")","v":""},{"$f":"IFERROR(VLOOKUP($A129,'🗂 Base de données prestations'!$A:$V,15,FALSE),\" \")","v":" "},null,{"$f":"MONTH(recettesnov[[#This Row],[Date d''encaissement]])","v":1}]
[null,null,{"$f":"IFERROR(VLOOKUP(A130,'🗂 Base de données prestations'!A:V,16,FALSE),\"\")","v":""},{"$f":"IFERROR(VLOOKUP(A130,'🗂 Base de données prestations'!A:V,13,FALSE),\"\")","v":""},{"$f":"IFERROR(VLOOKUP($A130,'🗂 Base de données prestations'!$A:$V,2,FALSE)&\"  \"&VLOOKUP(A130,'🗂 Base de données prestations'!A:V,3,FALSE)&\" - \"&VLOOKUP(A130,'🗂 Base de données prestations'!A:V,4,FALSE)&\" - \"&VLOOKUP(A130,'🗂 Base de données prestations'!A:V,12,FALSE),\"\")","v":""},{"$f":"IFERROR(VLOOKUP($A130,'🗂 Base de données prestations'!$A:$V,15,FALSE),\" \")","v":" "},null,{"$f":"MONTH(recettesnov[[#This Row],[Date d''encaissement]])","v":1}]
[null,null,{"$f":"IFERROR(VLOOKUP(A131,'🗂 Base de données prestations'!A:V,16,FALSE),\"\")","v":""},{"$f":"IFERROR(VLOOKUP(A131,'🗂 Base de données prestations'!A:V,13,FALSE),\"\")","v":""},{"$f":"IFERROR(VLOOKUP($A131,'🗂 Base de données prestations'!$A:$V,2,FALSE)&\"  \"&VLOOKUP(A131,'🗂 Base de données prestations'!A:V,3,FALSE)&\" - \"&VLOOKUP(A131,'🗂 Base de données prestations'!A:V,4,FALSE)&\" - \"&VLOOKUP(A131,'🗂 Base de données prestations'!A:V,12,FALSE),\"\")","v":""},{"$f":"IFERROR(VLOOKUP($A131,'🗂 Base de données prestations'!$A:$V,15,FALSE),\" \")","v":" "},null,{"$f":"MONTH(recettesnov[[#This Row],[Date d''encaissement]])","v":1}]
[null,null,{"$f":"IFERROR(VLOOKUP(A132,'🗂 Base de données prestations'!A:V,16,FALSE),\"\")","v":""},{"$f":"IFERROR(VLOOKUP(A132,'🗂 Base de données prestations'!A:V,13,FALSE),\"\")","v":""},{"$f":"IFERROR(VLOOKUP($A132,'🗂 Base de données prestations'!$A:$V,2,FALSE)&\"  \"&VLOOKUP(A132,'🗂 Base de données prestations'!A:V,3,FALSE)&\" - \"&VLOOKUP(A132,'🗂 Base de données prestations'!A:V,4,FALSE)&\" - \"&VLOOKUP(A132,'🗂 Base de données prestations'!A:V,12,FALSE),\"\")","v":""},{"$f":"IFERROR(VLOOKUP($A132,'🗂 Base de données prestations'!$A:$V,15,FALSE),\" \")","v":" "},null,{"$f":"MONTH(recettesnov[[#This Row],[Date d''encaissement]])","v":1}]
[null,null,{"$f":"IFERROR(VLOOKUP(A133,'🗂 Base de données prestations'!A:V,16,FALSE),\"\")","v":""},{"$f":"IFERROR(VLOOKUP(A133,'🗂 Base de données prestations'!A:V,13,FALSE),\"\")","v":""},{"$f":"IFERROR(VLOOKUP($A133,'🗂 Base de données prestations'!$A:$V,2,FALSE)&\"  \"&VLOOKUP(A133,'🗂 Base de données prestations'!A:V,3,FALSE)&\" - \"&VLOOKUP(A133,'🗂 Base de données prestations'!A:V,4,FALSE)&\" - \"&VLOOKUP(A133,'🗂 Base de données prestations'!A:V,12,FALSE),\"\")","v":""},{"$f":"IFERROR(VLOOKUP($A133,'🗂 Base de données prestations'!$A:$V,15,FALSE),\" \")","v":" "},null,{"$f":"MONTH(recettesnov[[#This Row],[Date d''encaissement]])","v":1}]
[null,null,{"$f":"IFERROR(VLOOKUP(A134,'🗂 Base de données prestations'!A:V,16,FALSE),\"\")","v":""},{"$f":"IFERROR(VLOOKUP(A134,'🗂 Base de données prestations'!A:V,13,FALSE),\"\")","v":""},{"$f":"IFERROR(VLOOKUP($A134,'🗂 Base de données prestations'!$A:$V,2,FALSE)&\"  \"&VLOOKUP(A134,'🗂 Base de données prestations'!A:V,3,FALSE)&\" - \"&VLOOKUP(A134,'🗂 Base de données prestations'!A:V,4,FALSE)&\" - \"&VLOOKUP(A134,'🗂 Base de données prestations'!A:V,12,FALSE),\"\")","v":""},{"$f":"IFERROR(VLOOKUP($A134,'🗂 Base de données prestations'!$A:$V,15,FALSE),\" \")","v":" "},null,{"$f":"MONTH(recettesnov[[#This Row],[Date d''encaissement]])","v":1}]
[null,null,{"$f":"IFERROR(VLOOKUP(A135,'🗂 Base de données prestations'!A:V,16,FALSE),\"\")","v":""},{"$f":"IFERROR(VLOOKUP(A135,'🗂 Base de données prestations'!A:V,13,FALSE),\"\")","v":""},{"$f":"IFERROR(VLOOKUP($A135,'🗂 Base de données prestations'!$A:$V,2,FALSE)&\"  \"&VLOOKUP(A135,'🗂 Base de données prestations'!A:V,3,FALSE)&\" - \"&VLOOKUP(A135,'🗂 Base de données prestations'!A:V,4,FALSE)&\" - \"&VLOOKUP(A135,'🗂 Base de données prestations'!A:V,12,FALSE),\"\")","v":""},{"$f":"IFERROR(VLOOKUP($A135,'🗂 Base de données prestations'!$A:$V,15,FALSE),\" \")","v":" "},null,{"$f":"MONTH(recettesnov[[#This Row],[Date d''encaissement]])","v":1}]
[null,null,{"$f":"IFERROR(VLOOKUP(A136,'🗂 Base de données prestations'!A:V,16,FALSE),\"\")","v":""},{"$f":"IFERROR(VLOOKUP(A136,'🗂 Base de données prestations'!A:V,13,FALSE),\"\")","v":""},{"$f":"IFERROR(VLOOKUP($A136,'🗂 Base de données prestations'!$A:$V,2,FALSE)&\"  \"&VLOOKUP(A136,'🗂 Base de données prestations'!A:V,3,FALSE)&\" - \"&VLOOKUP(A136,'🗂 Base de données prestations'!A:V,4,FALSE)&\" - \"&VLOOKUP(A136,'🗂 Base de données prestations'!A:V,12,FALSE),\"\")","v":""},{"$f":"IFERROR(VLOOKUP($A136,'🗂 Base de données prestations'!$A:$V,15,FALSE),\" \")","v":" "},null,{"$f":"MONTH(recettesnov[[#This Row],[Date d''encaissement]])","v":1}]
[null,null,{"$f":"IFERROR(VLOOKUP(A137,'🗂 Base de données prestations'!A:V,16,FALSE),\"\")","v":""},{"$f":"IFERROR(VLOOKUP(A137,'🗂 Base de données prestations'!A:V,13,FALSE),\"\")","v":""},{"$f":"IFERROR(VLOOKUP($A137,'🗂 Base de données prestations'!$A:$V,2,FALSE)&\"  \"&VLOOKUP(A137,'🗂 Base de données prestations'!A:V,3,FALSE)&\" - \"&VLOOKUP(A137,'🗂 Base de données prestations'!A:V,4,FALSE)&\" - \"&VLOOKUP(A137,'🗂 Base de données prestations'!A:V,12,FALSE),\"\")","v":""},{"$f":"IFERROR(VLOOKUP($A137,'🗂 Base de données prestations'!$A:$V,15,FALSE),\" \")","v":" "},null,{"$f":"MONTH(recettesnov[[#This Row],[Date d''encaissement]])","v":1}]
[null,null,{"$f":"IFERROR(VLOOKUP(A138,'🗂 Base de données prestations'!A:V,16,FALSE),\"\")","v":""},{"$f":"IFERROR(VLOOKUP(A138,'🗂 Base de données prestations'!A:V,13,FALSE),\"\")","v":""},{"$f":"IFERROR(VLOOKUP($A138,'🗂 Base de données prestations'!$A:$V,2,FALSE)&\"  \"&VLOOKUP(A138,'🗂 Base de données prestations'!A:V,3,FALSE)&\" - \"&VLOOKUP(A138,'🗂 Base de données prestations'!A:V,4,FALSE)&\" - \"&VLOOKUP(A138,'🗂 Base de données prestations'!A:V,12,FALSE),\"\")","v":""},{"$f":"IFERROR(VLOOKUP($A138,'🗂 Base de données prestations'!$A:$V,15,FALSE),\" \")","v":" "},null,{"$f":"MONTH(recettesnov[[#This Row],[Date d''encaissement]])","v":1}]
[null,null,{"$f":"IFERROR(VLOOKUP(A139,'🗂 Base de données prestations'!A:V,16,FALSE),\"\")","v":""},{"$f":"IFERROR(VLOOKUP(A139,'🗂 Base de données prestations'!A:V,13,FALSE),\"\")","v":""},{"$f":"IFERROR(VLOOKUP($A139,'🗂 Base de données prestations'!$A:$V,2,FALSE)&\"  \"&VLOOKUP(A139,'🗂 Base de données prestations'!A:V,3,FALSE)&\" - \"&VLOOKUP(A139,'🗂 Base de données prestations'!A:V,4,FALSE)&\" - \"&VLOOKUP(A139,'🗂 Base de données prestations'!A:V,12,FALSE),\"\")","v":""},{"$f":"IFERROR(VLOOKUP($A139,'🗂 Base de données prestations'!$A:$V,15,FALSE),\" \")","v":" "},null,{"$f":"MONTH(recettesnov[[#This Row],[Date d''encaissement]])","v":1}]
[null,null,{"$f":"IFERROR(VLOOKUP(A140,'🗂 Base de données prestations'!A:V,16,FALSE),\"\")","v":""},{"$f":"IFERROR(VLOOKUP(A140,'🗂 Base de données prestations'!A:V,13,FALSE),\"\")","v":""},{"$f":"IFERROR(VLOOKUP($A140,'🗂 Base de données prestations'!$A:$V,2,FALSE)&\"  \"&VLOOKUP(A140,'🗂 Base de données prestations'!A:V,3,FALSE)&\" - \"&VLOOKUP(A140,'🗂 Base de données prestations'!A:V,4,FALSE)&\" - \"&VLOOKUP(A140,'🗂 Base de données prestations'!A:V,12,FALSE),\"\")","v":""},{"$f":"IFERROR(VLOOKUP($A140,'🗂 Base de données prestations'!$A:$V,15,FALSE),\" \")","v":" "},null,{"$f":"MONTH(recettesnov[[#This Row],[Date d''encaissement]])","v":1}]
[null,null,{"$f":"IFERROR(VLOOKUP(A141,'🗂 Base de données prestations'!A:V,16,FALSE),\"\")","v":""},{"$f":"IFERROR(VLOOKUP(A141,'🗂 Base de données prestations'!A:V,13,FALSE),\"\")","v":""},{"$f":"IFERROR(VLOOKUP($A141,'🗂 Base de données prestations'!$A:$V,2,FALSE)&\"  \"&VLOOKUP(A141,'🗂 Base de données prestations'!A:V,3,FALSE)&\" - \"&VLOOKUP(A141,'🗂 Base de données prestations'!A:V,4,FALSE)&\" - \"&VLOOKUP(A141,'🗂 Base de données prestations'!A:V,12,FALSE),\"\")","v":""},{"$f":"IFERROR(VLOOKUP($A141,'🗂 Base de données prestations'!$A:$V,15,FALSE),\" \")","v":" "},null,{"$f":"MONTH(recettesnov[[#This Row],[Date d''encaissement]])","v":1}]
[null,null,{"$f":"IFERROR(VLOOKUP(A142,'🗂 Base de données prestations'!A:V,16,FALSE),\"\")","v":""},{"$f":"IFERROR(VLOOKUP(A142,'🗂 Base de données prestations'!A:V,13,FALSE),\"\")","v":""},{"$f":"IFERROR(VLOOKUP($A142,'🗂 Base de données prestations'!$A:$V,2,FALSE)&\"  \"&VLOOKUP(A142,'🗂 Base de données prestations'!A:V,3,FALSE)&\" - \"&VLOOKUP(A142,'🗂 Base de données prestations'!A:V,4,FALSE)&\" - \"&VLOOKUP(A142,'🗂 Base de données prestations'!A:V,12,FALSE),\"\")","v":""},{"$f":"IFERROR(VLOOKUP($A142,'🗂 Base de données prestations'!$A:$V,15,FALSE),\" \")","v":" "},null,{"$f":"MONTH(recettesnov[[#This Row],[Date d''encaissement]])","v":1}]
[null,null,{"$f":"IFERROR(VLOOKUP(A143,'🗂 Base de données prestations'!A:V,16,FALSE),\"\")","v":""},{"$f":"IFERROR(VLOOKUP(A143,'🗂 Base de données prestations'!A:V,13,FALSE),\"\")","v":""},{"$f":"IFERROR(VLOOKUP($A143,'🗂 Base de données prestations'!$A:$V,2,FALSE)&\"  \"&VLOOKUP(A143,'🗂 Base de données prestations'!A:V,3,FALSE)&\" - \"&VLOOKUP(A143,'🗂 Base de données prestations'!A:V,4,FALSE)&\" - \"&VLOOKUP(A143,'🗂 Base de données prestations'!A:V,12,FALSE),\"\")","v":""},{"$f":"IFERROR(VLOOKUP($A143,'🗂 Base de données prestations'!$A:$V,15,FALSE),\" \")","v":" "},null,{"$f":"MONTH(recettesnov[[#This Row],[Date d''encaissement]])","v":1}]
[null,null,{"$f":"IFERROR(VLOOKUP(A144,'🗂 Base de données prestations'!A:V,16,FALSE),\"\")","v":""},{"$f":"IFERROR(VLOOKUP(A144,'🗂 Base de données prestations'!A:V,13,FALSE),\"\")","v":""},{"$f":"IFERROR(VLOOKUP($A144,'🗂 Base de données prestations'!$A:$V,2,FALSE)&\"  \"&VLOOKUP(A144,'🗂 Base de données prestations'!A:V,3,FALSE)&\" - \"&VLOOKUP(A144,'🗂 Base de données prestations'!A:V,4,FALSE)&\" - \"&VLOOKUP(A144,'🗂 Base de données prestations'!A:V,12,FALSE),\"\")","v":""},{"$f":"IFERROR(VLOOKUP($A144,'🗂 Base de données prestations'!$A:$V,15,FALSE),\" \")","v":" "},null,{"$f":"MONTH(recettesnov[[#This Row],[Date d''encaissement]])","v":1}]
[null,null,{"$f":"IFERROR(VLOOKUP(A145,'🗂 Base de données prestations'!A:V,16,FALSE),\"\")","v":""},{"$f":"IFERROR(VLOOKUP(A145,'🗂 Base de données prestations'!A:V,13,FALSE),\"\")","v":""},{"$f":"IFERROR(VLOOKUP($A145,'🗂 Base de données prestations'!$A:$V,2,FALSE)&\"  \"&VLOOKUP(A145,'🗂 Base de données prestations'!A:V,3,FALSE)&\" - \"&VLOOKUP(A145,'🗂 Base de données prestations'!A:V,4,FALSE)&\" - \"&VLOOKUP(A145,'🗂 Base de données prestations'!A:V,12,FALSE),\"\")","v":""},{"$f":"IFERROR(VLOOKUP($A145,'🗂 Base de données prestations'!$A:$V,15,FALSE),\" \")","v":" "},null,{"$f":"MONTH(recettesnov[[#This Row],[Date d''encaissement]])","v":1}]
[null,null,{"$f":"IFERROR(VLOOKUP(A146,'🗂 Base de données prestations'!A:V,16,FALSE),\"\")","v":""},{"$f":"IFERROR(VLOOKUP(A146,'🗂 Base de données prestations'!A:V,13,FALSE),\"\")","v":""},{"$f":"IFERROR(VLOOKUP($A146,'🗂 Base de données prestations'!$A:$V,2,FALSE)&\"  \"&VLOOKUP(A146,'🗂 Base de données prestations'!A:V,3,FALSE)&\" - \"&VLOOKUP(A146,'🗂 Base de données prestations'!A:V,4,FALSE)&\" - \"&VLOOKUP(A146,'🗂 Base de données prestations'!A:V,12,FALSE),\"\")","v":""},{"$f":"IFERROR(VLOOKUP($A146,'🗂 Base de données prestations'!$A:$V,15,FALSE),\" \")","v":" "},null,{"$f":"MONTH(recettesnov[[#This Row],[Date d''encaissement]])","v":1}]
[null,null,{"$f":"IFERROR(VLOOKUP(A147,'🗂 Base de données prestations'!A:V,16,FALSE),\"\")","v":""},{"$f":"IFERROR(VLOOKUP(A147,'🗂 Base de données prestations'!A:V,13,FALSE),\"\")","v":""},{"$f":"IFERROR(VLOOKUP($A147,'🗂 Base de données prestations'!$A:$V,2,FALSE)&\"  \"&VLOOKUP(A147,'🗂 Base de données prestations'!A:V,3,FALSE)&\" - \"&VLOOKUP(A147,'🗂 Base de données prestations'!A:V,4,FALSE)&\" - \"&VLOOKUP(A147,'🗂 Base de données prestations'!A:V,12,FALSE),\"\")","v":""},{"$f":"IFERROR(VLOOKUP($A147,'🗂 Base de données prestations'!$A:$V,15,FALSE),\" \")","v":" "},null,{"$f":"MONTH(recettesnov[[#This Row],[Date d''encaissement]])","v":1}]
[null,null,{"$f":"IFERROR(VLOOKUP(A148,'🗂 Base de données prestations'!A:V,16,FALSE),\"\")","v":""},{"$f":"IFERROR(VLOOKUP(A148,'🗂 Base de données prestations'!A:V,13,FALSE),\"\")","v":""},{"$f":"IFERROR(VLOOKUP($A148,'🗂 Base de données prestations'!$A:$V,2,FALSE)&\"  \"&VLOOKUP(A148,'🗂 Base de données prestations'!A:V,3,FALSE)&\" - \"&VLOOKUP(A148,'🗂 Base de données prestations'!A:V,4,FALSE)&\" - \"&VLOOKUP(A148,'🗂 Base de données prestations'!A:V,12,FALSE),\"\")","v":""},{"$f":"IFERROR(VLOOKUP($A148,'🗂 Base de données prestations'!$A:$V,15,FALSE),\" \")","v":" "},null,{"$f":"MONTH(recettesnov[[#This Row],[Date d''encaissement]])","v":1}]
[null,null,{"$f":"IFERROR(VLOOKUP(A149,'🗂 Base de données prestations'!A:V,16,FALSE),\"\")","v":""},{"$f":"IFERROR(VLOOKUP(A149,'🗂 Base de données prestations'!A:V,13,FALSE),\"\")","v":""},{"$f":"IFERROR(VLOOKUP($A149,'🗂 Base de données prestations'!$A:$V,2,FALSE)&\"  \"&VLOOKUP(A149,'🗂 Base de données prestations'!A:V,3,FALSE)&\" - \"&VLOOKUP(A149,'🗂 Base de données prestations'!A:V,4,FALSE)&\" - \"&VLOOKUP(A149,'🗂 Base de données prestations'!A:V,12,FALSE),\"\")","v":""},{"$f":"IFERROR(VLOOKUP($A149,'🗂 Base de données prestations'!$A:$V,15,FALSE),\" \")","v":" "},null,{"$f":"MONTH(recettesnov[[#This Row],[Date d''encaissement]])","v":1}]
[null,null,{"$f":"IFERROR(VLOOKUP(A150,'🗂 Base de données prestations'!A:V,16,FALSE),\"\")","v":""},{"$f":"IFERROR(VLOOKUP(A150,'🗂 Base de données prestations'!A:V,13,FALSE),\"\")","v":""},{"$f":"IFERROR(VLOOKUP($A150,'🗂 Base de données prestations'!$A:$V,2,FALSE)&\"  \"&VLOOKUP(A150,'🗂 Base de données prestations'!A:V,3,FALSE)&\" - \"&VLOOKUP(A150,'🗂 Base de données prestations'!A:V,4,FALSE)&\" - \"&VLOOKUP(A150,'🗂 Base de données prestations'!A:V,12,FALSE),\"\")","v":""},{"$f":"IFERROR(VLOOKUP($A150,'🗂 Base de données prestations'!$A:$V,15,FALSE),\" \")","v":" "},null,{"$f":"MONTH(recettesnov[[#This Row],[Date d''encaissement]])","v":1}]
[null,null,{"$f":"IFERROR(VLOOKUP(A151,'🗂 Base de données prestations'!A:V,16,FALSE),\"\")","v":""},{"$f":"IFERROR(VLOOKUP(A151,'🗂 Base de données prestations'!A:V,13,FALSE),\"\")","v":""},{"$f":"IFERROR(VLOOKUP($A151,'🗂 Base de données prestations'!$A:$V,2,FALSE)&\"  \"&VLOOKUP(A151,'🗂 Base de données prestations'!A:V,3,FALSE)&\" - \"&VLOOKUP(A151,'🗂 Base de données prestations'!A:V,4,FALSE)&\" - \"&VLOOKUP(A151,'🗂 Base de données prestations'!A:V,12,FALSE),\"\")","v":""},{"$f":"IFERROR(VLOOKUP($A151,'🗂 Base de données prestations'!$A:$V,15,FALSE),\" \")","v":" "},null,{"$f":"MONTH(recettesnov[[#This Row],[Date d''encaissement]])","v":1}]
[null,null,{"$f":"IFERROR(VLOOKUP(A152,'🗂 Base de données prestations'!A:V,16,FALSE),\"\")","v":""},{"$f":"IFERROR(VLOOKUP(A152,'🗂 Base de données prestations'!A:V,13,FALSE),\"\")","v":""},{"$f":"IFERROR(VLOOKUP($A152,'🗂 Base de données prestations'!$A:$V,2,FALSE)&\"  \"&VLOOKUP(A152,'🗂 Base de données prestations'!A:V,3,FALSE)&\" - \"&VLOOKUP(A152,'🗂 Base de données prestations'!A:V,4,FALSE)&\" - \"&VLOOKUP(A152,'🗂 Base de données prestations'!A:V,12,FALSE),\"\")","v":""},{"$f":"IFERROR(VLOOKUP($A152,'🗂 Base de données prestations'!$A:$V,15,FALSE),\" \")","v":" "},null,{"$f":"MONTH(recettesnov[[#This Row],[Date d''encaissement]])","v":1}]
[null,null,{"$f":"IFERROR(VLOOKUP(A153,'🗂 Base de données prestations'!A:V,16,FALSE),\"\")","v":""},{"$f":"IFERROR(VLOOKUP(A153,'🗂 Base de données prestations'!A:V,13,FALSE),\"\")","v":""},{"$f":"IFERROR(VLOOKUP($A153,'🗂 Base de données prestations'!$A:$V,2,FALSE)&\"  \"&VLOOKUP(A153,'🗂 Base de données prestations'!A:V,3,FALSE)&\" - \"&VLOOKUP(A153,'🗂 Base de données prestations'!A:V,4,FALSE)&\" - \"&VLOOKUP(A153,'🗂 Base de données prestations'!A:V,12,FALSE),\"\")","v":""},{"$f":"IFERROR(VLOOKUP($A153,'🗂 Base de données prestations'!$A:$V,15,FALSE),\" \")","v":" "},null,{"$f":"MONTH(recettesnov[[#This Row],[Date d''encaissement]])","v":1}]
[null,null,{"$f":"IFERROR(VLOOKUP(A154,'🗂 Base de données prestations'!A:V,16,FALSE),\"\")","v":""},{"$f":"IFERROR(VLOOKUP(A154,'🗂 Base de données prestations'!A:V,13,FALSE),\"\")","v":""},{"$f":"IFERROR(VLOOKUP($A154,'🗂 Base de données prestations'!$A:$V,2,FALSE)&\"  \"&VLOOKUP(A154,'🗂 Base de données prestations'!A:V,3,FALSE)&\" - \"&VLOOKUP(A154,'🗂 Base de données prestations'!A:V,4,FALSE)&\" - \"&VLOOKUP(A154,'🗂 Base de données prestations'!A:V,12,FALSE),\"\")","v":""},{"$f":"IFERROR(VLOOKUP($A154,'🗂 Base de données prestations'!$A:$V,15,FALSE),\" \")","v":" "},null,{"$f":"MONTH(recettesnov[[#This Row],[Date d''encaissement]])","v":1}]
[null,null,{"$f":"IFERROR(VLOOKUP(A155,'🗂 Base de données prestations'!A:V,16,FALSE),\"\")","v":""},{"$f":"IFERROR(VLOOKUP(A155,'🗂 Base de données prestations'!A:V,13,FALSE),\"\")","v":""},{"$f":"IFERROR(VLOOKUP($A155,'🗂 Base de données prestations'!$A:$V,2,FALSE)&\"  \"&VLOOKUP(A155,'🗂 Base de données prestations'!A:V,3,FALSE)&\" - \"&VLOOKUP(A155,'🗂 Base de données prestations'!A:V,4,FALSE)&\" - \"&VLOOKUP(A155,'🗂 Base de données prestations'!A:V,12,FALSE),\"\")","v":""},{"$f":"IFERROR(VLOOKUP($A155,'🗂 Base de données prestations'!$A:$V,15,FALSE),\" \")","v":" "},null,{"$f":"MONTH(recettesnov[[#This Row],[Date d''encaissement]])","v":1}]
[null,null,{"$f":"IFERROR(VLOOKUP(A156,'🗂 Base de données prestations'!A:V,16,FALSE),\"\")","v":""},{"$f":"IFERROR(VLOOKUP(A156,'🗂 Base de données prestations'!A:V,13,FALSE),\"\")","v":""},{"$f":"IFERROR(VLOOKUP($A156,'🗂 Base de données prestations'!$A:$V,2,FALSE)&\"  \"&VLOOKUP(A156,'🗂 Base de données prestations'!A:V,3,FALSE)&\" - \"&VLOOKUP(A156,'🗂 Base de données prestations'!A:V,4,FALSE)&\" - \"&VLOOKUP(A156,'🗂 Base de données prestations'!A:V,12,FALSE),\"\")","v":""},{"$f":"IFERROR(VLOOKUP($A156,'🗂 Base de données prestations'!$A:$V,15,FALSE),\" \")","v":" "},null,{"$f":"MONTH(recettesnov[[#This Row],[Date d''encaissement]])","v":1}]
[null,null,{"$f":"IFERROR(VLOOKUP(A157,'🗂 Base de données prestations'!A:V,16,FALSE),\"\")","v":""},{"$f":"IFERROR(VLOOKUP(A157,'🗂 Base de données prestations'!A:V,13,FALSE),\"\")","v":""},{"$f":"IFERROR(VLOOKUP($A157,'🗂 Base de données prestations'!$A:$V,2,FALSE)&\"  \"&VLOOKUP(A157,'🗂 Base de données prestations'!A:V,3,FALSE)&\" - \"&VLOOKUP(A157,'🗂 Base de données prestations'!A:V,4,FALSE)&\" - \"&VLOOKUP(A157,'🗂 Base de données prestations'!A:V,12,FALSE),\"\")","v":""},{"$f":"IFERROR(VLOOKUP($A157,'🗂 Base de données prestations'!$A:$V,15,FALSE),\" \")","v":" "},null,{"$f":"MONTH(recettesnov[[#This Row],[Date d''encaissement]])","v":1}]
[null,null,{"$f":"IFERROR(VLOOKUP(A158,'🗂 Base de données prestations'!A:V,16,FALSE),\"\")","v":""},{"$f":"IFERROR(VLOOKUP(A158,'🗂 Base de données prestations'!A:V,13,FALSE),\"\")","v":""},{"$f":"IFERROR(VLOOKUP($A158,'🗂 Base de données prestations'!$A:$V,2,FALSE)&\"  \"&VLOOKUP(A158,'🗂 Base de données prestations'!A:V,3,FALSE)&\" - \"&VLOOKUP(A158,'🗂 Base de données prestations'!A:V,4,FALSE)&\" - \"&VLOOKUP(A158,'🗂 Base de données prestations'!A:V,12,FALSE),\"\")","v":""},{"$f":"IFERROR(VLOOKUP($A158,'🗂 Base de données prestations'!$A:$V,15,FALSE),\" \")","v":" "},null,{"$f":"MONTH(recettesnov[[#This Row],[Date d''encaissement]])","v":1}]
[null,null,{"$f":"IFERROR(VLOOKUP(A159,'🗂 Base de données prestations'!A:V,16,FALSE),\"\")","v":""},{"$f":"IFERROR(VLOOKUP(A159,'🗂 Base de données prestations'!A:V,13,FALSE),\"\")","v":""},{"$f":"IFERROR(VLOOKUP($A159,'🗂 Base de données prestations'!$A:$V,2,FALSE)&\"  \"&VLOOKUP(A159,'🗂 Base de données prestations'!A:V,3,FALSE)&\" - \"&VLOOKUP(A159,'🗂 Base de données prestations'!A:V,4,FALSE)&\" - \"&VLOOKUP(A159,'🗂 Base de données prestations'!A:V,12,FALSE),\"\")","v":""},{"$f":"IFERROR(VLOOKUP($A159,'🗂 Base de données prestations'!$A:$V,15,FALSE),\" \")","v":" "},null,{"$f":"MONTH(recettesnov[[#This Row],[Date d''encaissement]])","v":1}]
[null,null,{"$f":"IFERROR(VLOOKUP(A160,'🗂 Base de données prestations'!A:V,16,FALSE),\"\")","v":""},{"$f":"IFERROR(VLOOKUP(A160,'🗂 Base de données prestations'!A:V,13,FALSE),\"\")","v":""},{"$f":"IFERROR(VLOOKUP($A160,'🗂 Base de données prestations'!$A:$V,2,FALSE)&\"  \"&VLOOKUP(A160,'🗂 Base de données prestations'!A:V,3,FALSE)&\" - \"&VLOOKUP(A160,'🗂 Base de données prestations'!A:V,4,FALSE)&\" - \"&VLOOKUP(A160,'🗂 Base de données prestations'!A:V,12,FALSE),\"\")","v":""},{"$f":"IFERROR(VLOOKUP($A160,'🗂 Base de données prestations'!$A:$V,15,FALSE),\" \")","v":" "},null,{"$f":"MONTH(recettesnov[[#This Row],[Date d''encaissement]])","v":1}]
[null,null,{"$f":"IFERROR(VLOOKUP(A161,'🗂 Base de données prestations'!A:V,16,FALSE),\"\")","v":""},{"$f":"IFERROR(VLOOKUP(A161,'🗂 Base de données prestations'!A:V,13,FALSE),\"\")","v":""},{"$f":"IFERROR(VLOOKUP($A161,'🗂 Base de données prestations'!$A:$V,2,FALSE)&\"  \"&VLOOKUP(A161,'🗂 Base de données prestations'!A:V,3,FALSE)&\" - \"&VLOOKUP(A161,'🗂 Base de données prestations'!A:V,4,FALSE)&\" - \"&VLOOKUP(A161,'🗂 Base de données prestations'!A:V,12,FALSE),\"\")","v":""},{"$f":"IFERROR(VLOOKUP($A161,'🗂 Base de données prestations'!$A:$V,15,FALSE),\" \")","v":" "},null,{"$f":"MONTH(recettesnov[[#This Row],[Date d''encaissement]])","v":1}]
[null,null,{"$f":"IFERROR(VLOOKUP(A162,'🗂 Base de données prestations'!A:V,16,FALSE),\"\")","v":""},{"$f":"IFERROR(VLOOKUP(A162,'🗂 Base de données prestations'!A:V,13,FALSE),\"\")","v":""},{"$f":"IFERROR(VLOOKUP($A162,'🗂 Base de données prestations'!$A:$V,2,FALSE)&\"  \"&VLOOKUP(A162,'🗂 Base de données prestations'!A:V,3,FALSE)&\" - \"&VLOOKUP(A162,'🗂 Base de données prestations'!A:V,4,FALSE)&\" - \"&VLOOKUP(A162,'🗂 Base de données prestations'!A:V,12,FALSE),\"\")","v":""},{"$f":"IFERROR(VLOOKUP($A162,'🗂 Base de données prestations'!$A:$V,15,FALSE),\" \")","v":" "},null,{"$f":"MONTH(recettesnov[[#This Row],[Date d''encaissement]])","v":1}]
[null,null,{"$f":"IFERROR(VLOOKUP(A163,'🗂 Base de données prestations'!A:V,16,FALSE),\"\")","v":""},{"$f":"IFERROR(VLOOKUP(A163,'🗂 Base de données prestations'!A:V,13,FALSE),\"\")","v":""},{"$f":"IFERROR(VLOOKUP($A163,'🗂 Base de données prestations'!$A:$V,2,FALSE)&\"  \"&VLOOKUP(A163,'🗂 Base de données prestations'!A:V,3,FALSE)&\" - \"&VLOOKUP(A163,'🗂 Base de données prestations'!A:V,4,FALSE)&\" - \"&VLOOKUP(A163,'🗂 Base de données prestations'!A:V,12,FALSE),\"\")","v":""},{"$f":"IFERROR(VLOOKUP($A163,'🗂 Base de données prestations'!$A:$V,15,FALSE),\" \")","v":" "},null,{"$f":"MONTH(recettesnov[[#This Row],[Date d''encaissement]])","v":1}]
[null,null,{"$f":"IFERROR(VLOOKUP(A164,'🗂 Base de données prestations'!A:V,16,FALSE),\"\")","v":""},{"$f":"IFERROR(VLOOKUP(A164,'🗂 Base de données prestations'!A:V,13,FALSE),\"\")","v":""},{"$f":"IFERROR(VLOOKUP($A164,'🗂 Base de données prestations'!$A:$V,2,FALSE)&\"  \"&VLOOKUP(A164,'🗂 Base de données prestations'!A:V,3,FALSE)&\" - \"&VLOOKUP(A164,'🗂 Base de données prestations'!A:V,4,FALSE)&\" - \"&VLOOKUP(A164,'🗂 Base de données prestations'!A:V,12,FALSE),\"\")","v":""},{"$f":"IFERROR(VLOOKUP($A164,'🗂 Base de données prestations'!$A:$V,15,FALSE),\" \")","v":" "},null,{"$f":"MONTH(recettesnov[[#This Row],[Date d''encaissement]])","v":1}]
[null,null,{"$f":"IFERROR(VLOOKUP(A165,'🗂 Base de données prestations'!A:V,16,FALSE),\"\")","v":""},{"$f":"IFERROR(VLOOKUP(A165,'🗂 Base de données prestations'!A:V,13,FALSE),\"\")","v":""},{"$f":"IFERROR(VLOOKUP($A165,'🗂 Base de données prestations'!$A:$V,2,FALSE)&\"  \"&VLOOKUP(A165,'🗂 Base de données prestations'!A:V,3,FALSE)&\" - \"&VLOOKUP(A165,'🗂 Base de données prestations'!A:V,4,FALSE)&\" - \"&VLOOKUP(A165,'🗂 Base de données prestations'!A:V,12,FALSE),\"\")","v":""},{"$f":"IFERROR(VLOOKUP($A165,'🗂 Base de données prestations'!$A:$V,15,FALSE),\" \")","v":" "},null,{"$f":"MONTH(recettesnov[[#This Row],[Date d''encaissement]])","v":1}]
[null,null,{"$f":"IFERROR(VLOOKUP(A166,'🗂 Base de données prestations'!A:V,16,FALSE),\"\")","v":""},{"$f":"IFERROR(VLOOKUP(A166,'🗂 Base de données prestations'!A:V,13,FALSE),\"\")","v":""},{"$f":"IFERROR(VLOOKUP($A166,'🗂 Base de données prestations'!$A:$V,2,FALSE)&\"  \"&VLOOKUP(A166,'🗂 Base de données prestations'!A:V,3,FALSE)&\" - \"&VLOOKUP(A166,'🗂 Base de données prestations'!A:V,4,FALSE)&\" - \"&VLOOKUP(A166,'🗂 Base de données prestations'!A:V,12,FALSE),\"\")","v":""},{"$f":"IFERROR(VLOOKUP($A166,'🗂 Base de données prestations'!$A:$V,15,FALSE),\" \")","v":" "},null,{"$f":"MONTH(recettesnov[[#This Row],[Date d''encaissement]])","v":1}]
[null,null,{"$f":"IFERROR(VLOOKUP(A167,'🗂 Base de données prestations'!A:V,16,FALSE),\"\")","v":""},{"$f":"IFERROR(VLOOKUP(A167,'🗂 Base de données prestations'!A:V,13,FALSE),\"\")","v":""},{"$f":"IFERROR(VLOOKUP($A167,'🗂 Base de données prestations'!$A:$V,2,FALSE)&\"  \"&VLOOKUP(A167,'🗂 Base de données prestations'!A:V,3,FALSE)&\" - \"&VLOOKUP(A167,'🗂 Base de données prestations'!A:V,4,FALSE)&\" - \"&VLOOKUP(A167,'🗂 Base de données prestations'!A:V,12,FALSE),\"\")","v":""},{"$f":"IFERROR(VLOOKUP($A167,'🗂 Base de données prestations'!$A:$V,15,FALSE),\" \")","v":" "},null,{"$f":"MONTH(recettesnov[[#This Row],[Date d''encaissement]])","v":1}]
[null,null,{"$f":"IFERROR(VLOOKUP(A168,'🗂 Base de données prestations'!A:V,16,FALSE),\"\")","v":""},{"$f":"IFERROR(VLOOKUP(A168,'🗂 Base de données prestations'!A:V,13,FALSE),\"\")","v":""},{"$f":"IFERROR(VLOOKUP($A168,'🗂 Base de données prestations'!$A:$V,2,FALSE)&\"  \"&VLOOKUP(A168,'🗂 Base de données prestations'!A:V,3,FALSE)&\" - \"&VLOOKUP(A168,'🗂 Base de données prestations'!A:V,4,FALSE)&\" - \"&VLOOKUP(A168,'🗂 Base de données prestations'!A:V,12,FALSE),\"\")","v":""},{"$f":"IFERROR(VLOOKUP($A168,'🗂 Base de données prestations'!$A:$V,15,FALSE),\" \")","v":" "},null,{"$f":"MONTH(recettesnov[[#This Row],[Date d''encaissement]])","v":1}]
[null,null,{"$f":"IFERROR(VLOOKUP(A169,'🗂 Base de données prestations'!A:V,16,FALSE),\"\")","v":""},{"$f":"IFERROR(VLOOKUP(A169,'🗂 Base de données prestations'!A:V,13,FALSE),\"\")","v":""},{"$f":"IFERROR(VLOOKUP($A169,'🗂 Base de données prestations'!$A:$V,2,FALSE)&\"  \"&VLOOKUP(A169,'🗂 Base de données prestations'!A:V,3,FALSE)&\" - \"&VLOOKUP(A169,'🗂 Base de données prestations'!A:V,4,FALSE)&\" - \"&VLOOKUP(A169,'🗂 Base de données prestations'!A:V,12,FALSE),\"\")","v":""},{"$f":"IFERROR(VLOOKUP($A169,'🗂 Base de données prestations'!$A:$V,15,FALSE),\" \")","v":" "},null,{"$f":"MONTH(recettesnov[[#This Row],[Date d''encaissement]])","v":1}]
[null,null,{"$f":"IFERROR(VLOOKUP(A170,'🗂 Base de données prestations'!A:V,16,FALSE),\"\")","v":""},{"$f":"IFERROR(VLOOKUP(A170,'🗂 Base de données prestations'!A:V,13,FALSE),\"\")","v":""},{"$f":"IFERROR(VLOOKUP($A170,'🗂 Base de données prestations'!$A:$V,2,FALSE)&\"  \"&VLOOKUP(A170,'🗂 Base de données prestations'!A:V,3,FALSE)&\" - \"&VLOOKUP(A170,'🗂 Base de données prestations'!A:V,4,FALSE)&\" - \"&VLOOKUP(A170,'🗂 Base de données prestations'!A:V,12,FALSE),\"\")","v":""},{"$f":"IFERROR(VLOOKUP($A170,'🗂 Base de données prestations'!$A:$V,15,FALSE),\" \")","v":" "},null,{"$f":"MONTH(recettesnov[[#This Row],[Date d''encaissement]])","v":1}]
[null,null,{"$f":"IFERROR(VLOOKUP(A171,'🗂 Base de données prestations'!A:V,16,FALSE),\"\")","v":""},{"$f":"IFERROR(VLOOKUP(A171,'🗂 Base de données prestations'!A:V,13,FALSE),\"\")","v":""},{"$f":"IFERROR(VLOOKUP($A171,'🗂 Base de données prestations'!$A:$V,2,FALSE)&\"  \"&VLOOKUP(A171,'🗂 Base de données prestations'!A:V,3,FALSE)&\" - \"&VLOOKUP(A171,'🗂 Base de données prestations'!A:V,4,FALSE)&\" - \"&VLOOKUP(A171,'🗂 Base de données prestations'!A:V,12,FALSE),\"\")","v":""},{"$f":"IFERROR(VLOOKUP($A171,'🗂 Base de données prestations'!$A:$V,15,FALSE),\" \")","v":" "},null,{"$f":"MONTH(recettesnov[[#This Row],[Date d''encaissement]])","v":1}]
[null,null,{"$f":"IFERROR(VLOOKUP(A172,'🗂 Base de données prestations'!A:V,16,FALSE),\"\")","v":""},{"$f":"IFERROR(VLOOKUP(A172,'🗂 Base de données prestations'!A:V,13,FALSE),\"\")","v":""},{"$f":"IFERROR(VLOOKUP($A172,'🗂 Base de données prestations'!$A:$V,2,FALSE)&\"  \"&VLOOKUP(A172,'🗂 Base de données prestations'!A:V,3,FALSE)&\" - \"&VLOOKUP(A172,'🗂 Base de données prestations'!A:V,4,FALSE)&\" - \"&VLOOKUP(A172,'🗂 Base de données prestations'!A:V,12,FALSE),\"\")","v":""},{"$f":"IFERROR(VLOOKUP($A172,'🗂 Base de données prestations'!$A:$V,15,FALSE),\" \")","v":" "},null,{"$f":"MONTH(recettesnov[[#This Row],[Date d''encaissement]])","v":1}]
[null,null,{"$f":"IFERROR(VLOOKUP(A173,'🗂 Base de données prestations'!A:V,16,FALSE),\"\")","v":""},{"$f":"IFERROR(VLOOKUP(A173,'🗂 Base de données prestations'!A:V,13,FALSE),\"\")","v":""},{"$f":"IFERROR(VLOOKUP($A173,'🗂 Base de données prestations'!$A:$V,2,FALSE)&\"  \"&VLOOKUP(A173,'🗂 Base de données prestations'!A:V,3,FALSE)&\" - \"&VLOOKUP(A173,'🗂 Base de données prestations'!A:V,4,FALSE)&\" - \"&VLOOKUP(A173,'🗂 Base de données prestations'!A:V,12,FALSE),\"\")","v":""},{"$f":"IFERROR(VLOOKUP($A173,'🗂 Base de données prestations'!$A:$V,15,FALSE),\" \")","v":" "},null,{"$f":"MONTH(recettesnov[[#This Row],[Date d''encaissement]])","v":1}]
[null,null,{"$f":"IFERROR(VLOOKUP(A174,'🗂 Base de données prestations'!A:V,16,FALSE),\"\")","v":""},{"$f":"IFERROR(VLOOKUP(A174,'🗂 Base de données prestations'!A:V,13,FALSE),\"\")","v":""},{"$f":"IFERROR(VLOOKUP($A174,'🗂 Base de données prestations'!$A:$V,2,FALSE)&\"  \"&VLOOKUP(A174,'🗂 Base de données prestations'!A:V,3,FALSE)&\" - \"&VLOOKUP(A174,'🗂 Base de données prestations'!A:V,4,FALSE)&\" - \"&VLOOKUP(A174,'🗂 Base de données prestations'!A:V,12,FALSE),\"\")","v":""},{"$f":"IFERROR(VLOOKUP($A174,'🗂 Base de données prestations'!$A:$V,15,FALSE),\" \")","v":" "},null,{"$f":"MONTH(recettesnov[[#This Row],[Date d''encaissement]])","v":1}]
[null,null,{"$f":"IFERROR(VLOOKUP(A175,'🗂 Base de données prestations'!A:V,16,FALSE),\"\")","v":""},{"$f":"IFERROR(VLOOKUP(A175,'🗂 Base de données prestations'!A:V,13,FALSE),\"\")","v":""},{"$f":"IFERROR(VLOOKUP($A175,'🗂 Base de données prestations'!$A:$V,2,FALSE)&\"  \"&VLOOKUP(A175,'🗂 Base de données prestations'!A:V,3,FALSE)&\" - \"&VLOOKUP(A175,'🗂 Base de données prestations'!A:V,4,FALSE)&\" - \"&VLOOKUP(A175,'🗂 Base de données prestations'!A:V,12,FALSE),\"\")","v":""},{"$f":"IFERROR(VLOOKUP($A175,'🗂 Base de données prestations'!$A:$V,15,FALSE),\" \")","v":" "},null,{"$f":"MONTH(recettesnov[[#This Row],[Date d''encaissement]])","v":1}]
[null,null,{"$f":"IFERROR(VLOOKUP(A176,'🗂 Base de données prestations'!A:V,16,FALSE),\"\")","v":""},{"$f":"IFERROR(VLOOKUP(A176,'🗂 Base de données prestations'!A:V,13,FALSE),\"\")","v":""},{"$f":"IFERROR(VLOOKUP($A176,'🗂 Base de données prestations'!$A:$V,2,FALSE)&\"  \"&VLOOKUP(A176,'🗂 Base de données prestations'!A:V,3,FALSE)&\" - \"&VLOOKUP(A176,'🗂 Base de données prestations'!A:V,4,FALSE)&\" - \"&VLOOKUP(A176,'🗂 Base de données prestations'!A:V,12,FALSE),\"\")","v":""},{"$f":"IFERROR(VLOOKUP($A176,'🗂 Base de données prestations'!$A:$V,15,FALSE),\" \")","v":" "},null,{"$f":"MONTH(recettesnov[[#This Row],[Date d''encaissement]])","v":1}]
[null,null,{"$f":"IFERROR(VLOOKUP(A177,'🗂 Base de données prestations'!A:V,16,FALSE),\"\")","v":""},{"$f":"IFERROR(VLOOKUP(A177,'🗂 Base de données prestations'!A:V,13,FALSE),\"\")","v":""},{"$f":"IFERROR(VLOOKUP($A177,'🗂 Base de données prestations'!$A:$V,2,FALSE)&\"  \"&VLOOKUP(A177,'🗂 Base de données prestations'!A:V,3,FALSE)&\" - \"&VLOOKUP(A177,'🗂 Base de données prestations'!A:V,4,FALSE)&\" - \"&VLOOKUP(A177,'🗂 Base de données prestations'!A:V,12,FALSE),\"\")","v":""},{"$f":"IFERROR(VLOOKUP($A177,'🗂 Base de données prestations'!$A:$V,15,FALSE),\" \")","v":" "},null,{"$f":"MONTH(recettesnov[[#This Row],[Date d''encaissement]])","v":1}]
[null,null,{"$f":"IFERROR(VLOOKUP(A178,'🗂 Base de données prestations'!A:V,16,FALSE),\"\")","v":""},{"$f":"IFERROR(VLOOKUP(A178,'🗂 Base de données prestations'!A:V,13,FALSE),\"\")","v":""},{"$f":"IFERROR(VLOOKUP($A178,'🗂 Base de données prestations'!$A:$V,2,FALSE)&\"  \"&VLOOKUP(A178,'🗂 Base de données prestations'!A:V,3,FALSE)&\" - \"&VLOOKUP(A178,'🗂 Base de données prestations'!A:V,4,FALSE)&\" - \"&VLOOKUP(A178,'🗂 Base de données prestations'!A:V,12,FALSE),\"\")","v":""},{"$f":"IFERROR(VLOOKUP($A178,'🗂 Base de données prestations'!$A:$V,15,FALSE),\" \")","v":" "},null,{"$f":"MONTH(recettesnov[[#This Row],[Date d''encaissement]])","v":1}]
[null,null,{"$f":"IFERROR(VLOOKUP(A179,'🗂 Base de données prestations'!A:V,16,FALSE),\"\")","v":""},{"$f":"IFERROR(VLOOKUP(A179,'🗂 Base de données prestations'!A:V,13,FALSE),\"\")","v":""},{"$f":"IFERROR(VLOOKUP($A179,'🗂 Base de données prestations'!$A:$V,2,FALSE)&\"  \"&VLOOKUP(A179,'🗂 Base de données prestations'!A:V,3,FALSE)&\" - \"&VLOOKUP(A179,'🗂 Base de données prestations'!A:V,4,FALSE)&\" - \"&VLOOKUP(A179,'🗂 Base de données prestations'!A:V,12,FALSE),\"\")","v":""},{"$f":"IFERROR(VLOOKUP($A179,'🗂 Base de données prestations'!$A:$V,15,FALSE),\" \")","v":" "},null,{"$f":"MONTH(recettesnov[[#This Row],[Date d''encaissement]])","v":1}]
[null,null,{"$f":"IFERROR(VLOOKUP(A180,'🗂 Base de données prestations'!A:V,16,FALSE),\"\")","v":""},{"$f":"IFERROR(VLOOKUP(A180,'🗂 Base de données prestations'!A:V,13,FALSE),\"\")","v":""},{"$f":"IFERROR(VLOOKUP($A180,'🗂 Base de données prestations'!$A:$V,2,FALSE)&\"  \"&VLOOKUP(A180,'🗂 Base de données prestations'!A:V,3,FALSE)&\" - \"&VLOOKUP(A180,'🗂 Base de données prestations'!A:V,4,FALSE)&\" - \"&VLOOKUP(A180,'🗂 Base de données prestations'!A:V,12,FALSE),\"\")","v":""},{"$f":"IFERROR(VLOOKUP($A180,'🗂 Base de données prestations'!$A:$V,15,FALSE),\" \")","v":" "},null,{"$f":"MONTH(recettesnov[[#This Row],[Date d''encaissement]])","v":1}]
[null,null,{"$f":"IFERROR(VLOOKUP(A181,'🗂 Base de données prestations'!A:V,16,FALSE),\"\")","v":""},{"$f":"IFERROR(VLOOKUP(A181,'🗂 Base de données prestations'!A:V,13,FALSE),\"\")","v":""},{"$f":"IFERROR(VLOOKUP($A181,'🗂 Base de données prestations'!$A:$V,2,FALSE)&\"  \"&VLOOKUP(A181,'🗂 Base de données prestations'!A:V,3,FALSE)&\" - \"&VLOOKUP(A181,'🗂 Base de données prestations'!A:V,4,FALSE)&\" - \"&VLOOKUP(A181,'🗂 Base de données prestations'!A:V,12,FALSE),\"\")","v":""},{"$f":"IFERROR(VLOOKUP($A181,'🗂 Base de données prestations'!$A:$V,15,FALSE),\" \")","v":" "},null,{"$f":"MONTH(recettesnov[[#This Row],[Date d''encaissement]])","v":1}]
[null,null,{"$f":"IFERROR(VLOOKUP(A182,'🗂 Base de données prestations'!A:V,16,FALSE),\"\")","v":""},{"$f":"IFERROR(VLOOKUP(A182,'🗂 Base de données prestations'!A:V,13,FALSE),\"\")","v":""},{"$f":"IFERROR(VLOOKUP($A182,'🗂 Base de données prestations'!$A:$V,2,FALSE)&\"  \"&VLOOKUP(A182,'🗂 Base de données prestations'!A:V,3,FALSE)&\" - \"&VLOOKUP(A182,'🗂 Base de données prestations'!A:V,4,FALSE)&\" - \"&VLOOKUP(A182,'🗂 Base de données prestations'!A:V,12,FALSE),\"\")","v":""},{"$f":"IFERROR(VLOOKUP($A182,'🗂 Base de données prestations'!$A:$V,15,FALSE),\" \")","v":" "},null,{"$f":"MONTH(recettesnov[[#This Row],[Date d''encaissement]])","v":1}]
[null,null,{"$f":"IFERROR(VLOOKUP(A183,'🗂 Base de données prestations'!A:V,16,FALSE),\"\")","v":""},{"$f":"IFERROR(VLOOKUP(A183,'🗂 Base de données prestations'!A:V,13,FALSE),\"\")","v":""},{"$f":"IFERROR(VLOOKUP($A183,'🗂 Base de données prestations'!$A:$V,2,FALSE)&\"  \"&VLOOKUP(A183,'🗂 Base de données prestations'!A:V,3,FALSE)&\" - \"&VLOOKUP(A183,'🗂 Base de données prestations'!A:V,4,FALSE)&\" - \"&VLOOKUP(A183,'🗂 Base de données prestations'!A:V,12,FALSE),\"\")","v":""},{"$f":"IFERROR(VLOOKUP($A183,'🗂 Base de données prestations'!$A:$V,15,FALSE),\" \")","v":" "},null,{"$f":"MONTH(recettesnov[[#This Row],[Date d''encaissement]])","v":1}]
[null,null,{"$f":"IFERROR(VLOOKUP(A184,'🗂 Base de données prestations'!A:V,16,FALSE),\"\")","v":""},{"$f":"IFERROR(VLOOKUP(A184,'🗂 Base de données prestations'!A:V,13,FALSE),\"\")","v":""},{"$f":"IFERROR(VLOOKUP($A184,'🗂 Base de données prestations'!$A:$V,2,FALSE)&\"  \"&VLOOKUP(A184,'🗂 Base de données prestations'!A:V,3,FALSE)&\" - \"&VLOOKUP(A184,'🗂 Base de données prestations'!A:V,4,FALSE)&\" - \"&VLOOKUP(A184,'🗂 Base de données prestations'!A:V,12,FALSE),\"\")","v":""},{"$f":"IFERROR(VLOOKUP($A184,'🗂 Base de données prestations'!$A:$V,15,FALSE),\" \")","v":" "},null,{"$f":"MONTH(recettesnov[[#This Row],[Date d''encaissement]])","v":1}]
[null,null,{"$f":"IFERROR(VLOOKUP(A185,'🗂 Base de données prestations'!A:V,16,FALSE),\"\")","v":""},{"$f":"IFERROR(VLOOKUP(A185,'🗂 Base de données prestations'!A:V,13,FALSE),\"\")","v":""},{"$f":"IFERROR(VLOOKUP($A185,'🗂 Base de données prestations'!$A:$V,2,FALSE)&\"  \"&VLOOKUP(A185,'🗂 Base de données prestations'!A:V,3,FALSE)&\" - \"&VLOOKUP(A185,'🗂 Base de données prestations'!A:V,4,FALSE)&\" - \"&VLOOKUP(A185,'🗂 Base de données prestations'!A:V,12,FALSE),\"\")","v":""},{"$f":"IFERROR(VLOOKUP($A185,'🗂 Base de données prestations'!$A:$V,15,FALSE),\" \")","v":" "},null,{"$f":"MONTH(recettesnov[[#This Row],[Date d''encaissement]])","v":1}]
[null,null,{"$f":"IFERROR(VLOOKUP(A186,'🗂 Base de données prestations'!A:V,16,FALSE),\"\")","v":""},{"$f":"IFERROR(VLOOKUP(A186,'🗂 Base de données prestations'!A:V,13,FALSE),\"\")","v":""},{"$f":"IFERROR(VLOOKUP($A186,'🗂 Base de données prestations'!$A:$V,2,FALSE)&\"  \"&VLOOKUP(A186,'🗂 Base de données prestations'!A:V,3,FALSE)&\" - \"&VLOOKUP(A186,'🗂 Base de données prestations'!A:V,4,FALSE)&\" - \"&VLOOKUP(A186,'🗂 Base de données prestations'!A:V,12,FALSE),\"\")","v":""},{"$f":"IFERROR(VLOOKUP($A186,'🗂 Base de données prestations'!$A:$V,15,FALSE),\" \")","v":" "},null,{"$f":"MONTH(recettesnov[[#This Row],[Date d''encaissement]])","v":1}]
[null,null,{"$f":"IFERROR(VLOOKUP(A187,'🗂 Base de données prestations'!A:V,16,FALSE),\"\")","v":""},{"$f":"IFERROR(VLOOKUP(A187,'🗂 Base de données prestations'!A:V,13,FALSE),\"\")","v":""},{"$f":"IFERROR(VLOOKUP($A187,'🗂 Base de données prestations'!$A:$V,2,FALSE)&\"  \"&VLOOKUP(A187,'🗂 Base de données prestations'!A:V,3,FALSE)&\" - \"&VLOOKUP(A187,'🗂 Base de données prestations'!A:V,4,FALSE)&\" - \"&VLOOKUP(A187,'🗂 Base de données prestations'!A:V,12,FALSE),\"\")","v":""},{"$f":"IFERROR(VLOOKUP($A187,'🗂 Base de données prestations'!$A:$V,15,FALSE),\" \")","v":" "},null,{"$f":"MONTH(recettesnov[[#This Row],[Date d''encaissement]])","v":1}]
[null,null,{"$f":"IFERROR(VLOOKUP(A188,'🗂 Base de données prestations'!A:V,16,FALSE),\"\")","v":""},{"$f":"IFERROR(VLOOKUP(A188,'🗂 Base de données prestations'!A:V,13,FALSE),\"\")","v":""},{"$f":"IFERROR(VLOOKUP($A188,'🗂 Base de données prestations'!$A:$V,2,FALSE)&\"  \"&VLOOKUP(A188,'🗂 Base de données prestations'!A:V,3,FALSE)&\" - \"&VLOOKUP(A188,'🗂 Base de données prestations'!A:V,4,FALSE)&\" - \"&VLOOKUP(A188,'🗂 Base de données prestations'!A:V,12,FALSE),\"\")","v":""},{"$f":"IFERROR(VLOOKUP($A188,'🗂 Base de données prestations'!$A:$V,15,FALSE),\" \")","v":" "},null,{"$f":"MONTH(recettesnov[[#This Row],[Date d''encaissement]])","v":1}]
[null,null,{"$f":"IFERROR(VLOOKUP(A189,'🗂 Base de données prestations'!A:V,16,FALSE),\"\")","v":""},{"$f":"IFERROR(VLOOKUP(A189,'🗂 Base de données prestations'!A:V,13,FALSE),\"\")","v":""},{"$f":"IFERROR(VLOOKUP($A189,'🗂 Base de données prestations'!$A:$V,2,FALSE)&\"  \"&VLOOKUP(A189,'🗂 Base de données prestations'!A:V,3,FALSE)&\" - \"&VLOOKUP(A189,'🗂 Base de données prestations'!A:V,4,FALSE)&\" - \"&VLOOKUP(A189,'🗂 Base de données prestations'!A:V,12,FALSE),\"\")","v":""},{"$f":"IFERROR(VLOOKUP($A189,'🗂 Base de données prestations'!$A:$V,15,FALSE),\" \")","v":" "},null,{"$f":"MONTH(recettesnov[[#This Row],[Date d''encaissement]])","v":1}]
[null,null,{"$f":"IFERROR(VLOOKUP(A190,'🗂 Base de données prestations'!A:V,16,FALSE),\"\")","v":""},{"$f":"IFERROR(VLOOKUP(A190,'🗂 Base de données prestations'!A:V,13,FALSE),\"\")","v":""},{"$f":"IFERROR(VLOOKUP($A190,'🗂 Base de données prestations'!$A:$V,2,FALSE)&\"  \"&VLOOKUP(A190,'🗂 Base de données prestations'!A:V,3,FALSE)&\" - \"&VLOOKUP(A190,'🗂 Base de données prestations'!A:V,4,FALSE)&\" - \"&VLOOKUP(A190,'🗂 Base de données prestations'!A:V,12,FALSE),\"\")","v":""},{"$f":"IFERROR(VLOOKUP($A190,'🗂 Base de données prestations'!$A:$V,15,FALSE),\" \")","v":" "},null,{"$f":"MONTH(recettesnov[[#This Row],[Date d''encaissement]])","v":1}]
[null,null,{"$f":"IFERROR(VLOOKUP(A191,'🗂 Base de données prestations'!A:V,16,FALSE),\"\")","v":""},{"$f":"IFERROR(VLOOKUP(A191,'🗂 Base de données prestations'!A:V,13,FALSE),\"\")","v":""},{"$f":"IFERROR(VLOOKUP($A191,'🗂 Base de données prestations'!$A:$V,2,FALSE)&\"  \"&VLOOKUP(A191,'🗂 Base de données prestations'!A:V,3,FALSE)&\" - \"&VLOOKUP(A191,'🗂 Base de données prestations'!A:V,4,FALSE)&\" - \"&VLOOKUP(A191,'🗂 Base de données prestations'!A:V,12,FALSE),\"\")","v":""},{"$f":"IFERROR(VLOOKUP($A191,'🗂 Base de données prestations'!$A:$V,15,FALSE),\" \")","v":" "},null,{"$f":"MONTH(recettesnov[[#This Row],[Date d''encaissement]])","v":1}]
[null,null,{"$f":"IFERROR(VLOOKUP(A192,'🗂 Base de données prestations'!A:V,16,FALSE),\"\")","v":""},{"$f":"IFERROR(VLOOKUP(A192,'🗂 Base de données prestations'!A:V,13,FALSE),\"\")","v":""},{"$f":"IFERROR(VLOOKUP($A192,'🗂 Base de données prestations'!$A:$V,2,FALSE)&\"  \"&VLOOKUP(A192,'🗂 Base de données prestations'!A:V,3,FALSE)&\" - \"&VLOOKUP(A192,'🗂 Base de données prestations'!A:V,4,FALSE)&\" - \"&VLOOKUP(A192,'🗂 Base de données prestations'!A:V,12,FALSE),\"\")","v":""},{"$f":"IFERROR(VLOOKUP($A192,'🗂 Base de données prestations'!$A:$V,15,FALSE),\" \")","v":" "},null,{"$f":"MONTH(recettesnov[[#This Row],[Date d''encaissement]])","v":1}]
[null,null,{"$f":"IFERROR(VLOOKUP(A193,'🗂 Base de données prestations'!A:V,16,FALSE),\"\")","v":""},{"$f":"IFERROR(VLOOKUP(A193,'🗂 Base de données prestations'!A:V,13,FALSE),\"\")","v":""},{"$f":"IFERROR(VLOOKUP($A193,'🗂 Base de données prestations'!$A:$V,2,FALSE)&\"  \"&VLOOKUP(A193,'🗂 Base de données prestations'!A:V,3,FALSE)&\" - \"&VLOOKUP(A193,'🗂 Base de données prestations'!A:V,4,FALSE)&\" - \"&VLOOKUP(A193,'🗂 Base de données prestations'!A:V,12,FALSE),\"\")","v":""},{"$f":"IFERROR(VLOOKUP($A193,'🗂 Base de données prestations'!$A:$V,15,FALSE),\" \")","v":" "},null,{"$f":"MONTH(recettesnov[[#This Row],[Date d''encaissement]])","v":1}]
[null,null,{"$f":"IFERROR(VLOOKUP(A194,'🗂 Base de données prestations'!A:V,16,FALSE),\"\")","v":""},{"$f":"IFERROR(VLOOKUP(A194,'🗂 Base de données prestations'!A:V,13,FALSE),\"\")","v":""},{"$f":"IFERROR(VLOOKUP($A194,'🗂 Base de données prestations'!$A:$V,2,FALSE)&\"  \"&VLOOKUP(A194,'🗂 Base de données prestations'!A:V,3,FALSE)&\" - \"&VLOOKUP(A194,'🗂 Base de données prestations'!A:V,4,FALSE)&\" - \"&VLOOKUP(A194,'🗂 Base de données prestations'!A:V,12,FALSE),\"\")","v":""},{"$f":"IFERROR(VLOOKUP($A194,'🗂 Base de données prestations'!$A:$V,15,FALSE),\" \")","v":" "},null,{"$f":"MONTH(recettesnov[[#This Row],[Date d''encaissement]])","v":1}]
[null,null,{"$f":"IFERROR(VLOOKUP(A195,'🗂 Base de données prestations'!A:V,16,FALSE),\"\")","v":""},{"$f":"IFERROR(VLOOKUP(A195,'🗂 Base de données prestations'!A:V,13,FALSE),\"\")","v":""},{"$f":"IFERROR(VLOOKUP($A195,'🗂 Base de données prestations'!$A:$V,2,FALSE)&\"  \"&VLOOKUP(A195,'🗂 Base de données prestations'!A:V,3,FALSE)&\" - \"&VLOOKUP(A195,'🗂 Base de données prestations'!A:V,4,FALSE)&\" - \"&VLOOKUP(A195,'🗂 Base de données prestations'!A:V,12,FALSE),\"\")","v":""},{"$f":"IFERROR(VLOOKUP($A195,'🗂 Base de données prestations'!$A:$V,15,FALSE),\" \")","v":" "},null,{"$f":"MONTH(recettesnov[[#This Row],[Date d''encaissement]])","v":1}]
[null,null,{"$f":"IFERROR(VLOOKUP(A196,'🗂 Base de données prestations'!A:V,16,FALSE),\"\")","v":""},{"$f":"IFERROR(VLOOKUP(A196,'🗂 Base de données prestations'!A:V,13,FALSE),\"\")","v":""},{"$f":"IFERROR(VLOOKUP($A196,'🗂 Base de données prestations'!$A:$V,2,FALSE)&\"  \"&VLOOKUP(A196,'🗂 Base de données prestations'!A:V,3,FALSE)&\" - \"&VLOOKUP(A196,'🗂 Base de données prestations'!A:V,4,FALSE)&\" - \"&VLOOKUP(A196,'🗂 Base de données prestations'!A:V,12,FALSE),\"\")","v":""},{"$f":"IFERROR(VLOOKUP($A196,'🗂 Base de données prestations'!$A:$V,15,FALSE),\" \")","v":" "},null,{"$f":"MONTH(recettesnov[[#This Row],[Date d''encaissement]])","v":1}]
[null,null,{"$f":"IFERROR(VLOOKUP(A197,'🗂 Base de données prestations'!A:V,16,FALSE),\"\")","v":""},{"$f":"IFERROR(VLOOKUP(A197,'🗂 Base de données prestations'!A:V,13,FALSE),\"\")","v":""},{"$f":"IFERROR(VLOOKUP($A197,'🗂 Base de données prestations'!$A:$V,2,FALSE)&\"  \"&VLOOKUP(A197,'🗂 Base de données prestations'!A:V,3,FALSE)&\" - \"&VLOOKUP(A197,'🗂 Base de données prestations'!A:V,4,FALSE)&\" - \"&VLOOKUP(A197,'🗂 Base de données prestations'!A:V,12,FALSE),\"\")","v":""},{"$f":"IFERROR(VLOOKUP($A197,'🗂 Base de données prestations'!$A:$V,15,FALSE),\" \")","v":" "},null,{"$f":"MONTH(recettesnov[[#This Row],[Date d''encaissement]])","v":1}]
[null,null,{"$f":"IFERROR(VLOOKUP(A198,'🗂 Base de données prestations'!A:V,16,FALSE),\"\")","v":""},{"$f":"IFERROR(VLOOKUP(A198,'🗂 Base de données prestations'!A:V,13,FALSE),\"\")","v":""},{"$f":"IFERROR(VLOOKUP($A198,'🗂 Base de données prestations'!$A:$V,2,FALSE)&\"  \"&VLOOKUP(A198,'🗂 Base de données prestations'!A:V,3,FALSE)&\" - \"&VLOOKUP(A198,'🗂 Base de données prestations'!A:V,4,FALSE)&\" - \"&VLOOKUP(A198,'🗂 Base de données prestations'!A:V,12,FALSE),\"\")","v":""},{"$f":"IFERROR(VLOOKUP($A198,'🗂 Base de données prestations'!$A:$V,15,FALSE),\" \")","v":" "},null,{"$f":"MONTH(recettesnov[[#This Row],[Date d''encaissement]])","v":1}]
[null,null,{"$f":"IFERROR(VLOOKUP(A199,'🗂 Base de données prestations'!A:V,16,FALSE),\"\")","v":""},{"$f":"IFERROR(VLOOKUP(A199,'🗂 Base de données prestations'!A:V,13,FALSE),\"\")","v":""},{"$f":"IFERROR(VLOOKUP($A199,'🗂 Base de données prestations'!$A:$V,2,FALSE)&\"  \"&VLOOKUP(A199,'🗂 Base de données prestations'!A:V,3,FALSE)&\" - \"&VLOOKUP(A199,'🗂 Base de données prestations'!A:V,4,FALSE)&\" - \"&VLOOKUP(A199,'🗂 Base de données prestations'!A:V,12,FALSE),\"\")","v":""},{"$f":"IFERROR(VLOOKUP($A199,'🗂 Base de données prestations'!$A:$V,15,FALSE),\" \")","v":" "},null,{"$f":"MONTH(recettesnov[[#This Row],[Date d''encaissement]])","v":1}]
[null,null,{"$f":"IFERROR(VLOOKUP(A200,'🗂 Base de données prestations'!A:V,16,FALSE),\"\")","v":""},{"$f":"IFERROR(VLOOKUP(A200,'🗂 Base de données prestations'!A:V,13,FALSE),\"\")","v":""},{"$f":"IFERROR(VLOOKUP($A200,'🗂 Base de données prestations'!$A:$V,2,FALSE)&\"  \"&VLOOKUP(A200,'🗂 Base de données prestations'!A:V,3,FALSE)&\" - \"&VLOOKUP(A200,'🗂 Base de données prestations'!A:V,4,FALSE)&\" - \"&VLOOKUP(A200,'🗂 Base de données prestations'!A:V,12,FALSE),\"\")","v":""},{"$f":"IFERROR(VLOOKUP($A200,'🗂 Base de données prestations'!$A:$V,15,FALSE),\" \")","v":" "},null,{"$f":"MONTH(recettesnov[[#This Row],[Date d''encaissement]])","v":1}]

{"sheet":"📊Tableau de Bord","index":5,"n_rows":94,"n_cols":13,"rows_kept":94,"cut":false,"hidden":false,"merged":[[93,2,93,12],[0,0,0,1],[0,2,0,8],[2,2,2,12],[33,2,33,12],[63,2,63,12]]}
[{"$f":"'👩🏻‍🏫 Paramêtres'!K7","v":0},null,{"$f":"\"Tableau de bord de \"&'👩🏻‍🏫 Paramêtres'!I12","v":"Tableau de bord de "}]
[]
[null,"👩🏻‍🏫",{"$f":"\"Sur toute la période, votre chiffre d'affaires encaissé est de \"&coulisses!B7&\" euros. Voici la répartition par mois :\"","v":"Sur toute la période, votre chiffre d'affaires encaissé est de 0 euros. Voici la répartition par mois :"}]
[]
[null,1,2,3,4,5,6,7,8,9,10,11,12]
[null,"Janvier","Février","Mars","Avril","Mai","Juin","Juillet","Août","Sept.","Oct.","Nov.","Déc."]
[]
[null,{"$f":"SUMIF('💰 Livre de recettes'!$H:$H,'📊Tableau de Bord'!B5,'💰 Livre de recettes'!$F:$F)","v":0},{"$f":"SUMIF('💰 Livre de recettes'!$H:$H,'📊Tableau de Bord'!C5,'💰 Livre de recettes'!$F:$F)","v":0},{"$f":"SUMIF('💰 Livre de recettes'!$H:$H,'📊Tableau de Bord'!D5,'💰 Livre de recettes'!$F:$F)","v":0},{"$f":"SUMIF('💰 Livre de recettes'!$H:$H,'📊Tableau de Bord'!E5,'💰 Livre de recettes'!$F:$F)","v":0},{"$f":"SUMIF('💰 Livre de recettes'!$H:$H,'📊Tableau de Bord'!F5,'💰 Livre de recettes'!$F:$F)","v":0},{"$f":"SUMIF('💰 Livre de recettes'!$H:$H,'📊Tableau de Bord'!G5,'💰 Livre de recettes'!$F:$F)","v":0},{"$f":"SUMIF('💰 Livre de recettes'!$H:$H,'📊Tableau de Bord'!H5,'💰 Livre de recettes'!$F:$F)","v":0},{"$f":"SUMIF('💰 Livre de recettes'!$H:$H,'📊Tableau de Bord'!I5,'💰 Livre de recettes'!$F:$F)","v":0},{"$f":"SUMIF('💰 Livre de recettes'!$H:$H,'📊Tableau de Bord'!J5,'💰 Livre de recettes'!$F:$F)","v":0},{"$f":"SUMIF('💰 Livre de recettes'!$H:$H,'📊Tableau de Bord'!K5,'💰 Livre de recettes'!$F:$F)","v":0},{"$f":"SUMIF('💰 Livre de recettes'!$H:$H,'📊Tableau de Bord'!L5,'💰 Livre de recettes'!$F:$F)","v":0},{"$f":"SUMIF('💰 Livre de recettes'!$H:$H,'📊Tableau de Bord'!M5,'💰 Livre de recettes'!$F:$F)","v":0}]
[]
[]
[]
[]
[]
[]
[]
[]
[]
[]
[]
[]
[]
[]
[]
[]
[]
[]
[]
[]
[]
[]
[]
[]
[]
[null,"👩🏻‍🏫","Voici la répartition de votre chiffre d'affaires encaissé par type de clients :"]
[]
[]
[]
[]
[]
[]
[]
[]
[]
[]
[]
[]
[]
[]
[]
[]
[]
[]
[]
[]
[]
[]
[]
[]
[]
[]
[]
[]
[]
[null,"👩🏻‍🏫","Voici la répartition de toutes vos prestations selon leur statut :"]
[]
[]
[]
[]
[]
[]
[]
[]
[]
[]
[]
[]
[]
[]
[]
[]
[]
[]
[]
[]
[]
[]
[]
[]
[]
[]
[]
[]
[]
[null,"👩🏻‍🏫","Voici la répartition de toutes vos prestations selon leur catégorie :"]

{"sheet":"pour vous 1","index":6,"n_rows":0,"n_cols":0,"rows_kept":0,"cut":false,"hidden":false,"merged":[]}

{"sheet":"pour vous 2","index":7,"n_rows":0,"n_cols":0,"rows_kept":0,"cut":false,"hidden":false,"merged":[]}

{"sheet":"pour vous 3","index":8,"n_rows":0,"n_cols":0,"rows_kept":0,"cut":false,"hidden":false,"merged":[]}

{"sheet":"coulisses","index":9,"n_rows":38,"n_cols":9,"rows_kept":38,"cut":false,"hidden":true,"merged":[]}
["Somme par statut",null,null,null,"Somme par type de clients",null,null,"Somme par type de presta"]
[]
["prospect",{"$f":"SUMIF('🗂 Base de données prestations'!I:I,coulisses!A3,'🗂 Base de données prestations'!O:O)","v":0},null,null,{"$f":"'👩🏻‍🏫 Paramêtres'!I27","v":0},{"$f":"SUMIFS('🗂 Base de données prestations'!O:O,'🗂 Base de données prestations'!I:I,\"encaissé\",'🗂 Base de données prestations'!E:E,coulisses!E3)","v":0},null,{"$f":"'👩🏻‍🏫 Paramêtres'!I40","v":0},{"$f":"SUMIFS('🗂 Base de données prestations'!O:O,'🗂 Base de données prestations'!I:I,\"encaissé\",'🗂 Base de données prestations'!K:K,coulisses!H3)","v":0}]
["en cours",{"$f":"SUMIF('🗂 Base de données prestations'!I:I,coulisses!A4,'🗂 Base de données prestations'!O:O)","v":0},null,null,{"$f":"'👩🏻‍🏫 Paramêtres'!I28","v":0},{"$f":"SUMIFS('🗂 Base de données prestations'!O:O,'🗂 Base de données prestations'!I:I,\"encaissé\",'🗂 Base de données prestations'!E:E,coulisses!E4)","v":0},null,{"$f":"'👩🏻‍🏫 Paramêtres'!I41","v":0},{"$f":"SUMIFS('🗂 Base de données prestations'!O:O,'🗂 Base de données prestations'!I:I,\"encaissé\",'🗂 Base de données prestations'!K:K,coulisses!H4)","v":0}]
["à facturer",{"$f":"SUMIF('🗂 Base de données prestations'!I:I,coulisses!A5,'🗂 Base de données prestations'!O:O)","v":0},null,null,{"$f":"'👩🏻‍🏫 Paramêtres'!I29","v":0},{"$f":"SUMIFS('🗂 Base de données prestations'!O:O,'🗂 Base de données prestations'!I:I,\"encaissé\",'🗂 Base de données prestations'!E:E,coulisses!E5)","v":0},null,{"$f":"'👩🏻‍🏫 Paramêtres'!I42","v":0},{"$f":"SUMIFS('🗂 Base de données prestations'!O:O,'🗂 Base de données prestations'!I:I,\"encaissé\",'🗂 Base de données prestations'!K:K,coulisses!H5)","v":0}]
["facturé",{"$f":"SUMIF('🗂 Base de données prestations'!I:I,coulisses!A6,'🗂 Base de données prestations'!O:O)","v":0},null,null,{"$f":"'👩🏻‍🏫 Paramêtres'!I30","v":0},{"$f":"SUMIFS('🗂 Base de données prestations'!O:O,'🗂 Base de données prestations'!I:I,\"encaissé\",'🗂 Base de données prestations'!E:E,coulisses!E6)","v":0},null,{"$f":"'👩🏻‍🏫 Paramêtres'!I43","v":0},{"$f":"SUMIFS('🗂 Base de données prestations'!O:O,'🗂 Base de données prestations'!I:I,\"encaissé\",'🗂 Base de données prestations'!K:K,coulisses!H6)","v":0}]
["encaissé",{"$f":"SUMIF('🗂 Base de données prestations'!I:I,coulisses!A7,'🗂 Base de données prestations'!O:O)","v":0},null,null,{"$f":"'👩🏻‍🏫 Paramêtres'!I31","v":0},{"$f":"SUMIFS('🗂 Base de données prestations'!O:O,'🗂 Base de données prestations'!I:I,\"encaissé\",'🗂 Base de données prestations'!E:E,coulisses!E7)","v":0},null,{"$f":"'👩🏻‍🏫 Paramêtres'!I44","v":0},{"$f":"SUMIFS('🗂 Base de données prestations'!O:O,'🗂 Base de données prestations'!I:I,\"encaissé\",'🗂 Base de données prestations'!K:K,coulisses!H7)","v":0}]
["abandonné",{"$f":"SUMIF('🗂 Base de données prestations'!I:I,coulisses!A8,'🗂 Base de données prestations'!O:O)","v":0},null,null,{"$f":"'👩🏻‍🏫 Paramêtres'!I32","v":0},{"$f":"SUMIFS('🗂 Base de données prestations'!O:O,'🗂 Base de données prestations'!I:I,\"encaissé\",'🗂 Base de données prestations'!E:E,coulisses!E8)","v":0},null,{"$f":"'👩🏻‍🏫 Paramêtres'!I45","v":0},{"$f":"SUMIFS('🗂 Base de données prestations'!O:O,'🗂 Base de données prestations'!I:I,\"encaissé\",'🗂 Base de données prestations'!K:K,coulisses!H8)","v":0}]
[null,null,null,null,{"$f":"'👩🏻‍🏫 Paramêtres'!I33","v":0},{"$f":"SUMIFS('🗂 Base de données prestations'!O:O,'🗂 Base de données prestations'!I:I,\"encaissé\",'🗂 Base de données prestations'!E:E,coulisses!E9)","v":0},null,{"$f":"'👩🏻‍🏫 Paramêtres'!I46","v":0},{"$f":"SUMIFS('🗂 Base de données prestations'!O:O,'🗂 Base de données prestations'!I:I,\"encaissé\",'🗂 Base de données prestations'!K:K,coulisses!H9)","v":0}]
["Modes de paiement",null,null,null,{"$f":"'👩🏻‍🏫 Paramêtres'!I34","v":0},{"$f":"SUMIFS('🗂 Base de données prestations'!O:O,'🗂 Base de données prestations'!I:I,\"encaissé\",'🗂 Base de données prestations'!E:E,coulisses!E10)","v":0},null,{"$f":"'👩🏻‍🏫 Paramêtres'!I47","v":0},{"$f":"SUMIFS('🗂 Base de données prestations'!O:O,'🗂 Base de données prestations'!I:I,\"encaissé\",'🗂 Base de données prestations'!K:K,coulisses!H10)","v":0}]
["Espèces",null,null,null,{"$f":"'👩🏻‍🏫 Paramêtres'!I35","v":0},{"$f":"SUMIFS('🗂 Base de données prestations'!O:O,'🗂 Base de données prestations'!I:I,\"encaissé\",'🗂 Base de données prestations'!E:E,coulisses!E11)","v":0},null,{"$f":"'👩🏻‍🏫 Paramêtres'!I48","v":0},{"$f":"SUMIFS('🗂 Base de données prestations'!O:O,'🗂 Base de données prestations'!I:I,\"encaissé\",'🗂 Base de données prestations'!K:K,coulisses!H11)","v":0}]
["Chèque",null,null,null,{"$f":"'👩🏻‍🏫 Paramêtres'!I36","v":0},{"$f":"SUMIFS('🗂 Base de données prestations'!O:O,'🗂 Base de données prestations'!I:I,\"encaissé\",'🗂 Base de données prestations'!E:E,coulisses!E12)","v":0},null,{"$f":"'👩🏻‍🏫 Paramêtres'!I49","v":0},{"$f":"SUMIFS('🗂 Base de données prestations'!O:O,'🗂 Base de données prestations'!I:I,\"encaissé\",'🗂 Base de données prestations'!K:K,coulisses!H12)","v":0}]
["Virement"]
["CB"]
["Paypal"]
["Autre"]
[]
["🧔🏽"]
["🧔🏼"]
["🧑🏾"]
["👵🏻"]
["👱🏼"]
["👩🏿‍🦱"]
["👩🏼‍🦰"]
["🧑🏼‍🦱"]
["👨🏼‍🦰"]
["👩🏽‍🦱"]
["👩🏻‍🦱 "]
["👨🏾‍🦲"]
["👨🏼‍🦲"]
["👩🏼"]
["🧕🏾"]
["👩🏻"]
["👨🏿‍🦱"]
["👨🏻‍🦳"]
["👩🏾"]
["👨🏻‍🦱"]
["🧑🏾‍🦱"]